,Date Paid,TT,Transaction Number,Amount,Supplier No,Supplier Name,Period,Expense Area,Cipfa(T),
INSERTED DETAIL,01/04/2016,GI,2094986,790.82,HC101182,Bridstow C.E. Primary School Imprest A/C,201701,Schools,Supplies & Services,
INSERTED DETAIL,01/04/2016,GI,2094987,"852,967.55",HC111603,Worcestershire County Council,201701,Environment and Place,Third Party Payments,
INSERTED DETAIL,01/04/2016,GI,2094990,"859,663.00",HC101300,BT Plc,201701,Communities Capital,Capital Income,
INSERTED DETAIL,06/04/2016,GI,2095199,917.46,HC108165,NYS Corporate,201701,Safeguarding and Family Support,Employees,
INSERTED DETAIL,04/05/2016,GI,2095591,544,HC101389,REDACTED,201701,Adults Operations,Transport-Related Expenditure,
INSERTED DETAIL,04/05/2016,GI,2095594,492,HC107953,Natwest One Card (Direct Debit A/C),201701,Adults Operations,Supplies & Services,
INSERTED DETAIL,04/05/2016,GI,2095594,804.93,HC107953,Natwest One Card (Direct Debit A/C),201701,Environment and Place,Supplies & Services,
INSERTED DETAIL,20/04/2016,GI,2095595,"1,612.48",HC111924,Bromyard Community Transport Ltd,201701,Environment and Place,Supplies & Services,
INSERTED DETAIL,20/04/2016,GI,2095596,"2,268.76",HC112080,CVS Ledbury & District (Ledbury Ring & Ride),201701,Environment and Place,Supplies & Services,
INSERTED DETAIL,20/04/2016,GI,2095597,"1,517.32",HC102478,Dore Community Transport,201701,Environment and Place,Supplies & Services,
INSERTED DETAIL,20/04/2016,GI,2095598,666.55,HC101381,Hay & District Dial a Ride,201701,Environment and Place,Supplies & Services,
INSERTED DETAIL,20/04/2016,GI,2095599,"3,128.72",HC103982,HVOSS,201701,Environment and Place,Supplies & Services,
INSERTED DETAIL,20/04/2016,GI,2095600,"1,739.03",HC101379,Ross Country Cars (Standing Order),201701,Environment and Place,Supplies & Services,
INSERTED DETAIL,20/04/2016,GI,2095601,"2,156.22",HC110743,The Plynlimon Trust Community Car Scheme,201701,Environment and Place,Supplies & Services,
INSERTED DETAIL,07/04/2016,GI,2095602,"41,113.00",HC103869,Wye Valley NHS Trust,201701,Public Health,Third Party Payments,
INSERTED DETAIL,20/04/2016,GI,2095603,"117,687.14",HC107466,Worcestershire Health & Care NHS Trust,201701,Public Health,Third Party Payments,
INSERTED DETAIL,20/04/2016,GI,2095604,"147,522.74",HC120328,Addaction,201701,Public Health,Third Party Payments,
INSERTED DETAIL,09/04/2016,GI,2095605,"66,666.67",HC120107,Hereford Integrated Behaviour Outreach Service,201701,Education and Commissioning,Third Party Payments,
INSERTED DETAIL,09/04/2016,GI,2095606,"1,500.00",HC120107,Hereford Integrated Behaviour Outreach Service,201701,Education and Commissioning,Third Party Payments,
INSERTED DETAIL,09/04/2016,GI,2095607,"18,463.00",HC120107,Hereford Integrated Behaviour Outreach Service,201701,Central Childrens Directorate Costs,Third Party Payments,
INSERTED DETAIL,09/04/2016,GI,2095608,"27,500.00",HC120107,Hereford Integrated Behaviour Outreach Service,201701,Central Childrens Directorate Costs,Third Party Payments,
INSERTED DETAIL,09/04/2016,GI,2095609,600,HC106870,REDACTED,201701,Adults Operations,Premises-Related Expenditure,
INSERTED DETAIL,09/04/2016,GI,2095610,550,HC106831,REDACTED,201701,Adults Operations,Premises-Related Expenditure,
INSERTED DETAIL,09/04/2016,GI,2095611,450,HC109865,REDACTED,201701,Adults Operations,Premises-Related Expenditure,
INSERTED DETAIL,09/04/2016,GI,2095612,450,HC109865,REDACTED,201701,Adults Operations,Premises-Related Expenditure,
INSERTED DETAIL,09/04/2016,GI,2095614,460,HC112055,REDACTED,201701,Adults Operations,Premises-Related Expenditure,
INSERTED DETAIL,09/04/2016,GI,2095615,550,HC108221,REDACTED,201701,Adults Operations,Premises-Related Expenditure,
INSERTED DETAIL,09/04/2016,GI,2095616,480,HC108905,REDACTED,201701,Adults Operations,Premises-Related Expenditure,
INSERTED DETAIL,13/04/2016,GI,2095617,540,HC105416,REDACTED,201701,Adults Operations,Premises-Related Expenditure,
INSERTED DETAIL,09/04/2016,GI,2095618,475,HC109338,REDACTED,201701,Adults Operations,Premises-Related Expenditure,
INSERTED DETAIL,09/04/2016,GI,2095620,600,HC100270,REDACTED,201701,Adults Operations,Premises-Related Expenditure,
INSERTED DETAIL,09/04/2016,GI,2095622,"4,333.33",HC106816,REDACTED,201701,Adults Operations,Premises-Related Expenditure,
INSERTED DETAIL,09/04/2016,GI,2095623,625,HC110272,REDACTED,201701,Adults Operations,Premises-Related Expenditure,
INSERTED DETAIL,09/04/2016,GI,2095624,420,HC106104,REDACTED,201701,Adults Operations,Premises-Related Expenditure,
INSERTED DETAIL,09/04/2016,GI,2095625,600,HC115622,REDACTED,201701,Adults Operations,Premises-Related Expenditure,
INSERTED DETAIL,09/04/2016,GI,2095626,525,HC116314,REDACTED,201701,Adults Operations,Premises-Related Expenditure,
INSERTED DETAIL,13/04/2016,GI,2095627,585,HC119280,REDACTED,201701,Adults Operations,Premises-Related Expenditure,
INSERTED DETAIL,13/04/2016,GI,2095628,500,HC120621,REDACTED,201701,Adults Operations,Premises-Related Expenditure,
INSERTED DETAIL,08/04/2016,GI,2095629,"27,586.31",HC107838,Ethica Resourcing Ltd,201701,Adults Operations,Employees,
INSERTED DETAIL,08/04/2016,GI,2095629,"1,100.47",HC107838,Ethica Resourcing Ltd,201701,Commissioning Adults,Employees,
INSERTED DETAIL,08/04/2016,GI,2095629,852.23,HC107838,Ethica Resourcing Ltd,201701,Education and Commissioning,Employees,
INSERTED DETAIL,08/04/2016,GI,2095629,"3,982.10",HC107838,Ethica Resourcing Ltd,201701,Environment and Place,Employees,
INSERTED DETAIL,08/04/2016,GI,2095629,"3,804.42",HC107838,Ethica Resourcing Ltd,201701,Mental Health,Employees,
INSERTED DETAIL,08/04/2016,GI,2095629,"6,873.89",HC107838,Ethica Resourcing Ltd,201701,Public Health,Employees,
INSERTED DETAIL,08/04/2016,GI,2095629,"2,815.08",HC107838,Ethica Resourcing Ltd,201701,Resources,Employees,
INSERTED DETAIL,08/04/2016,GI,2095629,"57,292.07",HC107838,Ethica Resourcing Ltd,201701,Safeguarding and Family Support,Employees,
INSERTED DETAIL,08/04/2016,GI,2095629,"1,605.00",HC107838,Ethica Resourcing Ltd,201701,Transformation and safeguarding,Employees,
INSERTED DETAIL,08/04/2016,GI,2095629,"1,561.28",HC107838,REDACTED,201701,Adults Operations,Employees,
INSERTED DETAIL,08/04/2016,GI,2095629,"10,177.74",HC107838,REDACTED,201701,Safeguarding and Family Support,Employees,
INSERTED DETAIL,08/04/2016,GI,2095910,665,HC101700,Chave & Jackson Ltd,201701,Public Health,Supplies & Services,
INSERTED DETAIL,07/04/2016,WM,2095918,"2,586.70",HC108443,West Mercia Energy,201701,Schools,Supplies & Services,"Printing, Stationery & General Office Expenses"
INSERTED DETAIL,08/04/2016,GI,2096073,450,HC120739,REDACTED,201701,Safeguarding and Family Support,Supplies & Services,
INSERTED DETAIL,08/04/2016,GI,2096076,"4,052.42",HC108793,REDACTED,201701,Adults Operations,Supplies & Services,
INSERTED DETAIL,08/04/2016,GI,2096077,"5,965.00",HC110287,Support Services - Legal,201701,Communities,Supplies & Services,
INSERTED DETAIL,08/04/2016,GI,2096077,"3,291.98",HC110287,Support Services - Legal,201701,Environment and Place,Supplies & Services,
INSERTED DETAIL,13/04/2016,GI,2096484,"1,387.62",HC113866,Westfield Surgery,201701,Public Health,Supplies & Services,
INSERTED DETAIL,13/04/2016,GI,2096485,858.57,HC102533,The Golden Valley Practice,201701,Public Health,Supplies & Services,
INSERTED DETAIL,13/04/2016,GI,2096486,"1,593.57",HC110075,St Katherines Surgery,201701,Public Health,Supplies & Services,
INSERTED DETAIL,13/04/2016,GI,2096487,"2,734.05",HC102578,REDACTED,201701,Public Health,Supplies & Services,
INSERTED DETAIL,13/04/2016,GI,2096488,"1,466.79",HC103586,Greyfriars Surgery,201701,Public Health,Supplies & Services,
INSERTED DETAIL,13/04/2016,GI,2096489,"3,637.02",HC110687,The Marches Surgery,201701,Public Health,Supplies & Services,
INSERTED DETAIL,13/04/2016,GI,2096490,735,HC111398,Weobley And Staunton On Wye Surgery,201701,Public Health,Supplies & Services,
INSERTED DETAIL,13/04/2016,GI,2096491,"3,838.69",HC109627,Sarum House Surgery,201701,Public Health,Supplies & Services,
INSERTED DETAIL,13/04/2016,GI,2096492,"1,306.31",HC107826,Much Birch Surgery,201701,Public Health,Supplies & Services,
INSERTED DETAIL,13/04/2016,GI,2096493,"3,269.52",HC106310,Moorfield House Surgery,201701,Public Health,Supplies & Services,
INSERTED DETAIL,13/04/2016,GI,2096494,"2,614.76",HC101470,Cantilupe Surgery,201701,Public Health,Supplies & Services,
INSERTED DETAIL,13/04/2016,GI,2096495,"2,040.24",HC112817,REDACTED,201701,Public Health,Supplies & Services,
INSERTED DETAIL,13/04/2016,GI,2096496,"1,677.02",HC100412,Alton Street Surgery,201701,Public Health,Supplies & Services,
INSERTED DETAIL,13/04/2016,GI,2096497,"1,877.62",HC111328,Wargrave House Surgery,201701,Public Health,Supplies & Services,
INSERTED DETAIL,13/04/2016,GI,2096498,"1,145.83",HC108530,Pendeen Surgery,201701,Public Health,Supplies & Services,
INSERTED DETAIL,13/04/2016,GI,2096499,"2,530.24",HC108926,Quay House Medical Centre,201701,Public Health,Supplies & Services,
INSERTED DETAIL,13/04/2016,GI,2096500,"2,612.62",HC100946,Belmont Medical Centre,201701,Public Health,Supplies & Services,
INSERTED DETAIL,15/04/2016,GI,2098423,"21,081.34",HC107838,Ethica Resourcing Ltd,201701,Adults Operations,Employees,
INSERTED DETAIL,15/04/2016,GI,2098423,"4,024.70",HC107838,Ethica Resourcing Ltd,201701,Commissioning Adults,Employees,
INSERTED DETAIL,15/04/2016,GI,2098423,"2,283.70",HC107838,Ethica Resourcing Ltd,201701,Communities,Employees,
INSERTED DETAIL,15/04/2016,GI,2098423,"3,074.32",HC107838,Ethica Resourcing Ltd,201701,Education and Commissioning,Employees,
INSERTED DETAIL,15/04/2016,GI,2098423,"12,912.65",HC107838,Ethica Resourcing Ltd,201701,Environment and Place,Employees,
INSERTED DETAIL,15/04/2016,GI,2098423,"2,522.78",HC107838,Ethica Resourcing Ltd,201701,Mental Health,Employees,
INSERTED DETAIL,15/04/2016,GI,2098423,"4,395.14",HC107838,Ethica Resourcing Ltd,201701,Public Health,Employees,
INSERTED DETAIL,15/04/2016,GI,2098423,"1,477.70",HC107838,Ethica Resourcing Ltd,201701,Resources,Employees,
INSERTED DETAIL,15/04/2016,GI,2098423,"44,534.42",HC107838,Ethica Resourcing Ltd,201701,Safeguarding and Family Support,Employees,
INSERTED DETAIL,15/04/2016,GI,2098423,"1,605.00",HC107838,Ethica Resourcing Ltd,201701,Transformation and safeguarding,Employees,
INSERTED DETAIL,15/04/2016,GI,2098423,"2,438.88",HC107838,REDACTED,201701,Adults Operations,Employees,
INSERTED DETAIL,15/04/2016,GI,2098423,"8,253.95",HC107838,REDACTED,201701,Safeguarding and Family Support,Employees,
INSERTED DETAIL,15/04/2016,GI,2099915,"2,669.50",HC115102,REDACTED,201701,Safeguarding and Family Support,Third Party Payments,
INSERTED DETAIL,20/04/2016,WM,2099920,"2,423.93",HC108443,West Mercia Energy,201701,Environment and Place,Premises-Related Expenditure,
INSERTED DETAIL,15/04/2016,WM,2099920,"2,423.93",HC108443,West Mercia Energy,201701,Environment and Place,Premises-Related Expenditure,Energy Costs
INSERTED DETAIL,20/04/2016,WM,2099921,955.89,HC108443,West Mercia Energy,201701,Environment and Place,Premises-Related Expenditure,
INSERTED DETAIL,15/04/2016,WM,2099921,955.89,HC108443,West Mercia Energy,201701,Environment and Place,Premises-Related Expenditure,Energy Costs
INSERTED DETAIL,20/04/2016,WM,2099922,"11,578.10",HC108443,West Mercia Energy,201701,Environment and Place,Premises-Related Expenditure,
INSERTED DETAIL,15/04/2016,WM,2099922,"11,578.10",HC108443,West Mercia Energy,201701,Environment and Place,Premises-Related Expenditure,Energy Costs
INSERTED DETAIL,20/04/2016,WM,2099923,856.98,HC108443,West Mercia Energy,201701,Environment and Place,Premises-Related Expenditure,
INSERTED DETAIL,15/04/2016,WM,2099923,856.98,HC108443,West Mercia Energy,201701,Environment and Place,Premises-Related Expenditure,Energy Costs
INSERTED DETAIL,20/04/2016,WM,2099924,"1,370.98",HC108443,West Mercia Energy,201701,Schools,Premises-Related Expenditure,
INSERTED DETAIL,15/04/2016,WM,2099924,"1,370.98",HC108443,West Mercia Energy,201701,Schools,Premises-Related Expenditure,Energy Costs
INSERTED DETAIL,20/04/2016,WM,2099925,"1,539.04",HC108443,West Mercia Energy,201701,Schools,Premises-Related Expenditure,
INSERTED DETAIL,15/04/2016,WM,2099925,"1,539.04",HC108443,West Mercia Energy,201701,Schools,Premises-Related Expenditure,Energy Costs
INSERTED DETAIL,20/04/2016,WM,2099926,"1,018.01",HC108443,West Mercia Energy,201701,Environment and Place,Premises-Related Expenditure,
INSERTED DETAIL,15/04/2016,WM,2099926,"1,018.01",HC108443,West Mercia Energy,201701,Environment and Place,Premises-Related Expenditure,Energy Costs
INSERTED DETAIL,20/04/2016,WM,2099927,"1,651.50",HC108443,West Mercia Energy,201701,Schools,Premises-Related Expenditure,
INSERTED DETAIL,15/04/2016,WM,2099927,"1,651.50",HC108443,West Mercia Energy,201701,Schools,Premises-Related Expenditure,Energy Costs
INSERTED DETAIL,20/04/2016,WM,2099928,"28,735.87",HC108443,West Mercia Energy,201701,Environment and Place,Premises-Related Expenditure,
INSERTED DETAIL,15/04/2016,WM,2099928,"28,735.87",HC108443,West Mercia Energy,201701,Environment and Place,Premises-Related Expenditure,Energy Costs
INSERTED DETAIL,20/04/2016,GI,2100160,827.5,HC105069,Kingsland School Imprest,201701,Schools,Employees,
INSERTED DETAIL,20/04/2016,GI,2100160,"1,129.46",HC105069,Kingsland School Imprest,201701,Schools,Supplies & Services,
INSERTED DETAIL,20/04/2016,GI,2100202,"1,404.83",HC101143,Brampton Abbotts CE School Imprest,201701,Schools,Supplies & Services,
INSERTED DETAIL,20/04/2016,GI,2100203,"1,516.58",HC108165,NYS Corporate,201701,Safeguarding and Family Support,Employees,
INSERTED DETAIL,20/04/2016,GI,2100203,965.54,HC108165,NYS Corporate,201701,Safeguarding and Family Support,Transport-Related Expenditure,
INSERTED DETAIL,20/04/2016,GI,2100253,557.18,HC108488,REDACTED,201701,Safeguarding and Family Support,Third Party Payments,
INSERTED DETAIL,01/04/2016,GI,2100296,"1,059,320.50",HC101300,BT Plc,201701,Communities Capital,Capital Income,
INSERTED DETAIL,06/04/2016,GI,2100298,"51,000.00",HC109566,REDACTED,201701,Herefordshire Council Capital,Capital Income,
INSERTED DETAIL,22/04/2016,WM,2100314,510.1,HC108443,West Mercia Energy,201701,Schools,Premises-Related Expenditure,
INSERTED DETAIL,20/04/2016,WM,2100314,510.1,HC108443,West Mercia Energy,201701,Schools,Premises-Related Expenditure,Energy Costs
INSERTED DETAIL,22/04/2016,WM,2100328,922.63,HC108443,West Mercia Energy,201701,Schools,Premises-Related Expenditure,
INSERTED DETAIL,20/04/2016,WM,2100328,922.63,HC108443,West Mercia Energy,201701,Schools,Premises-Related Expenditure,Energy Costs
INSERTED DETAIL,22/04/2016,WM,2100330,449.85,HC108443,West Mercia Energy,201701,Schools,Premises-Related Expenditure,
INSERTED DETAIL,20/04/2016,WM,2100330,449.85,HC108443,West Mercia Energy,201701,Schools,Premises-Related Expenditure,Energy Costs
INSERTED DETAIL,22/04/2016,WM,2100331,"1,073.66",HC108443,West Mercia Energy,201701,Schools,Premises-Related Expenditure,
INSERTED DETAIL,20/04/2016,WM,2100331,"1,073.66",HC108443,West Mercia Energy,201701,Schools,Premises-Related Expenditure,Energy Costs
INSERTED DETAIL,22/04/2016,WM,2100332,984.38,HC108443,West Mercia Energy,201701,Environment and Place,Premises-Related Expenditure,
INSERTED DETAIL,20/04/2016,WM,2100332,984.38,HC108443,West Mercia Energy,201701,Environment and Place,Premises-Related Expenditure,Energy Costs
INSERTED DETAIL,22/04/2016,WM,2100333,"1,798.78",HC108443,West Mercia Energy,201701,Schools,Premises-Related Expenditure,
INSERTED DETAIL,20/04/2016,WM,2100333,"1,798.78",HC108443,West Mercia Energy,201701,Schools,Premises-Related Expenditure,Energy Costs
INSERTED DETAIL,22/04/2016,WM,2100335,498.31,HC108443,West Mercia Energy,201701,Schools,Premises-Related Expenditure,
INSERTED DETAIL,20/04/2016,WM,2100335,498.31,HC108443,West Mercia Energy,201701,Schools,Premises-Related Expenditure,Energy Costs
INSERTED DETAIL,22/04/2016,WM,2100337,991.48,HC108443,West Mercia Energy,201701,Schools,Premises-Related Expenditure,
INSERTED DETAIL,20/04/2016,WM,2100337,991.48,HC108443,West Mercia Energy,201701,Schools,Premises-Related Expenditure,Energy Costs
INSERTED DETAIL,22/04/2016,WM,2100338,553.37,HC108443,West Mercia Energy,201701,Environment and Place,Premises-Related Expenditure,
INSERTED DETAIL,20/04/2016,WM,2100338,553.37,HC108443,West Mercia Energy,201701,Environment and Place,Premises-Related Expenditure,Energy Costs
INSERTED DETAIL,22/04/2016,WM,2100339,666.77,HC108443,West Mercia Energy,201701,Environment and Place,Premises-Related Expenditure,
INSERTED DETAIL,20/04/2016,WM,2100339,666.77,HC108443,West Mercia Energy,201701,Environment and Place,Premises-Related Expenditure,Energy Costs
INSERTED DETAIL,22/04/2016,WM,2100341,734.56,HC108443,West Mercia Energy,201701,Environment and Place,Premises-Related Expenditure,
INSERTED DETAIL,20/04/2016,WM,2100341,734.56,HC108443,West Mercia Energy,201701,Environment and Place,Premises-Related Expenditure,Energy Costs
INSERTED DETAIL,22/04/2016,WM,2100342,476.57,HC108443,West Mercia Energy,201701,Environment and Place,Premises-Related Expenditure,
INSERTED DETAIL,20/04/2016,WM,2100342,476.57,HC108443,West Mercia Energy,201701,Environment and Place,Premises-Related Expenditure,Energy Costs
INSERTED DETAIL,22/04/2016,WM,2100344,796.37,HC108443,West Mercia Energy,201701,Environment and Place,Premises-Related Expenditure,
INSERTED DETAIL,20/04/2016,WM,2100344,796.37,HC108443,West Mercia Energy,201701,Environment and Place,Premises-Related Expenditure,Energy Costs
INSERTED DETAIL,22/04/2016,WM,2100346,525.93,HC108443,West Mercia Energy,201701,Environment and Place,Premises-Related Expenditure,
INSERTED DETAIL,20/04/2016,WM,2100346,525.93,HC108443,West Mercia Energy,201701,Environment and Place,Premises-Related Expenditure,Energy Costs
INSERTED DETAIL,22/04/2016,WM,2100347,463.48,HC108443,West Mercia Energy,201701,Environment and Place,Premises-Related Expenditure,
INSERTED DETAIL,20/04/2016,WM,2100347,463.48,HC108443,West Mercia Energy,201701,Environment and Place,Premises-Related Expenditure,Energy Costs
INSERTED DETAIL,22/04/2016,WM,2100349,504.72,HC108443,West Mercia Energy,201701,Environment and Place,Premises-Related Expenditure,
INSERTED DETAIL,20/04/2016,WM,2100349,504.72,HC108443,West Mercia Energy,201701,Environment and Place,Premises-Related Expenditure,Energy Costs
INSERTED DETAIL,22/04/2016,WM,2100351,"2,513.32",HC108443,West Mercia Energy,201701,Environment and Place,Premises-Related Expenditure,
INSERTED DETAIL,20/04/2016,WM,2100351,"2,513.32",HC108443,West Mercia Energy,201701,Environment and Place,Premises-Related Expenditure,Energy Costs
INSERTED DETAIL,22/04/2016,WM,2100356,886.29,HC108443,West Mercia Energy,201701,Schools,Premises-Related Expenditure,
INSERTED DETAIL,20/04/2016,WM,2100356,886.29,HC108443,West Mercia Energy,201701,Schools,Premises-Related Expenditure,Energy Costs
INSERTED DETAIL,22/04/2016,WM,2100358,417.71,HC108443,West Mercia Energy,201701,Environment and Place,Premises-Related Expenditure,
INSERTED DETAIL,20/04/2016,WM,2100358,417.71,HC108443,West Mercia Energy,201701,Environment and Place,Premises-Related Expenditure,Energy Costs
INSERTED DETAIL,22/04/2016,WM,2100359,"1,009.01",HC108443,West Mercia Energy,201701,Environment and Place,Premises-Related Expenditure,
INSERTED DETAIL,20/04/2016,WM,2100359,"1,009.01",HC108443,West Mercia Energy,201701,Environment and Place,Premises-Related Expenditure,Energy Costs
INSERTED DETAIL,22/04/2016,WM,2100360,989.13,HC108443,West Mercia Energy,201701,Environment and Place,Premises-Related Expenditure,
INSERTED DETAIL,20/04/2016,WM,2100360,989.13,HC108443,West Mercia Energy,201701,Environment and Place,Premises-Related Expenditure,Energy Costs
INSERTED DETAIL,22/04/2016,WM,2100361,418.33,HC108443,West Mercia Energy,201701,Environment and Place,Premises-Related Expenditure,
INSERTED DETAIL,20/04/2016,WM,2100361,418.33,HC108443,West Mercia Energy,201701,Environment and Place,Premises-Related Expenditure,Energy Costs
INSERTED DETAIL,22/04/2016,WM,2100362,433.82,HC108443,West Mercia Energy,201701,Environment and Place,Premises-Related Expenditure,
INSERTED DETAIL,20/04/2016,WM,2100362,433.82,HC108443,West Mercia Energy,201701,Environment and Place,Premises-Related Expenditure,Energy Costs
INSERTED DETAIL,22/04/2016,WM,2100370,"1,076.99",HC108443,West Mercia Energy,201701,Schools,Premises-Related Expenditure,
INSERTED DETAIL,20/04/2016,WM,2100370,"1,076.99",HC108443,West Mercia Energy,201701,Schools,Premises-Related Expenditure,Energy Costs
INSERTED DETAIL,22/04/2016,WM,2100378,"1,237.00",HC108443,West Mercia Energy,201701,Environment and Place,Premises-Related Expenditure,
INSERTED DETAIL,20/04/2016,WM,2100378,"1,237.00",HC108443,West Mercia Energy,201701,Environment and Place,Premises-Related Expenditure,Energy Costs
INSERTED DETAIL,22/04/2016,WM,2100384,487.85,HC108443,West Mercia Energy,201701,Environment and Place,Premises-Related Expenditure,
INSERTED DETAIL,20/04/2016,WM,2100384,487.85,HC108443,West Mercia Energy,201701,Environment and Place,Premises-Related Expenditure,Energy Costs
INSERTED DETAIL,22/04/2016,WM,2100387,592.42,HC108443,West Mercia Energy,201701,Environment and Place,Premises-Related Expenditure,
INSERTED DETAIL,20/04/2016,WM,2100387,592.42,HC108443,West Mercia Energy,201701,Environment and Place,Premises-Related Expenditure,Energy Costs
INSERTED DETAIL,22/04/2016,WM,2100390,536.28,HC108443,West Mercia Energy,201701,Environment and Place,Premises-Related Expenditure,
INSERTED DETAIL,20/04/2016,WM,2100390,536.28,HC108443,West Mercia Energy,201701,Environment and Place,Premises-Related Expenditure,Energy Costs
INSERTED DETAIL,22/04/2016,WM,2100395,556.83,HC108443,West Mercia Energy,201701,Environment and Place,Premises-Related Expenditure,
INSERTED DETAIL,20/04/2016,WM,2100395,556.83,HC108443,West Mercia Energy,201701,Environment and Place,Premises-Related Expenditure,Energy Costs
INSERTED DETAIL,21/04/2016,GI,2100450,"1,137.00",HC118940,Earl Mortimer College & Sixth Form HCC,201701,Children & Young People Capital,Capital Income,
INSERTED DETAIL,21/04/2016,GI,2100460,777,HC105841,Marlbrook  Primary School,201701,Children & Young People Capital,Capital Income,
INSERTED DETAIL,21/04/2016,GI,2100464,649,HC100677,Ashfield Park Primary School,201701,Children & Young People Capital,Capital Income,
INSERTED DETAIL,21/04/2016,GI,2100468,448,HC116432,Ewyas Harold Primary School-A/C 63712842,201701,Children & Young People Capital,Capital Income,
INSERTED DETAIL,21/04/2016,GI,2100473,794,HC118939,Riverside Primary School - HCC,201701,Children & Young People Capital,Capital Income,
INSERTED DETAIL,21/04/2016,GI,2100513,458.33,HC107574,Lugwardine Primary Academy,201701,Central Childrens Directorate Costs,Support Services,
INSERTED DETAIL,21/04/2016,GI,2100515,458.33,HC100677,Ashfield Park Primary School,201701,Central Childrens Directorate Costs,Support Services,
INSERTED DETAIL,21/04/2016,GI,2100516,458.33,HC100677,Ashfield Park Primary School,201701,Central Childrens Directorate Costs,Support Services,
INSERTED DETAIL,21/04/2016,GI,2100517,458.33,HC106103,Holmer C of E Academy,201701,Central Childrens Directorate Costs,Support Services,
INSERTED DETAIL,21/04/2016,GI,2100519,458.33,HC115716,Mordiford Church of England Primary School,201701,Central Childrens Directorate Costs,Support Services,
INSERTED DETAIL,21/04/2016,GI,2100520,458.33,HC107656,St Pauls Church of England Primary School,201701,Central Childrens Directorate Costs,Support Services,
INSERTED DETAIL,21/04/2016,GI,2100521,458.33,HC107656,St Pauls Church of England Primary School,201701,Central Childrens Directorate Costs,Support Services,
INSERTED DETAIL,21/04/2016,GI,2100522,458.33,HC115884,St Thomas Cantilupe CE Academy,201701,Central Childrens Directorate Costs,Support Services,
INSERTED DETAIL,21/04/2016,GI,2100524,458.33,HC105572,Lady Hawkins School (Academy),201701,Central Childrens Directorate Costs,Support Services,
INSERTED DETAIL,21/04/2016,GI,2100528,458.33,HC111508,Wigmore High School (Academy),201701,Central Childrens Directorate Costs,Support Services,
INSERTED DETAIL,21/04/2016,GI,2100530,458.33,HC104727,John Kyrle High School,201701,Central Childrens Directorate Costs,Support Services,
INSERTED DETAIL,21/04/2016,GI,2100531,458.33,HC104727,John Kyrle High School,201701,Central Childrens Directorate Costs,Support Services,
INSERTED DETAIL,21/04/2016,GI,2100534,458.33,HC101027,Bishop Of Herefords Bluecoat School,201701,Central Childrens Directorate Costs,Support Services,
INSERTED DETAIL,21/04/2016,GI,2100536,458.33,HC101027,Bishop Of Herefords Bluecoat School,201701,Central Childrens Directorate Costs,Support Services,
INSERTED DETAIL,21/04/2016,GI,2100538,458.33,HC101027,Bishop Of Herefords Bluecoat School,201701,Central Childrens Directorate Costs,Support Services,
INSERTED DETAIL,21/04/2016,GI,2100540,458.33,HC101027,Bishop Of Herefords Bluecoat School,201701,Central Childrens Directorate Costs,Support Services,
INSERTED DETAIL,21/04/2016,GI,2100542,458.33,HC101027,Bishop Of Herefords Bluecoat School,201701,Central Childrens Directorate Costs,Support Services,
INSERTED DETAIL,21/04/2016,GI,2100545,458.33,HC110648,BAE Trust T/A The Hereford Academy,201701,Central Childrens Directorate Costs,Support Services,
INSERTED DETAIL,21/04/2016,GI,2100546,458.33,HC110648,BAE Trust T/A The Hereford Academy,201701,Central Childrens Directorate Costs,Support Services,
INSERTED DETAIL,21/04/2016,GI,2100550,458.33,HC110794,The Steiner Academy Hereford,201701,Central Childrens Directorate Costs,Support Services,
INSERTED DETAIL,21/04/2016,GI,2100553,"1,033.33",HC113960,Barrs Court Academy,201701,Central Childrens Directorate Costs,Support Services,
INSERTED DETAIL,21/04/2016,GI,2100554,"1,033.33",HC113960,Barrs Court Academy,201701,Central Childrens Directorate Costs,Support Services,
INSERTED DETAIL,21/04/2016,GI,2100555,"1,033.33",HC113960,Barrs Court Academy,201701,Central Childrens Directorate Costs,Support Services,
INSERTED DETAIL,21/04/2016,GI,2100556,"1,033.33",HC113960,Barrs Court Academy,201701,Central Childrens Directorate Costs,Support Services,
INSERTED DETAIL,21/04/2016,GI,2100557,458.33,HC113960,Barrs Court Academy,201701,Central Childrens Directorate Costs,Support Services,
INSERTED DETAIL,21/04/2016,GI,2100558,719.17,HC113960,Barrs Court Academy,201701,Central Childrens Directorate Costs,Support Services,
INSERTED DETAIL,21/04/2016,GI,2100559,719.17,HC113960,Barrs Court Academy,201701,Central Childrens Directorate Costs,Support Services,
INSERTED DETAIL,21/04/2016,GI,2100560,458.33,HC113960,Barrs Court Academy,201701,Central Childrens Directorate Costs,Support Services,
INSERTED DETAIL,21/04/2016,GI,2100561,719.17,HC113960,Barrs Court Academy,201701,Central Childrens Directorate Costs,Support Services,
INSERTED DETAIL,21/04/2016,GI,2100562,"1,033.33",HC113960,Barrs Court Academy,201701,Central Childrens Directorate Costs,Support Services,
INSERTED DETAIL,21/04/2016,GI,2100563,"1,033.33",HC113960,Barrs Court Academy,201701,Central Childrens Directorate Costs,Support Services,
INSERTED DETAIL,21/04/2016,GI,2100564,719.17,HC113960,Barrs Court Academy,201701,Central Childrens Directorate Costs,Support Services,
INSERTED DETAIL,21/04/2016,GI,2100565,"1,033.33",HC113960,Barrs Court Academy,201701,Central Childrens Directorate Costs,Support Services,
INSERTED DETAIL,21/04/2016,GI,2100566,458.33,HC113960,Barrs Court Academy,201701,Central Childrens Directorate Costs,Support Services,
INSERTED DETAIL,21/04/2016,GI,2100567,"1,399.17",HC113960,Barrs Court Academy,201701,Central Childrens Directorate Costs,Support Services,
INSERTED DETAIL,21/04/2016,GI,2100568,719.17,HC113960,Barrs Court Academy,201701,Central Childrens Directorate Costs,Support Services,
INSERTED DETAIL,21/04/2016,GI,2100569,719.17,HC113960,Barrs Court Academy,201701,Central Childrens Directorate Costs,Support Services,
INSERTED DETAIL,21/04/2016,GI,2100570,"1,033.33",HC113960,Barrs Court Academy,201701,Central Childrens Directorate Costs,Support Services,
INSERTED DETAIL,21/04/2016,GI,2100571,719.17,HC113960,Barrs Court Academy,201701,Central Childrens Directorate Costs,Support Services,
INSERTED DETAIL,21/04/2016,GI,2100572,719.17,HC113960,Barrs Court Academy,201701,Central Childrens Directorate Costs,Support Services,
INSERTED DETAIL,21/04/2016,GI,2100573,458.33,HC113960,Barrs Court Academy,201701,Central Childrens Directorate Costs,Support Services,
INSERTED DETAIL,21/04/2016,GI,2100574,"1,033.33",HC113960,Barrs Court Academy,201701,Central Childrens Directorate Costs,Support Services,
INSERTED DETAIL,21/04/2016,GI,2100575,"1,033.33",HC113960,Barrs Court Academy,201701,Central Childrens Directorate Costs,Support Services,
INSERTED DETAIL,21/04/2016,GI,2100576,719.17,HC113960,Barrs Court Academy,201701,Central Childrens Directorate Costs,Support Services,
INSERTED DETAIL,21/04/2016,GI,2100577,719.17,HC113960,Barrs Court Academy,201701,Central Childrens Directorate Costs,Support Services,
INSERTED DETAIL,21/04/2016,GI,2100578,"1,033.33",HC113960,Barrs Court Academy,201701,Central Childrens Directorate Costs,Support Services,
INSERTED DETAIL,21/04/2016,GI,2100579,"1,033.33",HC113960,Barrs Court Academy,201701,Central Childrens Directorate Costs,Support Services,
INSERTED DETAIL,21/04/2016,GI,2100580,719.17,HC113960,Barrs Court Academy,201701,Central Childrens Directorate Costs,Support Services,
INSERTED DETAIL,21/04/2016,GI,2100581,"1,399.17",HC113960,Barrs Court Academy,201701,Central Childrens Directorate Costs,Support Services,
INSERTED DETAIL,21/04/2016,GI,2100582,"1,033.33",HC113960,Barrs Court Academy,201701,Central Childrens Directorate Costs,Support Services,
INSERTED DETAIL,21/04/2016,GI,2100583,"1,033.33",HC113960,Barrs Court Academy,201701,Central Childrens Directorate Costs,Support Services,
INSERTED DETAIL,21/04/2016,GI,2100584,458.33,HC113960,Barrs Court Academy,201701,Central Childrens Directorate Costs,Support Services,
INSERTED DETAIL,21/04/2016,GI,2100585,719.17,HC113960,Barrs Court Academy,201701,Central Childrens Directorate Costs,Support Services,
INSERTED DETAIL,21/04/2016,GI,2100586,458.33,HC113960,Barrs Court Academy,201701,Central Childrens Directorate Costs,Support Services,
INSERTED DETAIL,21/04/2016,GI,2100587,"1,033.33",HC113960,Barrs Court Academy,201701,Central Childrens Directorate Costs,Support Services,
INSERTED DETAIL,21/04/2016,GI,2100588,458.33,HC113960,Barrs Court Academy,201701,Central Childrens Directorate Costs,Support Services,
INSERTED DETAIL,21/04/2016,GI,2100589,458.33,HC113960,Barrs Court Academy,201701,Central Childrens Directorate Costs,Support Services,
INSERTED DETAIL,21/04/2016,GI,2100590,719.17,HC113960,Barrs Court Academy,201701,Central Childrens Directorate Costs,Support Services,
INSERTED DETAIL,21/04/2016,GI,2100591,719.17,HC113960,Barrs Court Academy,201701,Central Childrens Directorate Costs,Support Services,
INSERTED DETAIL,21/04/2016,GI,2100592,719.17,HC113960,Barrs Court Academy,201701,Central Childrens Directorate Costs,Support Services,
INSERTED DETAIL,21/04/2016,GI,2100593,"1,033.33",HC113960,Barrs Court Academy,201701,Central Childrens Directorate Costs,Support Services,
INSERTED DETAIL,21/04/2016,GI,2100594,"1,033.33",HC113960,Barrs Court Academy,201701,Central Childrens Directorate Costs,Support Services,
INSERTED DETAIL,21/04/2016,GI,2100595,"1,399.17",HC113960,Barrs Court Academy,201701,Central Childrens Directorate Costs,Support Services,
INSERTED DETAIL,21/04/2016,GI,2100596,"1,399.17",HC113960,Barrs Court Academy,201701,Central Childrens Directorate Costs,Support Services,
INSERTED DETAIL,21/04/2016,GI,2100597,719.17,HC113960,Barrs Court Academy,201701,Central Childrens Directorate Costs,Support Services,
INSERTED DETAIL,21/04/2016,GI,2100598,719.17,HC113960,Barrs Court Academy,201701,Central Childrens Directorate Costs,Support Services,
INSERTED DETAIL,21/04/2016,GI,2100599,"1,399.17",HC113960,Barrs Court Academy,201701,Central Childrens Directorate Costs,Support Services,
INSERTED DETAIL,21/04/2016,GI,2100600,719.17,HC113960,Barrs Court Academy,201701,Central Childrens Directorate Costs,Support Services,
INSERTED DETAIL,21/04/2016,GI,2100601,719.17,HC113960,Barrs Court Academy,201701,Central Childrens Directorate Costs,Support Services,
INSERTED DETAIL,21/04/2016,GI,2100602,719.17,HC113960,Barrs Court Academy,201701,Central Childrens Directorate Costs,Support Services,
INSERTED DETAIL,21/04/2016,GI,2100603,719.17,HC113960,Barrs Court Academy,201701,Central Childrens Directorate Costs,Support Services,
INSERTED DETAIL,21/04/2016,GI,2100604,"1,033.33",HC113960,Barrs Court Academy,201701,Central Childrens Directorate Costs,Support Services,
INSERTED DETAIL,21/04/2016,GI,2100605,719.17,HC113960,Barrs Court Academy,201701,Central Childrens Directorate Costs,Support Services,
INSERTED DETAIL,21/04/2016,GI,2100606,458.33,HC113960,Barrs Court Academy,201701,Central Childrens Directorate Costs,Support Services,
INSERTED DETAIL,21/04/2016,GI,2100607,719.17,HC113960,Barrs Court Academy,201701,Central Childrens Directorate Costs,Support Services,
INSERTED DETAIL,21/04/2016,GI,2100608,719.17,HC113960,Barrs Court Academy,201701,Central Childrens Directorate Costs,Support Services,
INSERTED DETAIL,21/04/2016,GI,2100609,"1,033.33",HC113960,Barrs Court Academy,201701,Central Childrens Directorate Costs,Support Services,
INSERTED DETAIL,21/04/2016,GI,2100610,"1,033.33",HC113960,Barrs Court Academy,201701,Central Childrens Directorate Costs,Support Services,
INSERTED DETAIL,21/04/2016,GI,2100611,"1,033.33",HC113960,Barrs Court Academy,201701,Central Childrens Directorate Costs,Support Services,
INSERTED DETAIL,21/04/2016,GI,2100612,"1,033.33",HC113960,Barrs Court Academy,201701,Central Childrens Directorate Costs,Support Services,
INSERTED DETAIL,21/04/2016,GI,2100613,"1,399.17",HC113960,Barrs Court Academy,201701,Central Childrens Directorate Costs,Support Services,
INSERTED DETAIL,21/04/2016,GI,2100614,"1,033.33",HC113960,Barrs Court Academy,201701,Central Childrens Directorate Costs,Support Services,
INSERTED DETAIL,21/04/2016,GI,2100615,"1,033.33",HC113960,Barrs Court Academy,201701,Central Childrens Directorate Costs,Support Services,
INSERTED DETAIL,21/04/2016,GI,2100616,"1,399.17",HC113960,Barrs Court Academy,201701,Central Childrens Directorate Costs,Support Services,
INSERTED DETAIL,21/04/2016,GI,2100617,"1,033.33",HC113960,Barrs Court Academy,201701,Central Childrens Directorate Costs,Support Services,
INSERTED DETAIL,21/04/2016,GI,2100618,719.17,HC113960,Barrs Court Academy,201701,Central Childrens Directorate Costs,Support Services,
INSERTED DETAIL,21/04/2016,GI,2100619,719.17,HC113960,Barrs Court Academy,201701,Central Childrens Directorate Costs,Support Services,
INSERTED DETAIL,21/04/2016,GI,2100620,719.17,HC113960,Barrs Court Academy,201701,Central Childrens Directorate Costs,Support Services,
INSERTED DETAIL,21/04/2016,GI,2100621,719.17,HC113960,Barrs Court Academy,201701,Central Childrens Directorate Costs,Support Services,
INSERTED DETAIL,21/04/2016,GI,2100622,719.17,HC113960,Barrs Court Academy,201701,Central Childrens Directorate Costs,Support Services,
INSERTED DETAIL,21/04/2016,GI,2100623,719.17,HC117835,The Brookfield School (Academy),201701,Central Childrens Directorate Costs,Support Services,
INSERTED DETAIL,21/04/2016,GI,2100624,719.17,HC117835,The Brookfield School (Academy),201701,Central Childrens Directorate Costs,Support Services,
INSERTED DETAIL,21/04/2016,GI,2100625,458.33,HC117835,The Brookfield School (Academy),201701,Central Childrens Directorate Costs,Support Services,
INSERTED DETAIL,21/04/2016,GI,2100626,719.17,HC117835,The Brookfield School (Academy),201701,Central Childrens Directorate Costs,Support Services,
INSERTED DETAIL,21/04/2016,GI,2100627,458.33,HC117835,The Brookfield School (Academy),201701,Central Childrens Directorate Costs,Support Services,
INSERTED DETAIL,21/04/2016,GI,2100628,719.17,HC117835,The Brookfield School (Academy),201701,Central Childrens Directorate Costs,Support Services,
INSERTED DETAIL,21/04/2016,GI,2100629,458.33,HC117835,The Brookfield School (Academy),201701,Central Childrens Directorate Costs,Support Services,
INSERTED DETAIL,21/04/2016,GI,2100630,458.33,HC117835,The Brookfield School (Academy),201701,Central Childrens Directorate Costs,Support Services,
INSERTED DETAIL,21/04/2016,GI,2100631,458.33,HC117835,The Brookfield School (Academy),201701,Central Childrens Directorate Costs,Support Services,
INSERTED DETAIL,21/04/2016,GI,2100632,719.17,HC117835,The Brookfield School (Academy),201701,Central Childrens Directorate Costs,Support Services,
INSERTED DETAIL,21/04/2016,GI,2100633,719.17,HC117835,The Brookfield School (Academy),201701,Central Childrens Directorate Costs,Support Services,
INSERTED DETAIL,21/04/2016,GI,2100634,719.17,HC117835,The Brookfield School (Academy),201701,Central Childrens Directorate Costs,Support Services,
INSERTED DETAIL,21/04/2016,GI,2100635,719.17,HC117835,The Brookfield School (Academy),201701,Central Childrens Directorate Costs,Support Services,
INSERTED DETAIL,21/04/2016,GI,2100636,719.17,HC117835,The Brookfield School (Academy),201701,Central Childrens Directorate Costs,Support Services,
INSERTED DETAIL,21/04/2016,GI,2100637,719.17,HC117835,The Brookfield School (Academy),201701,Central Childrens Directorate Costs,Support Services,
INSERTED DETAIL,21/04/2016,GI,2100638,719.17,HC117835,The Brookfield School (Academy),201701,Central Childrens Directorate Costs,Support Services,
INSERTED DETAIL,21/04/2016,GI,2100639,458.33,HC117835,The Brookfield School (Academy),201701,Central Childrens Directorate Costs,Support Services,
INSERTED DETAIL,21/04/2016,GI,2100640,458.33,HC117835,The Brookfield School (Academy),201701,Central Childrens Directorate Costs,Support Services,
INSERTED DETAIL,21/04/2016,GI,2100641,719.17,HC117835,The Brookfield School (Academy),201701,Central Childrens Directorate Costs,Support Services,
INSERTED DETAIL,21/04/2016,GI,2100642,719.17,HC117835,The Brookfield School (Academy),201701,Central Childrens Directorate Costs,Support Services,
INSERTED DETAIL,21/04/2016,GI,2100643,458.33,HC117835,The Brookfield School (Academy),201701,Central Childrens Directorate Costs,Support Services,
INSERTED DETAIL,21/04/2016,GI,2100644,719.17,HC117835,The Brookfield School (Academy),201701,Central Childrens Directorate Costs,Support Services,
INSERTED DETAIL,21/04/2016,GI,2100645,458.33,HC117835,The Brookfield School (Academy),201701,Central Childrens Directorate Costs,Support Services,
INSERTED DETAIL,21/04/2016,GI,2100646,719.17,HC117835,The Brookfield School (Academy),201701,Central Childrens Directorate Costs,Support Services,
INSERTED DETAIL,21/04/2016,GI,2100647,719.17,HC117835,The Brookfield School (Academy),201701,Central Childrens Directorate Costs,Support Services,
INSERTED DETAIL,21/04/2016,GI,2100648,458.33,HC105841,Marlbrook  Primary School,201701,Central Childrens Directorate Costs,Support Services,
INSERTED DETAIL,21/04/2016,GI,2100650,458.33,HC111701,Whitecross Hereford Academy,201701,Central Childrens Directorate Costs,Support Services,
INSERTED DETAIL,21/04/2016,GI,2100651,458.33,HC104739,John Masefield High School (Academy),201701,Central Childrens Directorate Costs,Support Services,
INSERTED DETAIL,21/04/2016,GI,2100654,458.33,HC101027,Bishop Of Herefords Bluecoat School,201701,Central Childrens Directorate Costs,Support Services,
INSERTED DETAIL,21/04/2016,GI,2100655,458.33,HC101027,Bishop Of Herefords Bluecoat School,201701,Central Childrens Directorate Costs,Support Services,
INSERTED DETAIL,21/04/2016,GI,2100657,458.33,HC101027,Bishop Of Herefords Bluecoat School,201701,Central Childrens Directorate Costs,Support Services,
INSERTED DETAIL,21/04/2016,GI,2100658,458.33,HC110083,St Mary's R C High School,201701,Central Childrens Directorate Costs,Support Services,
INSERTED DETAIL,21/04/2016,GI,2100660,458.33,HC110648,BAE Trust T/A The Hereford Academy,201701,Central Childrens Directorate Costs,Support Services,
INSERTED DETAIL,21/04/2016,GI,2100661,719.17,HC117835,The Brookfield School (Academy),201701,Central Childrens Directorate Costs,Support Services,
INSERTED DETAIL,21/04/2016,GI,2100662,719.17,HC117835,The Brookfield School (Academy),201701,Central Childrens Directorate Costs,Support Services,
INSERTED DETAIL,21/04/2016,GI,2100663,719.17,HC117835,The Brookfield School (Academy),201701,Central Childrens Directorate Costs,Support Services,
INSERTED DETAIL,21/04/2016,GI,2100664,458.33,HC113960,Barrs Court Academy,201701,Central Childrens Directorate Costs,Support Services,
INSERTED DETAIL,21/04/2016,GI,2100665,"1,033.33",HC113960,Barrs Court Academy,201701,Central Childrens Directorate Costs,Support Services,
INSERTED DETAIL,21/04/2016,GI,2100666,"1,399.17",HC113960,Barrs Court Academy,201701,Central Childrens Directorate Costs,Support Services,
INSERTED DETAIL,21/04/2016,GI,2100667,"1,033.33",HC113960,Barrs Court Academy,201701,Central Childrens Directorate Costs,Support Services,
INSERTED DETAIL,21/04/2016,GI,2100668,"1,033.33",HC113960,Barrs Court Academy,201701,Central Childrens Directorate Costs,Support Services,
INSERTED DETAIL,21/04/2016,GI,2100669,719.17,HC113960,Barrs Court Academy,201701,Central Childrens Directorate Costs,Support Services,
INSERTED DETAIL,21/04/2016,GI,2100670,719.17,HC113960,Barrs Court Academy,201701,Central Childrens Directorate Costs,Support Services,
INSERTED DETAIL,21/04/2016,GI,2100671,"1,033.33",HC113960,Barrs Court Academy,201701,Central Childrens Directorate Costs,Support Services,
INSERTED DETAIL,21/04/2016,GI,2100672,458.33,HC113960,Barrs Court Academy,201701,Central Childrens Directorate Costs,Support Services,
INSERTED DETAIL,21/04/2016,GI,2100673,458.33,HC113960,Barrs Court Academy,201701,Central Childrens Directorate Costs,Support Services,
INSERTED DETAIL,21/04/2016,GI,2100674,458.33,HC113960,Barrs Court Academy,201701,Central Childrens Directorate Costs,Support Services,
INSERTED DETAIL,21/04/2016,GI,2100675,458.33,HC113960,Barrs Court Academy,201701,Central Childrens Directorate Costs,Support Services,
INSERTED DETAIL,21/04/2016,GI,2100676,"1,033.33",HC113960,Barrs Court Academy,201701,Central Childrens Directorate Costs,Support Services,
INSERTED DETAIL,21/04/2016,GI,2100677,"1,399.17",HC113960,Barrs Court Academy,201701,Central Childrens Directorate Costs,Support Services,
INSERTED DETAIL,21/04/2016,GI,2100678,"1,033.33",HC113960,Barrs Court Academy,201701,Central Childrens Directorate Costs,Support Services,
INSERTED DETAIL,21/04/2016,GI,2100679,"2,141.67",HC117835,The Brookfield School (Academy),201701,Central Childrens Directorate Costs,Support Services,
INSERTED DETAIL,21/04/2016,GI,2100681,458.33,HC115994,Marden Primary Academy,201701,Central Childrens Directorate Costs,Support Services,
INSERTED DETAIL,21/04/2016,GI,2100682,458.33,HC104870,Kingstone High School (Academy),201701,Central Childrens Directorate Costs,Support Services,
INSERTED DETAIL,21/04/2016,GI,2100683,458.33,HC110648,BAE Trust T/A The Hereford Academy,201701,Central Childrens Directorate Costs,Support Services,
INSERTED DETAIL,21/04/2016,GI,2100684,458.33,HC117835,The Brookfield School (Academy),201701,Central Childrens Directorate Costs,Support Services,
INSERTED DETAIL,21/04/2016,GI,2100685,458.33,HC117835,The Brookfield School (Academy),201701,Central Childrens Directorate Costs,Support Services,
INSERTED DETAIL,21/04/2016,GI,2100687,458.33,HC117835,The Brookfield School (Academy),201701,Central Childrens Directorate Costs,Support Services,
INSERTED DETAIL,21/04/2016,GI,2100689,719.17,HC113960,Barrs Court Academy,201701,Central Childrens Directorate Costs,Support Services,
INSERTED DETAIL,21/04/2016,GI,2100690,458.33,HC113960,Barrs Court Academy,201701,Central Childrens Directorate Costs,Support Services,
INSERTED DETAIL,21/04/2016,GI,2100691,719.17,HC113960,Barrs Court Academy,201701,Central Childrens Directorate Costs,Support Services,
INSERTED DETAIL,21/04/2016,GI,2100692,719.17,HC113960,Barrs Court Academy,201701,Central Childrens Directorate Costs,Support Services,
INSERTED DETAIL,21/04/2016,GI,2100693,458.33,HC102152,Ashperton Primary Academy,201701,Central Childrens Directorate Costs,Support Services,
INSERTED DETAIL,21/04/2016,GI,2100696,458.33,HC104761,Herefordshire Marches Federation-Lord Scudamore,201701,Central Childrens Directorate Costs,Support Services,
INSERTED DETAIL,21/04/2016,GI,2100697,458.33,HC105572,Lady Hawkins School (Academy),201701,Central Childrens Directorate Costs,Support Services,
INSERTED DETAIL,21/04/2016,GI,2100698,458.33,HC116854,Fairfield High School (Academy),201701,Central Childrens Directorate Costs,Support Services,
INSERTED DETAIL,21/04/2016,GI,2100699,458.33,HC113960,Barrs Court Academy,201701,Central Childrens Directorate Costs,Support Services,
INSERTED DETAIL,21/04/2016,GI,2100701,719.17,HC117835,The Brookfield School (Academy),201701,Central Childrens Directorate Costs,Support Services,
INSERTED DETAIL,21/04/2016,GI,2100702,719.17,HC117835,The Brookfield School (Academy),201701,Central Childrens Directorate Costs,Support Services,
INSERTED DETAIL,21/04/2016,GI,2100703,458.33,HC117835,The Brookfield School (Academy),201701,Central Childrens Directorate Costs,Support Services,
INSERTED DETAIL,21/04/2016,GI,2100704,458.33,HC117835,The Brookfield School (Academy),201701,Central Childrens Directorate Costs,Support Services,
INSERTED DETAIL,21/04/2016,GI,2100705,719.17,HC117835,The Brookfield School (Academy),201701,Central Childrens Directorate Costs,Support Services,
INSERTED DETAIL,21/04/2016,GI,2100706,458.33,HC117835,The Brookfield School (Academy),201701,Central Childrens Directorate Costs,Support Services,
INSERTED DETAIL,21/04/2016,GI,2100707,719.17,HC117835,The Brookfield School (Academy),201701,Central Childrens Directorate Costs,Support Services,
INSERTED DETAIL,21/04/2016,GI,2100708,719.17,HC107656,St Pauls Church of England Primary School,201701,Central Childrens Directorate Costs,Support Services,
INSERTED DETAIL,21/04/2016,GI,2100710,458.33,HC110794,The Steiner Academy Hereford,201701,Central Childrens Directorate Costs,Support Services,
INSERTED DETAIL,21/04/2016,GI,2100711,"1,033.33",HC113960,Barrs Court Academy,201701,Central Childrens Directorate Costs,Support Services,
INSERTED DETAIL,21/04/2016,GI,2100712,458.33,HC118939,Riverside Primary School - HCC,201701,Central Childrens Directorate Costs,Support Services,
INSERTED DETAIL,21/04/2016,GI,2100713,458.33,HC102183,Herefordshire Marches Federation-Kings Caple,201701,Central Childrens Directorate Costs,Support Services,
INSERTED DETAIL,21/04/2016,GI,2100715,458.33,HC107574,Lugwardine Primary Academy,201701,Central Childrens Directorate Costs,Support Services,
INSERTED DETAIL,21/04/2016,GI,2100716,458.33,HC118939,Riverside Primary School - HCC,201701,Central Childrens Directorate Costs,Support Services,
INSERTED DETAIL,21/04/2016,GI,2100717,719.17,HC117835,The Brookfield School (Academy),201701,Central Childrens Directorate Costs,Support Services,
INSERTED DETAIL,21/04/2016,GI,2100720,458.33,HC115884,St Thomas Cantilupe CE Academy,201701,Central Childrens Directorate Costs,Support Services,
INSERTED DETAIL,21/04/2016,GI,2100723,458.33,HC118940,Earl Mortimer College & Sixth Form HCC,201701,Central Childrens Directorate Costs,Support Services,
INSERTED DETAIL,21/04/2016,GI,2100730,458.33,HC113960,Barrs Court Academy,201701,Central Childrens Directorate Costs,Support Services,
INSERTED DETAIL,21/04/2016,GI,2100731,458.33,HC113960,Barrs Court Academy,201701,Central Childrens Directorate Costs,Support Services,
INSERTED DETAIL,21/04/2016,GI,2100732,458.33,HC113960,Barrs Court Academy,201701,Central Childrens Directorate Costs,Support Services,
INSERTED DETAIL,21/04/2016,GI,2100733,"1,033.33",HC113960,Barrs Court Academy,201701,Central Childrens Directorate Costs,Support Services,
INSERTED DETAIL,21/04/2016,GI,2100734,458.33,HC110083,St Mary's R C High School,201701,Central Childrens Directorate Costs,Support Services,
INSERTED DETAIL,21/04/2016,GI,2100735,458.33,HC117835,The Brookfield School (Academy),201701,Central Childrens Directorate Costs,Support Services,
INSERTED DETAIL,21/04/2016,GI,2100737,458.33,HC101027,Bishop Of Herefords Bluecoat School,201701,Central Childrens Directorate Costs,Support Services,
INSERTED DETAIL,21/04/2016,GI,2100738,458.33,HC113960,Barrs Court Academy,201701,Central Childrens Directorate Costs,Support Services,
INSERTED DETAIL,21/04/2016,GI,2100740,"1,033.33",HC113960,Barrs Court Academy,201701,Central Childrens Directorate Costs,Support Services,
INSERTED DETAIL,21/04/2016,GI,2100741,458.33,HC113960,Barrs Court Academy,201701,Central Childrens Directorate Costs,Support Services,
INSERTED DETAIL,21/04/2016,GI,2100742,"1,033.33",HC113960,Barrs Court Academy,201701,Central Childrens Directorate Costs,Support Services,
INSERTED DETAIL,21/04/2016,GI,2100746,458.33,HC105841,Marlbrook  Primary School,201701,Central Childrens Directorate Costs,Support Services,
INSERTED DETAIL,21/04/2016,GI,2100747,458.33,HC113960,Barrs Court Academy,201701,Central Childrens Directorate Costs,Support Services,
INSERTED DETAIL,21/04/2016,GI,2100748,458.33,HC117835,The Brookfield School (Academy),201701,Central Childrens Directorate Costs,Support Services,
INSERTED DETAIL,21/04/2016,GI,2100749,458.33,HC117835,The Brookfield School (Academy),201701,Central Childrens Directorate Costs,Support Services,
INSERTED DETAIL,21/04/2016,GI,2100751,458.33,HC104739,John Masefield High School (Academy),201701,Central Childrens Directorate Costs,Support Services,
INSERTED DETAIL,21/04/2016,GI,2100752,458.33,HC113960,Barrs Court Academy,201701,Central Childrens Directorate Costs,Support Services,
INSERTED DETAIL,21/04/2016,GI,2100753,458.33,HC113960,Barrs Court Academy,201701,Central Childrens Directorate Costs,Support Services,
INSERTED DETAIL,21/04/2016,GI,2100754,719.17,HC113960,Barrs Court Academy,201701,Central Childrens Directorate Costs,Support Services,
INSERTED DETAIL,21/04/2016,GI,2100755,458.33,HC113960,Barrs Court Academy,201701,Central Childrens Directorate Costs,Support Services,
INSERTED DETAIL,21/04/2016,GI,2100756,458.33,HC113960,Barrs Court Academy,201701,Central Childrens Directorate Costs,Support Services,
INSERTED DETAIL,21/04/2016,GI,2100758,458.33,HC110648,BAE Trust T/A The Hereford Academy,201701,Central Childrens Directorate Costs,Support Services,
INSERTED DETAIL,21/04/2016,GI,2100759,458.33,HC101027,Bishop Of Herefords Bluecoat School,201701,Central Childrens Directorate Costs,Support Services,
INSERTED DETAIL,21/04/2016,GI,2100760,458.33,HC101027,Bishop Of Herefords Bluecoat School,201701,Central Childrens Directorate Costs,Support Services,
INSERTED DETAIL,21/04/2016,GI,2100762,458.33,HC111701,Whitecross Hereford Academy,201701,Central Childrens Directorate Costs,Support Services,
INSERTED DETAIL,21/04/2016,GI,2100763,458.33,HC117835,The Brookfield School (Academy),201701,Central Childrens Directorate Costs,Support Services,
INSERTED DETAIL,21/04/2016,GI,2100764,458.33,HC117835,The Brookfield School (Academy),201701,Central Childrens Directorate Costs,Support Services,
INSERTED DETAIL,21/04/2016,GI,2100765,458.33,HC117215,Robert Owen Academey,201701,Central Childrens Directorate Costs,Support Services,
INSERTED DETAIL,21/04/2016,GI,2100767,458.33,HC117835,The Brookfield School (Academy),201701,Central Childrens Directorate Costs,Support Services,
INSERTED DETAIL,21/04/2016,GI,2100771,458.33,HC118939,Riverside Primary School - HCC,201701,Central Childrens Directorate Costs,Support Services,
INSERTED DETAIL,21/04/2016,GI,2100773,458.33,HC102152,Ashperton Primary Academy,201701,Central Childrens Directorate Costs,Support Services,
INSERTED DETAIL,21/04/2016,GI,2100774,"1,078.01",HC114595,Derwen College,201701,Central Childrens Directorate Costs,Support Services,
INSERTED DETAIL,21/04/2016,GI,2100775,"1,104.35",HC114595,Derwen College,201701,Central Childrens Directorate Costs,Support Services,
INSERTED DETAIL,21/04/2016,GI,2100776,"1,136.31",HC114595,Derwen College,201701,Central Childrens Directorate Costs,Support Services,
INSERTED DETAIL,21/04/2016,GI,2100777,"1,104.35",HC114595,Derwen College,201701,Central Childrens Directorate Costs,Support Services,
INSERTED DETAIL,21/04/2016,GI,2100778,"1,136.31",HC114595,Derwen College,201701,Central Childrens Directorate Costs,Support Services,
INSERTED DETAIL,21/04/2016,GI,2100779,"1,136.31",HC114595,Derwen College,201701,Central Childrens Directorate Costs,Support Services,
INSERTED DETAIL,21/04/2016,GI,2100780,"1,136.31",HC114595,Derwen College,201701,Central Childrens Directorate Costs,Support Services,
INSERTED DETAIL,21/04/2016,GI,2100781,"1,299.31",HC114595,Derwen College,201701,Central Childrens Directorate Costs,Support Services,
INSERTED DETAIL,21/04/2016,GI,2100782,"1,145.72",HC114595,Derwen College,201701,Central Childrens Directorate Costs,Support Services,
INSERTED DETAIL,21/04/2016,GI,2100783,629.49,HC114595,Derwen College,201701,Central Childrens Directorate Costs,Support Services,
INSERTED DETAIL,21/04/2016,GI,2100784,629.49,HC114595,Derwen College,201701,Central Childrens Directorate Costs,Support Services,
INSERTED DETAIL,21/04/2016,GI,2100785,629.49,HC114595,Derwen College,201701,Central Childrens Directorate Costs,Support Services,
INSERTED DETAIL,21/04/2016,GI,2100786,629.49,HC114595,Derwen College,201701,Central Childrens Directorate Costs,Support Services,
INSERTED DETAIL,21/04/2016,GI,2100787,629.49,HC114595,Derwen College,201701,Central Childrens Directorate Costs,Support Services,
INSERTED DETAIL,21/04/2016,GI,2100788,"4,789.83",HC117656,Ruskin Mill Trust (Glasshouse College),201701,Central Childrens Directorate Costs,Support Services,
INSERTED DETAIL,21/04/2016,GI,2100789,"4,185.50",HC114612,Hereward College,201701,Central Childrens Directorate Costs,Support Services,
INSERTED DETAIL,21/04/2016,GI,2100790,"1,676.68",HC103935,Herefordshire & Ludlow College,201701,Central Childrens Directorate Costs,Support Services,
INSERTED DETAIL,21/04/2016,GI,2100791,950,HC103935,Herefordshire & Ludlow College,201701,Central Childrens Directorate Costs,Support Services,
INSERTED DETAIL,21/04/2016,GI,2100792,700,HC103935,Herefordshire & Ludlow College,201701,Central Childrens Directorate Costs,Support Services,
INSERTED DETAIL,21/04/2016,GI,2100798,447.92,HC103935,Herefordshire & Ludlow College,201701,Central Childrens Directorate Costs,Support Services,
INSERTED DETAIL,21/04/2016,GI,2100800,447.92,HC103935,Herefordshire & Ludlow College,201701,Central Childrens Directorate Costs,Support Services,
INSERTED DETAIL,21/04/2016,GI,2100803,"3,337.92",HC114610,New College,201701,Central Childrens Directorate Costs,Support Services,
INSERTED DETAIL,21/04/2016,GI,2100804,"2,799.30",HC108927,Queen Alexandra College,201701,Central Childrens Directorate Costs,Support Services,
INSERTED DETAIL,21/04/2016,GI,2100805,835.42,HC112582,Royal National College,201701,Central Childrens Directorate Costs,Support Services,
INSERTED DETAIL,21/04/2016,GI,2100806,"1,911.67",HC114596,William Morris Camphill Community,201701,Central Childrens Directorate Costs,Support Services,
INSERTED DETAIL,21/04/2016,GI,2100808,458.33,HC108716,Stretton Sugwas CE Academy,201701,Central Childrens Directorate Costs,Support Services,
INSERTED DETAIL,21/04/2016,GI,2100809,458.33,HC115716,Mordiford Church of England Primary School,201701,Central Childrens Directorate Costs,Support Services,
INSERTED DETAIL,21/04/2016,GI,2100810,458.33,HC108716,Stretton Sugwas CE Academy,201701,Central Childrens Directorate Costs,Support Services,
INSERTED DETAIL,21/04/2016,GI,2100812,458.33,HC117835,The Brookfield School (Academy),201701,Central Childrens Directorate Costs,Support Services,
INSERTED DETAIL,21/04/2016,GI,2100813,458.33,HC117835,The Brookfield School (Academy),201701,Central Childrens Directorate Costs,Support Services,
INSERTED DETAIL,21/04/2016,GI,2100814,962.67,HC112582,Royal National College,201701,Central Childrens Directorate Costs,Support Services,
INSERTED DETAIL,21/04/2016,GI,2100815,"2,422.28",HC114613,National Star College,201701,Central Childrens Directorate Costs,Support Services,
INSERTED DETAIL,21/04/2016,GI,2100816,"1,352.82",HC114613,National Star College,201701,Central Childrens Directorate Costs,Support Services,
INSERTED DETAIL,21/04/2016,GI,2100818,458.33,HC101027,Bishop Of Herefords Bluecoat School,201701,Central Childrens Directorate Costs,Support Services,
INSERTED DETAIL,21/04/2016,GI,2100819,458.33,HC104739,John Masefield High School (Academy),201701,Central Childrens Directorate Costs,Support Services,
INSERTED DETAIL,21/04/2016,GI,2100820,458.33,HC102524,Brockhampton Primary School (Academy),201701,Central Childrens Directorate Costs,Support Services,
INSERTED DETAIL,21/04/2016,GI,2100821,458.33,HC108716,Stretton Sugwas CE Academy,201701,Central Childrens Directorate Costs,Support Services,
INSERTED DETAIL,21/04/2016,GI,2100823,447.92,HC120060,Aspire Campus- North Shropshire College,201701,Central Childrens Directorate Costs,Support Services,
INSERTED DETAIL,21/04/2016,GI,2100824,"4,036.26",HC114613,National Star College,201701,Central Childrens Directorate Costs,Support Services,
INSERTED DETAIL,21/04/2016,GI,2100825,631.41,HC106975,Hoople Ltd,201701,Central Childrens Directorate Costs,Support Services,
INSERTED DETAIL,21/04/2016,GI,2100826,"1,542.22",HC106975,Hoople Ltd,201701,Central Childrens Directorate Costs,Support Services,
INSERTED DETAIL,21/04/2016,GI,2100827,920.45,HC106975,Hoople Ltd,201701,Central Childrens Directorate Costs,Support Services,
INSERTED DETAIL,21/04/2016,GI,2100828,908.73,HC106975,Hoople Ltd,201701,Central Childrens Directorate Costs,Support Services,
INSERTED DETAIL,21/04/2016,GI,2100829,"1,553.94",HC106975,Hoople Ltd,201701,Central Childrens Directorate Costs,Support Services,
INSERTED DETAIL,21/04/2016,GI,2100830,"1,529.64",HC106975,Hoople Ltd,201701,Central Childrens Directorate Costs,Support Services,
INSERTED DETAIL,21/04/2016,GI,2100831,447.92,HC103935,Herefordshire & Ludlow College,201701,Central Childrens Directorate Costs,Support Services,
INSERTED DETAIL,21/04/2016,GI,2100832,"1,669.42",HC114613,National Star College,201701,Central Childrens Directorate Costs,Support Services,
INSERTED DETAIL,21/04/2016,GI,2100833,"1,683.88",HC114613,National Star College,201701,Central Childrens Directorate Costs,Support Services,
INSERTED DETAIL,21/04/2016,GI,2100834,"1,450.79",HC114613,National Star College,201701,Central Childrens Directorate Costs,Support Services,
INSERTED DETAIL,21/04/2016,GI,2100835,"1,076.66",HC114613,National Star College,201701,Central Childrens Directorate Costs,Support Services,
INSERTED DETAIL,21/04/2016,GI,2100836,997.2,HC114613,National Star College,201701,Central Childrens Directorate Costs,Support Services,
INSERTED DETAIL,21/04/2016,GI,2100837,"1,091.08",HC114613,National Star College,201701,Central Childrens Directorate Costs,Support Services,
INSERTED DETAIL,21/04/2016,GI,2100838,943.23,HC114613,National Star College,201701,Central Childrens Directorate Costs,Support Services,
INSERTED DETAIL,21/04/2016,GI,2100839,"1,070.16",HC114613,National Star College,201701,Central Childrens Directorate Costs,Support Services,
INSERTED DETAIL,21/04/2016,GI,2100840,458.33,HC100677,Ashfield Park Primary School,201701,Central Childrens Directorate Costs,Support Services,
INSERTED DETAIL,21/04/2016,GI,2100842,458.33,HC116854,Fairfield High School (Academy),201701,Central Childrens Directorate Costs,Support Services,
INSERTED DETAIL,21/04/2016,GI,2100843,458.33,HC117835,The Brookfield School (Academy),201701,Central Childrens Directorate Costs,Support Services,
INSERTED DETAIL,21/04/2016,GI,2100844,458.33,HC117835,The Brookfield School (Academy),201701,Central Childrens Directorate Costs,Support Services,
INSERTED DETAIL,21/04/2016,GI,2100846,458.33,HC117835,The Brookfield School (Academy),201701,Central Childrens Directorate Costs,Support Services,
INSERTED DETAIL,21/04/2016,GI,2100847,719.17,HC104727,John Kyrle High School,201701,Central Childrens Directorate Costs,Support Services,
INSERTED DETAIL,21/04/2016,GI,2100848,458.33,HC104727,John Kyrle High School,201701,Central Childrens Directorate Costs,Support Services,
INSERTED DETAIL,21/04/2016,GI,2100849,458.33,HC115884,St Thomas Cantilupe CE Academy,201701,Central Childrens Directorate Costs,Support Services,
INSERTED DETAIL,21/04/2016,GI,2100853,458.33,HC105073,Kingstone & Thruxton Primary School (Academy),201701,Central Childrens Directorate Costs,Support Services,
INSERTED DETAIL,21/04/2016,GI,2100855,652.08,HC104739,John Masefield High School (Academy),201701,Central Childrens Directorate Costs,Support Services,
INSERTED DETAIL,21/04/2016,GI,2100856,500,HC106975,Hoople Ltd,201701,Central Childrens Directorate Costs,Support Services,
INSERTED DETAIL,21/04/2016,GI,2100857,447.92,HC106975,Hoople Ltd,201701,Central Childrens Directorate Costs,Support Services,
INSERTED DETAIL,21/04/2016,GI,2100859,447.92,HC120103,The Plylimon Trust-Horizon Training,201701,Central Childrens Directorate Costs,Support Services,
INSERTED DETAIL,21/04/2016,GI,2100860,700,HC120103,The Plylimon Trust-Horizon Training,201701,Central Childrens Directorate Costs,Support Services,
INSERTED DETAIL,21/04/2016,GI,2100862,"1,033.33",HC117835,The Brookfield School (Academy),201701,Central Childrens Directorate Costs,Support Services,
INSERTED DETAIL,21/04/2016,GI,2100863,719.17,HC117835,The Brookfield School (Academy),201701,Central Childrens Directorate Costs,Support Services,
INSERTED DETAIL,21/04/2016,GI,2100864,719.17,HC117835,The Brookfield School (Academy),201701,Central Childrens Directorate Costs,Support Services,
INSERTED DETAIL,21/04/2016,GI,2100865,719.17,HC117835,The Brookfield School (Academy),201701,Central Childrens Directorate Costs,Support Services,
INSERTED DETAIL,21/04/2016,GI,2100866,719.17,HC117835,The Brookfield School (Academy),201701,Central Childrens Directorate Costs,Support Services,
INSERTED DETAIL,21/04/2016,GI,2100867,719.17,HC117835,The Brookfield School (Academy),201701,Central Childrens Directorate Costs,Support Services,
INSERTED DETAIL,21/04/2016,GI,2100868,719.17,HC117835,The Brookfield School (Academy),201701,Central Childrens Directorate Costs,Support Services,
INSERTED DETAIL,21/04/2016,GI,2100869,719.17,HC117835,The Brookfield School (Academy),201701,Central Childrens Directorate Costs,Support Services,
INSERTED DETAIL,21/04/2016,GI,2100870,719.17,HC117835,The Brookfield School (Academy),201701,Central Childrens Directorate Costs,Support Services,
INSERTED DETAIL,21/04/2016,GI,2100871,719.17,HC117835,The Brookfield School (Academy),201701,Central Childrens Directorate Costs,Support Services,
INSERTED DETAIL,21/04/2016,GI,2100872,719.17,HC117835,The Brookfield School (Academy),201701,Central Childrens Directorate Costs,Support Services,
INSERTED DETAIL,21/04/2016,GI,2100873,458.33,HC113733,Canon Pyon CE Academy,201701,Central Childrens Directorate Costs,Support Services,
INSERTED DETAIL,21/04/2016,GI,2100874,458.33,HC113960,Barrs Court Academy,201701,Central Childrens Directorate Costs,Support Services,
INSERTED DETAIL,21/04/2016,GI,2100875,458.33,HC107656,St Pauls Church of England Primary School,201701,Central Childrens Directorate Costs,Support Services,
INSERTED DETAIL,21/04/2016,GI,2100876,458.33,HC117835,The Brookfield School (Academy),201701,Central Childrens Directorate Costs,Support Services,
INSERTED DETAIL,21/04/2016,GI,2100879,458.33,HC113961,Burghill Community Academy,201701,Central Childrens Directorate Costs,Support Services,
INSERTED DETAIL,21/04/2016,GI,2100880,458.33,HC104727,John Kyrle High School,201701,Central Childrens Directorate Costs,Support Services,
INSERTED DETAIL,21/04/2016,GI,2100882,458.33,HC104739,John Masefield High School (Academy),201701,Central Childrens Directorate Costs,Support Services,
INSERTED DETAIL,21/04/2016,GI,2100883,719.17,HC113960,Barrs Court Academy,201701,Central Childrens Directorate Costs,Support Services,
INSERTED DETAIL,21/04/2016,GI,2100884,458.33,HC117835,The Brookfield School (Academy),201701,Central Childrens Directorate Costs,Support Services,
INSERTED DETAIL,21/04/2016,GI,2100885,"1,399.17",HC117835,The Brookfield School (Academy),201701,Central Childrens Directorate Costs,Support Services,
INSERTED DETAIL,21/04/2016,GI,2100886,447.92,HC103854,Hereford College Of Arts,201701,Central Childrens Directorate Costs,Support Services,
INSERTED DETAIL,21/04/2016,GI,2100888,"2,487.65",HC114613,National Star College,201701,Central Childrens Directorate Costs,Support Services,
INSERTED DETAIL,21/04/2016,GI,2100889,458.33,HC101027,Bishop Of Herefords Bluecoat School,201701,Central Childrens Directorate Costs,Support Services,
INSERTED DETAIL,21/04/2016,GI,2100890,458.33,HC105571,Wigmore Primary School (Academy),201701,Central Childrens Directorate Costs,Support Services,
INSERTED DETAIL,21/04/2016,GI,2100891,458.33,HC117835,The Brookfield School (Academy),201701,Central Childrens Directorate Costs,Support Services,
INSERTED DETAIL,21/04/2016,GI,2100892,458.33,HC118939,Riverside Primary School - HCC,201701,Central Childrens Directorate Costs,Support Services,
INSERTED DETAIL,21/04/2016,GI,2100893,458.33,HC117835,The Brookfield School (Academy),201701,Central Childrens Directorate Costs,Support Services,
INSERTED DETAIL,21/04/2016,GI,2100894,458.33,HC118939,Riverside Primary School - HCC,201701,Central Childrens Directorate Costs,Support Services,
INSERTED DETAIL,21/04/2016,GI,2100895,458.33,HC117835,The Brookfield School (Academy),201701,Central Childrens Directorate Costs,Support Services,
INSERTED DETAIL,21/04/2016,GI,2100896,458.33,HC117835,The Brookfield School (Academy),201701,Central Childrens Directorate Costs,Support Services,
INSERTED DETAIL,21/04/2016,GI,2100897,719.17,HC117835,The Brookfield School (Academy),201701,Central Childrens Directorate Costs,Support Services,
INSERTED DETAIL,21/04/2016,GI,2100898,"1,033.33",HC113960,Barrs Court Academy,201701,Central Childrens Directorate Costs,Support Services,
INSERTED DETAIL,21/04/2016,GI,2100899,458.33,HC117835,The Brookfield School (Academy),201701,Central Childrens Directorate Costs,Support Services,
INSERTED DETAIL,21/04/2016,GI,2100900,458.33,HC113960,Barrs Court Academy,201701,Central Childrens Directorate Costs,Support Services,
INSERTED DETAIL,21/04/2016,GI,2100901,"1,033.33",HC113960,Barrs Court Academy,201701,Central Childrens Directorate Costs,Support Services,
INSERTED DETAIL,21/04/2016,GI,2100902,719.17,HC113960,Barrs Court Academy,201701,Central Childrens Directorate Costs,Support Services,
INSERTED DETAIL,21/04/2016,GI,2100904,687.32,HC114613,National Star College,201701,Central Childrens Directorate Costs,Support Services,
INSERTED DETAIL,21/04/2016,GI,2100906,719.17,HC117835,The Brookfield School (Academy),201701,Central Childrens Directorate Costs,Support Services,
INSERTED DETAIL,22/04/2016,GI,2101286,655.47,HC100397,Almeley Primary School Imprest,201701,Schools,Supplies & Services,
INSERTED DETAIL,22/04/2016,GI,2101316,"1,650.23",HC105573,Luston C P School Imprest,201701,Schools,Premises-Related Expenditure,
INSERTED DETAIL,22/04/2016,GI,2101316,"3,728.16",HC105573,Luston C P School Imprest,201701,Schools,Supplies & Services,
INSERTED DETAIL,22/04/2016,GI,2101407,"18,646.37",HC107838,Ethica Resourcing Ltd,201701,Adults Operations,Employees,
INSERTED DETAIL,22/04/2016,GI,2101407,"4,024.70",HC107838,Ethica Resourcing Ltd,201701,Commissioning Adults,Employees,
INSERTED DETAIL,22/04/2016,GI,2101407,"1,518.75",HC107838,Ethica Resourcing Ltd,201701,Communities,Employees,
INSERTED DETAIL,22/04/2016,GI,2101407,"3,062.45",HC107838,Ethica Resourcing Ltd,201701,Education and Commissioning,Employees,
INSERTED DETAIL,22/04/2016,GI,2101407,"1,839.11",HC107838,Ethica Resourcing Ltd,201701,Environment and Place,Employees,
INSERTED DETAIL,22/04/2016,GI,2101407,"2,752.10",HC107838,Ethica Resourcing Ltd,201701,Mental Health,Employees,
INSERTED DETAIL,22/04/2016,GI,2101407,"2,030.76",HC107838,Ethica Resourcing Ltd,201701,Public Health,Employees,
INSERTED DETAIL,22/04/2016,GI,2101407,"1,706.24",HC107838,Ethica Resourcing Ltd,201701,Resources,Employees,
INSERTED DETAIL,22/04/2016,GI,2101407,"53,119.43",HC107838,Ethica Resourcing Ltd,201701,Safeguarding and Family Support,Employees,
INSERTED DETAIL,22/04/2016,GI,2101407,"1,605.00",HC107838,Ethica Resourcing Ltd,201701,Transformation and safeguarding,Employees,
INSERTED DETAIL,22/04/2016,GI,2101407,"1,754.13",HC107838,REDACTED,201701,Adults Operations,Employees,
INSERTED DETAIL,22/04/2016,GI,2101407,"10,478.14",HC107838,REDACTED,201701,Safeguarding and Family Support,Employees,
INSERTED DETAIL,22/04/2016,GI,2101420,"1,190.04",HC121018,REDACTED,201701,Safeguarding and Family Support,Third Party Payments,
INSERTED DETAIL,22/04/2016,GI,2101424,"1,000.00",HC113109,REDACTED,201701,Education and Commissioning,Supplies & Services,
INSERTED DETAIL,22/04/2016,GI,2101425,"9,928.98",HC121031,REDACTED,201701,Safeguarding and Family Support,Supplies & Services,
INSERTED DETAIL,27/04/2016,GI,2102236,514.91,HC102369,Madley Primary School Imprest A/C,201701,Schools,Supplies & Services,
INSERTED DETAIL,27/04/2016,GI,2102241,"1,795.95",HC120049,REDACTED,201701,Safeguarding and Family Support,Supplies & Services,
INSERTED DETAIL,27/04/2016,GI,2102242,433.33,HC119525,REDACTED,201701,Safeguarding and Family Support,Supplies & Services,
INSERTED DETAIL,27/04/2016,GI,2102243,433.33,HC121017,REDACTED,201701,Safeguarding and Family Support,Supplies & Services,
INSERTED DETAIL,27/04/2016,GI,2103052,"1,817.14",HC105573,Luston C P School Imprest,201701,Schools,Premises-Related Expenditure,
INSERTED DETAIL,27/04/2016,GI,2103052,"2,989.72",HC105573,Luston C P School Imprest,201701,Schools,Supplies & Services,
INSERTED DETAIL,27/04/2016,GI,2103094,857.95,HC108278,Orleton C.E. Primary School Imprest,201701,Schools,Premises-Related Expenditure,
INSERTED DETAIL,27/04/2016,GI,2103094,697.48,HC108278,Orleton C.E. Primary School Imprest,201701,Schools,Supplies & Services,
INSERTED DETAIL,28/04/2016,GI,2103124,"29,466.73",HC107838,Ethica Resourcing Ltd,201701,Adults Operations,Employees,
INSERTED DETAIL,28/04/2016,GI,2103124,"4,226.45",HC107838,Ethica Resourcing Ltd,201701,Commissioning Adults,Employees,
INSERTED DETAIL,28/04/2016,GI,2103124,"1,857.33",HC107838,Ethica Resourcing Ltd,201701,Communities,Employees,
INSERTED DETAIL,28/04/2016,GI,2103124,"3,578.75",HC107838,Ethica Resourcing Ltd,201701,Education and Commissioning,Employees,
INSERTED DETAIL,28/04/2016,GI,2103124,"2,092.55",HC107838,Ethica Resourcing Ltd,201701,Environment and Place,Employees,
INSERTED DETAIL,28/04/2016,GI,2103124,"2,151.72",HC107838,Ethica Resourcing Ltd,201701,Mental Health,Employees,
INSERTED DETAIL,28/04/2016,GI,2103124,"4,278.38",HC107838,Ethica Resourcing Ltd,201701,Public Health,Employees,
INSERTED DETAIL,28/04/2016,GI,2103124,"1,618.96",HC107838,Ethica Resourcing Ltd,201701,Resources,Employees,
INSERTED DETAIL,28/04/2016,GI,2103124,"41,908.21",HC107838,Ethica Resourcing Ltd,201701,Safeguarding and Family Support,Employees,
INSERTED DETAIL,28/04/2016,GI,2103124,"1,605.00",HC107838,Ethica Resourcing Ltd,201701,Transformation and safeguarding,Employees,
INSERTED DETAIL,28/04/2016,GI,2103124,"1,811.08",HC107838,REDACTED,201701,Adults Operations,Employees,
INSERTED DETAIL,28/04/2016,GI,2103124,"6,858.98",HC107838,REDACTED,201701,Safeguarding and Family Support,Employees,
INSERTED DETAIL,04/05/2016,WM,2103750,913.58,HC108443,West Mercia Energy,201701,Environment and Place,Premises-Related Expenditure,
INSERTED DETAIL,26/04/2016,WM,2103750,913.58,HC108443,West Mercia Energy,201701,Environment and Place,Premises-Related Expenditure,Energy Costs
INSERTED DETAIL,04/05/2016,WM,2103756,916.97,HC108443,West Mercia Energy,201701,Schools,Premises-Related Expenditure,
INSERTED DETAIL,26/04/2016,WM,2103756,916.97,HC108443,West Mercia Energy,201701,Schools,Premises-Related Expenditure,Energy Costs
INSERTED DETAIL,04/05/2016,WM,2103758,584.72,HC108443,West Mercia Energy,201701,Schools,Premises-Related Expenditure,
INSERTED DETAIL,26/04/2016,WM,2103758,584.72,HC108443,West Mercia Energy,201701,Schools,Premises-Related Expenditure,Energy Costs
INSERTED DETAIL,04/05/2016,WM,2103761,562.79,HC108443,West Mercia Energy,201701,Environment and Place,Premises-Related Expenditure,
INSERTED DETAIL,26/04/2016,WM,2103761,562.79,HC108443,West Mercia Energy,201701,Environment and Place,Premises-Related Expenditure,Energy Costs
INSERTED DETAIL,04/05/2016,WM,2103763,992.69,HC108443,West Mercia Energy,201701,Environment and Place,Premises-Related Expenditure,
INSERTED DETAIL,26/04/2016,WM,2103763,992.69,HC108443,West Mercia Energy,201701,Environment and Place,Premises-Related Expenditure,Energy Costs
INSERTED DETAIL,04/05/2016,WM,2103769,639.78,HC108443,West Mercia Energy,201701,Schools,Premises-Related Expenditure,
INSERTED DETAIL,26/04/2016,WM,2103769,639.78,HC108443,West Mercia Energy,201701,Schools,Premises-Related Expenditure,Energy Costs
INSERTED DETAIL,04/05/2016,WM,2103770,470.4,HC108443,West Mercia Energy,201701,Schools,Premises-Related Expenditure,
INSERTED DETAIL,26/04/2016,WM,2103770,470.4,HC108443,West Mercia Energy,201701,Schools,Premises-Related Expenditure,Energy Costs
INSERTED DETAIL,04/05/2016,WM,2103774,540.9,HC108443,West Mercia Energy,201701,Environment and Place,Premises-Related Expenditure,
INSERTED DETAIL,26/04/2016,WM,2103774,540.9,HC108443,West Mercia Energy,201701,Environment and Place,Premises-Related Expenditure,Energy Costs
INSERTED DETAIL,04/05/2016,WM,2103775,463.74,HC108443,West Mercia Energy,201701,Environment and Place,Premises-Related Expenditure,
INSERTED DETAIL,26/04/2016,WM,2103775,463.74,HC108443,West Mercia Energy,201701,Environment and Place,Premises-Related Expenditure,Energy Costs
INSERTED DETAIL,04/05/2016,WM,2103778,534.79,HC108443,West Mercia Energy,201701,Schools,Premises-Related Expenditure,
INSERTED DETAIL,26/04/2016,WM,2103778,534.79,HC108443,West Mercia Energy,201701,Schools,Premises-Related Expenditure,Energy Costs
INSERTED DETAIL,04/05/2016,WM,2103780,826.22,HC108443,West Mercia Energy,201701,Schools,Premises-Related Expenditure,
INSERTED DETAIL,26/04/2016,WM,2103780,826.22,HC108443,West Mercia Energy,201701,Schools,Premises-Related Expenditure,Energy Costs
INSERTED DETAIL,04/05/2016,WM,2103782,423.17,HC108443,West Mercia Energy,201701,Environment and Place,Premises-Related Expenditure,
INSERTED DETAIL,26/04/2016,WM,2103782,423.17,HC108443,West Mercia Energy,201701,Environment and Place,Premises-Related Expenditure,Energy Costs
INSERTED DETAIL,04/05/2016,WM,2103784,"1,292.83",HC108443,West Mercia Energy,201701,Environment and Place,Premises-Related Expenditure,
INSERTED DETAIL,26/04/2016,WM,2103784,"1,292.83",HC108443,West Mercia Energy,201701,Environment and Place,Premises-Related Expenditure,Energy Costs
INSERTED DETAIL,04/05/2016,WM,2103786,934.38,HC108443,West Mercia Energy,201701,Environment and Place,Premises-Related Expenditure,
INSERTED DETAIL,26/04/2016,WM,2103786,934.38,HC108443,West Mercia Energy,201701,Environment and Place,Premises-Related Expenditure,Energy Costs
INSERTED DETAIL,04/05/2016,WM,2103789,639.91,HC108443,West Mercia Energy,201701,Schools,Premises-Related Expenditure,
INSERTED DETAIL,26/04/2016,WM,2103789,639.91,HC108443,West Mercia Energy,201701,Schools,Premises-Related Expenditure,Energy Costs
INSERTED DETAIL,04/05/2016,WM,2103794,433.57,HC108443,West Mercia Energy,201701,Schools,Premises-Related Expenditure,
INSERTED DETAIL,26/04/2016,WM,2103794,433.57,HC108443,West Mercia Energy,201701,Schools,Premises-Related Expenditure,Energy Costs
INSERTED DETAIL,04/05/2016,WM,2103800,862.72,HC108443,West Mercia Energy,201701,Environment and Place,Premises-Related Expenditure,
INSERTED DETAIL,26/04/2016,WM,2103800,862.72,HC108443,West Mercia Energy,201701,Environment and Place,Premises-Related Expenditure,Energy Costs
INSERTED DETAIL,04/05/2016,WM,2103803,885.3,HC108443,West Mercia Energy,201701,Environment and Place,Premises-Related Expenditure,
INSERTED DETAIL,26/04/2016,WM,2103803,885.3,HC108443,West Mercia Energy,201701,Environment and Place,Premises-Related Expenditure,Energy Costs
INSERTED DETAIL,04/05/2016,WM,2103805,488.04,HC108443,West Mercia Energy,201701,Schools,Premises-Related Expenditure,
INSERTED DETAIL,26/04/2016,WM,2103805,488.04,HC108443,West Mercia Energy,201701,Schools,Premises-Related Expenditure,Energy Costs
INSERTED DETAIL,04/05/2016,WM,2103806,731.26,HC108443,West Mercia Energy,201701,Environment and Place,Premises-Related Expenditure,
INSERTED DETAIL,26/04/2016,WM,2103806,731.26,HC108443,West Mercia Energy,201701,Environment and Place,Premises-Related Expenditure,Energy Costs
INSERTED DETAIL,04/05/2016,WM,2103808,491.62,HC108443,West Mercia Energy,201701,Schools,Premises-Related Expenditure,
INSERTED DETAIL,26/04/2016,WM,2103808,491.62,HC108443,West Mercia Energy,201701,Schools,Premises-Related Expenditure,Energy Costs
INSERTED DETAIL,04/05/2016,WM,2103809,446.38,HC108443,West Mercia Energy,201701,Environment and Place,Premises-Related Expenditure,
INSERTED DETAIL,26/04/2016,WM,2103809,446.38,HC108443,West Mercia Energy,201701,Environment and Place,Premises-Related Expenditure,Energy Costs
INSERTED DETAIL,04/05/2016,WM,2103811,579.71,HC108443,West Mercia Energy,201701,Environment and Place,Premises-Related Expenditure,
INSERTED DETAIL,26/04/2016,WM,2103811,579.71,HC108443,West Mercia Energy,201701,Environment and Place,Premises-Related Expenditure,Energy Costs
INSERTED DETAIL,04/05/2016,WM,2103812,705.39,HC108443,West Mercia Energy,201701,Schools,Premises-Related Expenditure,
INSERTED DETAIL,26/04/2016,WM,2103812,705.39,HC108443,West Mercia Energy,201701,Schools,Premises-Related Expenditure,Energy Costs
INSERTED DETAIL,04/05/2016,WM,2103813,554.11,HC108443,West Mercia Energy,201701,Schools,Premises-Related Expenditure,
INSERTED DETAIL,26/04/2016,WM,2103813,554.11,HC108443,West Mercia Energy,201701,Schools,Premises-Related Expenditure,Energy Costs
INSERTED DETAIL,04/05/2016,WM,2103814,"1,096.43",HC108443,West Mercia Energy,201701,Environment and Place,Premises-Related Expenditure,
INSERTED DETAIL,26/04/2016,WM,2103814,"1,096.43",HC108443,West Mercia Energy,201701,Environment and Place,Premises-Related Expenditure,Energy Costs
INSERTED DETAIL,04/05/2016,WM,2103815,"1,124.86",HC108443,West Mercia Energy,201701,Schools,Premises-Related Expenditure,
INSERTED DETAIL,26/04/2016,WM,2103815,"1,124.86",HC108443,West Mercia Energy,201701,Schools,Premises-Related Expenditure,Energy Costs
INSERTED DETAIL,04/05/2016,WM,2103816,529.33,HC108443,West Mercia Energy,201701,Environment and Place,Premises-Related Expenditure,
INSERTED DETAIL,26/04/2016,WM,2103816,529.33,HC108443,West Mercia Energy,201701,Environment and Place,Premises-Related Expenditure,Energy Costs
INSERTED DETAIL,04/05/2016,WM,2103817,"1,516.52",HC108443,West Mercia Energy,201701,Environment and Place,Premises-Related Expenditure,
INSERTED DETAIL,26/04/2016,WM,2103817,"1,516.52",HC108443,West Mercia Energy,201701,Environment and Place,Premises-Related Expenditure,Energy Costs
INSERTED DETAIL,04/05/2016,WM,2103819,467.49,HC108443,West Mercia Energy,201701,Schools,Premises-Related Expenditure,
INSERTED DETAIL,26/04/2016,WM,2103819,467.49,HC108443,West Mercia Energy,201701,Schools,Premises-Related Expenditure,Energy Costs
INSERTED DETAIL,04/05/2016,WM,2103823,589.78,HC108443,West Mercia Energy,201701,Schools,Premises-Related Expenditure,
INSERTED DETAIL,26/04/2016,WM,2103823,589.78,HC108443,West Mercia Energy,201701,Schools,Premises-Related Expenditure,Energy Costs
INSERTED DETAIL,04/05/2016,WM,2103824,"1,291.81",HC108443,West Mercia Energy,201701,Environment and Place,Premises-Related Expenditure,
INSERTED DETAIL,26/04/2016,WM,2103824,"1,291.81",HC108443,West Mercia Energy,201701,Environment and Place,Premises-Related Expenditure,Energy Costs
INSERTED DETAIL,04/05/2016,WM,2103825,426.51,HC108443,West Mercia Energy,201701,Schools,Premises-Related Expenditure,
INSERTED DETAIL,26/04/2016,WM,2103825,426.51,HC108443,West Mercia Energy,201701,Schools,Premises-Related Expenditure,Energy Costs
INSERTED DETAIL,04/05/2016,WM,2103827,613.1,HC108443,West Mercia Energy,201701,Schools,Premises-Related Expenditure,
INSERTED DETAIL,26/04/2016,WM,2103827,613.1,HC108443,West Mercia Energy,201701,Schools,Premises-Related Expenditure,Energy Costs
INSERTED DETAIL,04/05/2016,WM,2103829,742.14,HC108443,West Mercia Energy,201701,Environment and Place,Premises-Related Expenditure,
INSERTED DETAIL,26/04/2016,WM,2103829,742.14,HC108443,West Mercia Energy,201701,Environment and Place,Premises-Related Expenditure,Energy Costs
INSERTED DETAIL,04/05/2016,WM,2103832,524.23,HC108443,West Mercia Energy,201701,Environment and Place,Premises-Related Expenditure,
INSERTED DETAIL,26/04/2016,WM,2103832,524.23,HC108443,West Mercia Energy,201701,Environment and Place,Premises-Related Expenditure,Energy Costs
INSERTED DETAIL,04/05/2016,WM,2103837,464.69,HC108443,West Mercia Energy,201701,Environment and Place,Premises-Related Expenditure,
INSERTED DETAIL,26/04/2016,WM,2103837,464.69,HC108443,West Mercia Energy,201701,Environment and Place,Premises-Related Expenditure,Energy Costs
INSERTED DETAIL,04/05/2016,WM,2103886,605.5,HC108443,West Mercia Energy,201701,Environment and Place,Premises-Related Expenditure,
INSERTED DETAIL,26/04/2016,WM,2103886,605.5,HC108443,West Mercia Energy,201701,Environment and Place,Premises-Related Expenditure,Energy Costs
INSERTED DETAIL,04/05/2016,WM,2103894,"2,747.70",HC108443,West Mercia Energy,201701,Environment and Place,Premises-Related Expenditure,
INSERTED DETAIL,26/04/2016,WM,2103894,"2,747.70",HC108443,West Mercia Energy,201701,Environment and Place,Premises-Related Expenditure,Energy Costs
INSERTED DETAIL,04/05/2016,WM,2103898,739.08,HC108443,West Mercia Energy,201701,Environment and Place,Premises-Related Expenditure,
INSERTED DETAIL,26/04/2016,WM,2103898,739.08,HC108443,West Mercia Energy,201701,Environment and Place,Premises-Related Expenditure,Energy Costs
INSERTED DETAIL,04/05/2016,WM,2103903,"1,532.35",HC108443,West Mercia Energy,201701,Environment and Place,Premises-Related Expenditure,
INSERTED DETAIL,26/04/2016,WM,2103903,"1,532.35",HC108443,West Mercia Energy,201701,Environment and Place,Premises-Related Expenditure,Energy Costs
INSERTED DETAIL,04/05/2016,WM,2103906,"1,065.78",HC108443,West Mercia Energy,201701,Environment and Place,Premises-Related Expenditure,
INSERTED DETAIL,26/04/2016,WM,2103906,"1,065.78",HC108443,West Mercia Energy,201701,Environment and Place,Premises-Related Expenditure,Energy Costs
INSERTED DETAIL,04/05/2016,WM,2103908,548.69,HC108443,West Mercia Energy,201701,Environment and Place,Premises-Related Expenditure,
INSERTED DETAIL,26/04/2016,WM,2103908,548.69,HC108443,West Mercia Energy,201701,Environment and Place,Premises-Related Expenditure,Energy Costs
INSERTED DETAIL,04/05/2016,WM,2103909,"1,376.82",HC108443,West Mercia Energy,201701,Environment and Place,Premises-Related Expenditure,
INSERTED DETAIL,26/04/2016,WM,2103909,"1,376.82",HC108443,West Mercia Energy,201701,Environment and Place,Premises-Related Expenditure,Energy Costs
INSERTED DETAIL,04/05/2016,WM,2103915,916.7,HC108443,West Mercia Energy,201701,Environment and Place,Premises-Related Expenditure,
INSERTED DETAIL,26/04/2016,WM,2103915,916.7,HC108443,West Mercia Energy,201701,Environment and Place,Premises-Related Expenditure,Energy Costs
INSERTED DETAIL,04/05/2016,WM,2103921,446.39,HC108443,West Mercia Energy,201701,Environment and Place,Premises-Related Expenditure,
INSERTED DETAIL,26/04/2016,WM,2103921,446.39,HC108443,West Mercia Energy,201701,Environment and Place,Premises-Related Expenditure,Energy Costs
INSERTED DETAIL,04/05/2016,WM,2103922,932.02,HC108443,West Mercia Energy,201701,Environment and Place,Premises-Related Expenditure,
INSERTED DETAIL,26/04/2016,WM,2103922,932.02,HC108443,West Mercia Energy,201701,Environment and Place,Premises-Related Expenditure,Energy Costs
INSERTED DETAIL,04/05/2016,WM,2103923,"1,405.74",HC108443,West Mercia Energy,201701,Environment and Place,Premises-Related Expenditure,
INSERTED DETAIL,26/04/2016,WM,2103923,"1,405.74",HC108443,West Mercia Energy,201701,Environment and Place,Premises-Related Expenditure,Energy Costs
INSERTED DETAIL,04/05/2016,WM,2103924,"1,360.63",HC108443,West Mercia Energy,201701,Environment and Place,Premises-Related Expenditure,
INSERTED DETAIL,26/04/2016,WM,2103924,"1,360.63",HC108443,West Mercia Energy,201701,Environment and Place,Premises-Related Expenditure,Energy Costs
INSERTED DETAIL,04/05/2016,WM,2103925,"1,331.53",HC108443,West Mercia Energy,201701,Environment and Place,Premises-Related Expenditure,
INSERTED DETAIL,26/04/2016,WM,2103925,"1,331.53",HC108443,West Mercia Energy,201701,Environment and Place,Premises-Related Expenditure,Energy Costs
INSERTED DETAIL,04/05/2016,WM,2103926,456,HC108443,West Mercia Energy,201701,Environment and Place,Premises-Related Expenditure,
INSERTED DETAIL,26/04/2016,WM,2103926,456,HC108443,West Mercia Energy,201701,Environment and Place,Premises-Related Expenditure,Energy Costs
INSERTED DETAIL,04/05/2016,WM,2103927,449.23,HC108443,West Mercia Energy,201701,Environment and Place,Premises-Related Expenditure,
INSERTED DETAIL,26/04/2016,WM,2103927,449.23,HC108443,West Mercia Energy,201701,Environment and Place,Premises-Related Expenditure,Energy Costs
INSERTED DETAIL,04/05/2016,WM,2103928,464.11,HC108443,West Mercia Energy,201701,Environment and Place,Premises-Related Expenditure,
INSERTED DETAIL,26/04/2016,WM,2103928,464.11,HC108443,West Mercia Energy,201701,Environment and Place,Premises-Related Expenditure,Energy Costs
INSERTED DETAIL,04/05/2016,WM,2103929,449.23,HC108443,West Mercia Energy,201701,Environment and Place,Premises-Related Expenditure,
INSERTED DETAIL,26/04/2016,WM,2103929,449.23,HC108443,West Mercia Energy,201701,Environment and Place,Premises-Related Expenditure,Energy Costs
INSERTED DETAIL,04/05/2016,WM,2103930,464.59,HC108443,West Mercia Energy,201701,Environment and Place,Premises-Related Expenditure,
INSERTED DETAIL,26/04/2016,WM,2103930,464.59,HC108443,West Mercia Energy,201701,Environment and Place,Premises-Related Expenditure,Energy Costs
INSERTED DETAIL,04/05/2016,WM,2103931,464.72,HC108443,West Mercia Energy,201701,Environment and Place,Premises-Related Expenditure,
INSERTED DETAIL,26/04/2016,WM,2103931,464.72,HC108443,West Mercia Energy,201701,Environment and Place,Premises-Related Expenditure,Energy Costs
INSERTED DETAIL,04/05/2016,WM,2103932,429.42,HC108443,West Mercia Energy,201701,Environment and Place,Premises-Related Expenditure,
INSERTED DETAIL,26/04/2016,WM,2103932,429.42,HC108443,West Mercia Energy,201701,Environment and Place,Premises-Related Expenditure,Energy Costs
INSERTED DETAIL,04/05/2016,WM,2103933,443.41,HC108443,West Mercia Energy,201701,Environment and Place,Premises-Related Expenditure,
INSERTED DETAIL,26/04/2016,WM,2103933,443.41,HC108443,West Mercia Energy,201701,Environment and Place,Premises-Related Expenditure,Energy Costs
INSERTED DETAIL,04/05/2016,WM,2103934,428.95,HC108443,West Mercia Energy,201701,Environment and Place,Premises-Related Expenditure,
INSERTED DETAIL,26/04/2016,WM,2103934,428.95,HC108443,West Mercia Energy,201701,Environment and Place,Premises-Related Expenditure,Energy Costs
INSERTED DETAIL,04/05/2016,WM,2103935,443.28,HC108443,West Mercia Energy,201701,Environment and Place,Premises-Related Expenditure,
INSERTED DETAIL,26/04/2016,WM,2103935,443.28,HC108443,West Mercia Energy,201701,Environment and Place,Premises-Related Expenditure,Energy Costs
INSERTED DETAIL,04/05/2016,WM,2103936,438.76,HC108443,West Mercia Energy,201701,Environment and Place,Premises-Related Expenditure,
INSERTED DETAIL,26/04/2016,WM,2103936,438.76,HC108443,West Mercia Energy,201701,Environment and Place,Premises-Related Expenditure,Energy Costs
INSERTED DETAIL,04/05/2016,WM,2103938,438.63,HC108443,West Mercia Energy,201701,Environment and Place,Premises-Related Expenditure,
INSERTED DETAIL,26/04/2016,WM,2103938,438.63,HC108443,West Mercia Energy,201701,Environment and Place,Premises-Related Expenditure,Energy Costs
INSERTED DETAIL,04/05/2016,WM,2103940,"2,448.43",HC108443,West Mercia Energy,201701,Environment and Place,Premises-Related Expenditure,
INSERTED DETAIL,26/04/2016,WM,2103940,"2,448.43",HC108443,West Mercia Energy,201701,Environment and Place,Premises-Related Expenditure,Energy Costs
INSERTED DETAIL,04/05/2016,WM,2103941,467.13,HC108443,West Mercia Energy,201701,Environment and Place,Premises-Related Expenditure,
INSERTED DETAIL,26/04/2016,WM,2103941,467.13,HC108443,West Mercia Energy,201701,Environment and Place,Premises-Related Expenditure,Energy Costs
INSERTED DETAIL,20/04/2016,OI,3820715,"16,230.00",HC106975,Hoople Ltd,201701,Resources,Supplies & Services,
INSERTED DETAIL,06/04/2016,OI,3823759,950,HC111339,In-Situ Europe Ltd,201701,Environment and Place,Supplies & Services,
INSERTED DETAIL,22/04/2016,OI,3824958,420,HC105552,Luctonians Sports Club Ltd,201701,Schools,Supplies & Services,
INSERTED DETAIL,06/04/2016,OI,3825021,"13,083.33",HC110303,Stonham,201701,Commissioning Adults,Supplies & Services,
INSERTED DETAIL,06/04/2016,OI,3825648,921.52,HC120578,Avalon Metals Ltd t/a Wye Valley Metals,201701,Environment and Place,Supplies & Services,
INSERTED DETAIL,15/04/2016,OI,3825798,"1,523.00",HC120689,Flying Start Books Ltd,201701,Schools,Supplies & Services,
INSERTED DETAIL,27/04/2016,OI,3825938,698.9,HC111054,Trustmarque Solutions Ltd,201701,Communities,Supplies & Services,
INSERTED DETAIL,06/04/2016,OI,3825943,"2,165.00",HC111195,Valuation Office Agency,201701,Environment and Place,Supplies & Services,
INSERTED DETAIL,06/04/2016,OI,3825996,"1,120.00",HC101101,Bookpoint Ltd,201701,Schools,Supplies & Services,
INSERTED DETAIL,06/04/2016,OI,3826059,"31,101.00",HC111535,Grant Thornton,201701,Resources,Suspense Accounts,
INSERTED DETAIL,06/04/2016,OI,3826067,"5,085.80",HC103981,Herefordshire Vision Links,201701,Commissioning Adults,Supplies & Services,
INSERTED DETAIL,01/04/2016,OI,3826246,525,HC101060,Blue Line Taxis,201701,Environment and Place,Transport-Related Expenditure,
INSERTED DETAIL,01/04/2016,OI,3826248,690,HC101060,Blue Line Taxis,201701,Environment and Place,Transport-Related Expenditure,
INSERTED DETAIL,01/04/2016,OI,3826249,"1,280.00",HC101060,Blue Line Taxis,201701,Environment and Place,Transport-Related Expenditure,
INSERTED DETAIL,01/04/2016,OI,3826250,"1,184.00",HC101060,Blue Line Taxis,201701,Environment and Place,Transport-Related Expenditure,
INSERTED DETAIL,06/04/2016,OI,3826257,"1,542.20",HC119093,DJN Planning Limited,201701,Environment and Place,Third Party Payments,
INSERTED DETAIL,01/04/2016,OI,3826262,"13,000.00",HC117835,The Brookfield School (Academy),201701,Education and Commissioning,Supplies & Services,
INSERTED DETAIL,01/04/2016,OI,3826277,"17,499.00",HC104088,Home Start Herefordshire,201701,Education and Commissioning,Third Party Payments,
INSERTED DETAIL,01/04/2016,OI,3826278,"5,000.00",HC101855,Cld Youth Counselling Trust,201701,Education and Commissioning,Third Party Payments,
INSERTED DETAIL,01/04/2016,OI,3826283,"1,540.00",HC109826,Shropshire Council,201701,Environment and Place,Transport-Related Expenditure,
INSERTED DETAIL,01/04/2016,OI,3826288,"2,025.00",HC111685,Yeomans Travel Ltd,201701,Environment and Place,Transport-Related Expenditure,
INSERTED DETAIL,06/04/2016,OI,3826291,"1,906.16",HC100090,A J Watkins,201701,Environment and Place,Transport-Related Expenditure,
INSERTED DETAIL,06/04/2016,OI,3826293,"3,420.00",HC100090,A J Watkins,201701,Environment and Place,Transport-Related Expenditure,
INSERTED DETAIL,06/04/2016,OI,3826294,"1,261.44",HC100090,A J Watkins,201701,Environment and Place,Transport-Related Expenditure,
INSERTED DETAIL,06/04/2016,OI,3826295,"1,645.56",HC100090,A J Watkins,201701,Environment and Place,Transport-Related Expenditure,
INSERTED DETAIL,08/04/2016,OI,3826296,900,HC117920,Avonside Taxis,201701,Environment and Place,Transport-Related Expenditure,
INSERTED DETAIL,06/04/2016,OI,3826297,"3,078.00",HC104674,JMC Monmouth Ltd,201701,Environment and Place,Transport-Related Expenditure,
INSERTED DETAIL,06/04/2016,OI,3826298,"2,520.00",HC104674,JMC Monmouth Ltd,201701,Environment and Place,Transport-Related Expenditure,
INSERTED DETAIL,06/04/2016,OI,3826299,"2,160.00",HC104674,JMC Monmouth Ltd,201701,Environment and Place,Transport-Related Expenditure,
INSERTED DETAIL,06/04/2016,OI,3826300,"1,710.00",HC104674,JMC Monmouth Ltd,201701,Environment and Place,Transport-Related Expenditure,
INSERTED DETAIL,06/04/2016,OI,3826301,"1,591.75",HC105329,Leominster Taxis & Travel,201701,Environment and Place,Transport-Related Expenditure,
INSERTED DETAIL,06/04/2016,OI,3826302,"3,294.00",HC105329,Leominster Taxis & Travel,201701,Environment and Place,Transport-Related Expenditure,
INSERTED DETAIL,06/04/2016,OI,3826303,"1,241.10",HC104879,K S Harris Transport,201701,Environment and Place,Transport-Related Expenditure,
INSERTED DETAIL,01/04/2016,OI,3826305,480,HC101060,Blue Line Taxis,201701,Environment and Place,Transport-Related Expenditure,
INSERTED DETAIL,06/04/2016,OI,3826306,"2,385.00",HC118023,REDACTED,201701,Environment and Place,Transport-Related Expenditure,
INSERTED DETAIL,06/04/2016,OI,3826310,"1,020.00",HC106106,Minibus Services,201701,Learning Disabilities,Transport-Related Expenditure,
INSERTED DETAIL,01/04/2016,OI,3826311,500.01,HC106106,Minibus Services,201701,Learning Disabilities,Transport-Related Expenditure,
INSERTED DETAIL,06/04/2016,OI,3826312,"1,134.00",HC106106,Minibus Services,201701,Learning Disabilities,Transport-Related Expenditure,
INSERTED DETAIL,06/04/2016,OI,3826313,"2,090.00",HC101060,Blue Line Taxis,201701,Environment and Place,Transport-Related Expenditure,
INSERTED DETAIL,01/04/2016,OI,3826314,480,HC101060,Blue Line Taxis,201701,Environment and Place,Transport-Related Expenditure,
INSERTED DETAIL,01/04/2016,OI,3826315,704,HC101060,Blue Line Taxis,201701,Environment and Place,Transport-Related Expenditure,
INSERTED DETAIL,01/04/2016,OI,3826316,"2,560.00",HC101060,Blue Line Taxis,201701,Environment and Place,Transport-Related Expenditure,
INSERTED DETAIL,01/04/2016,OI,3826317,"3,040.00",HC101060,Blue Line Taxis,201701,Environment and Place,Transport-Related Expenditure,
INSERTED DETAIL,01/04/2016,OI,3826318,840,HC101060,Blue Line Taxis,201701,Environment and Place,Transport-Related Expenditure,
INSERTED DETAIL,06/04/2016,OI,3826319,"36,595.40",HC111685,Yeomans Travel Ltd,201701,Environment and Place,Transport-Related Expenditure,
INSERTED DETAIL,06/04/2016,OI,3826321,"7,500.00",HC103461,Gloucestershire County Council,201701,Communities,Supplies & Services,
INSERTED DETAIL,06/04/2016,OI,3826324,"3,151.67",HC111054,Trustmarque Solutions Ltd,201701,Resources,Supplies & Services,
INSERTED DETAIL,06/04/2016,OI,3826327,"2,045.00",HC112779,Shawcity Ltd,201701,Environment and Place,Supplies & Services,
INSERTED DETAIL,06/04/2016,OI,3826332,"3,873.00",HC108319,Oxford University Press,201701,Communities,Supplies & Services,
INSERTED DETAIL,06/04/2016,OI,3826333,"66,109.38",HC101472,Capita Business Services Ltd,201701,Communities,Supplies & Services,
INSERTED DETAIL,08/04/2016,OI,3826335,530.63,HC118457,CLOSED TST Cardiff Ltd T/A Fix Auto Hereford,201701,Environment and Place,Transport-Related Expenditure,
INSERTED DETAIL,06/04/2016,OI,3826346,425,HC119662,REDACTED,201701,Communities,Supplies & Services,
INSERTED DETAIL,06/04/2016,OI,3826347,646,HC107633,Well Informed Ltd,201701,Communities,Supplies & Services,
INSERTED DETAIL,06/04/2016,OI,3826348,630,HC107961,NCC Services Limited,201701,Communities,Supplies & Services,
INSERTED DETAIL,13/04/2016,OI,3826352,503.09,HC104037,Hilton Cabinet Company Ltd,201701,Environment and Place,Supplies & Services,
INSERTED DETAIL,06/04/2016,OI,3826356,513,HC100495,REDACTED,201701,Environment and Place,Transport-Related Expenditure,
INSERTED DETAIL,06/04/2016,OI,3826357,"1,610.00",HC101343,Enterprise Rent A Car UK T/A Flex E Rent,201701,Environment and Place,Transport-Related Expenditure,
INSERTED DETAIL,13/04/2016,OI,3826358,522,HC101060,Blue Line Taxis,201701,Environment and Place,Transport-Related Expenditure,
INSERTED DETAIL,06/04/2016,OI,3826359,"2,862.00",HC103621,H & H Motors,201701,Environment and Place,Transport-Related Expenditure,
INSERTED DETAIL,13/04/2016,OI,3826360,"2,808.00",HC103621,H & H Motors,201701,Environment and Place,Transport-Related Expenditure,
INSERTED DETAIL,06/04/2016,OI,3826361,"1,790.98",HC103621,H & H Motors,201701,Environment and Place,Transport-Related Expenditure,
INSERTED DETAIL,06/04/2016,OI,3826362,"1,565.81",HC103621,H & H Motors,201701,Environment and Place,Transport-Related Expenditure,
INSERTED DETAIL,06/04/2016,OI,3826363,"2,231.99",HC103621,H & H Motors,201701,Environment and Place,Transport-Related Expenditure,
INSERTED DETAIL,13/04/2016,OI,3826369,"17,000.00",HC109622,Sargeants Brothers Ltd,201701,Environment and Place,Transport-Related Expenditure,
INSERTED DETAIL,06/04/2016,OI,3826370,"2,670.86",HC109622,Sargeants Brothers Ltd,201701,Environment and Place,Transport-Related Expenditure,
INSERTED DETAIL,13/04/2016,OI,3826371,"2,210.00",HC109622,Sargeants Brothers Ltd,201701,Environment and Place,Transport-Related Expenditure,
INSERTED DETAIL,13/04/2016,OI,3826372,"2,160.00",HC100495,REDACTED,201701,Environment and Place,Transport-Related Expenditure,
INSERTED DETAIL,13/04/2016,OI,3826373,"1,883.70",HC104165,I & S Coaches,201701,Environment and Place,Transport-Related Expenditure,
INSERTED DETAIL,13/04/2016,OI,3826379,"2,241.00",HC100495,REDACTED,201701,Environment and Place,Transport-Related Expenditure,
INSERTED DETAIL,13/04/2016,OI,3826380,"1,980.00",HC100495,REDACTED,201701,Environment and Place,Transport-Related Expenditure,
INSERTED DETAIL,13/04/2016,OI,3826381,"2,340.00",HC100495,REDACTED,201701,Environment and Place,Transport-Related Expenditure,
INSERTED DETAIL,13/04/2016,OI,3826382,"2,250.00",HC100495,REDACTED,201701,Environment and Place,Transport-Related Expenditure,
INSERTED DETAIL,13/04/2016,OI,3826383,432,HC103243,Frome Private Hire Cars,201701,Environment and Place,Transport-Related Expenditure,
INSERTED DETAIL,13/04/2016,OI,3826384,"1,584.00",HC100495,REDACTED,201701,Environment and Place,Transport-Related Expenditure,
INSERTED DETAIL,06/04/2016,OI,3826387,480.03,HC109443,S & R Taxis,201701,Physical Disabilities,Transport-Related Expenditure,
INSERTED DETAIL,13/04/2016,OI,3826397,600,HC111136,University Of Birmingham,201701,Safeguarding and Family Support,Supplies & Services,
INSERTED DETAIL,13/04/2016,OI,3826398,600,HC111136,University Of Birmingham,201701,Safeguarding and Family Support,Supplies & Services,
INSERTED DETAIL,13/04/2016,OI,3826399,875,HC104761,Herefordshire Marches Federation-Lord Scudamore,201701,Education and Commissioning,Employees,
INSERTED DETAIL,13/04/2016,OI,3826400,600,HC111136,University Of Birmingham,201701,Safeguarding and Family Support,Supplies & Services,
INSERTED DETAIL,13/04/2016,OI,3826401,600,HC111136,University Of Birmingham,201701,Safeguarding and Family Support,Supplies & Services,
INSERTED DETAIL,13/04/2016,OI,3826402,600,HC111136,University Of Birmingham,201701,Safeguarding and Family Support,Supplies & Services,
INSERTED DETAIL,13/04/2016,OI,3826403,600,HC111136,University Of Birmingham,201701,Safeguarding and Family Support,Supplies & Services,
INSERTED DETAIL,13/04/2016,OI,3826404,600,HC111136,University Of Birmingham,201701,Safeguarding and Family Support,Supplies & Services,
INSERTED DETAIL,13/04/2016,OI,3826405,600,HC111136,University Of Birmingham,201701,Safeguarding and Family Support,Supplies & Services,
INSERTED DETAIL,13/04/2016,OI,3826406,600,HC111136,University Of Birmingham,201701,Safeguarding and Family Support,Supplies & Services,
INSERTED DETAIL,06/04/2016,OI,3826407,"5,826.00",HC118836,Llangattock School Ltd,201701,Education and Commissioning,Third Party Payments,
INSERTED DETAIL,06/04/2016,OI,3826408,"9,600.00",HC113960,Barrs Court Academy,201701,Education and Commissioning,Support Services,
INSERTED DETAIL,06/04/2016,OI,3826410,"3,000.00",HC120905,Centre For Therapeutic Story Writing,201701,Education and Commissioning,Supplies & Services,
INSERTED DETAIL,08/04/2016,OI,3826411,535,HC101790,Prees C E Primary School,201701,Education and Commissioning,Support Services,
INSERTED DETAIL,06/04/2016,OI,3826412,"1,380.00",HC110658,The Houghton Project,201701,Education and Commissioning,Third Party Payments,
INSERTED DETAIL,08/04/2016,OI,3826413,"16,596.00",HC116488,Exhall Grange School & Science College,201701,Education and Commissioning,Third Party Payments,
INSERTED DETAIL,06/04/2016,OI,3826414,"3,445.00",HC116469,Alderman Knight School,201701,Education and Commissioning,Third Party Payments,
INSERTED DETAIL,06/04/2016,OI,3826415,"9,600.00",HC110648,BAE Trust T/A The Hereford Academy,201701,Education and Commissioning,Support Services,
INSERTED DETAIL,06/04/2016,OI,3826416,"2,992.00",HC112452,Phonak UK,201701,Education and Commissioning,Supplies & Services,
INSERTED DETAIL,06/04/2016,OI,3826417,960.25,HC106054,Microdec Plc,201701,Education and Commissioning,Supplies & Services,
INSERTED DETAIL,08/04/2016,OI,3826420,"1,080.01",HC111175,REDACTED,201701,Environment and Place,Transport-Related Expenditure,
INSERTED DETAIL,08/04/2016,OI,3826421,"1,080.01",HC111175,REDACTED,201701,Environment and Place,Transport-Related Expenditure,
INSERTED DETAIL,13/04/2016,OI,3826422,"3,600.00",HC101309,Buchanans Coaches,201701,Environment and Place,Transport-Related Expenditure,
INSERTED DETAIL,06/04/2016,OI,3826423,"2,520.05",HC101309,Buchanans Coaches,201701,Environment and Place,Transport-Related Expenditure,
INSERTED DETAIL,13/04/2016,OI,3826424,"2,571.12",HC110743,The Plynlimon Trust Community Car Scheme,201701,Environment and Place,Transport-Related Expenditure,
INSERTED DETAIL,13/04/2016,OI,3826425,"1,196.10",HC110743,The Plynlimon Trust Community Car Scheme,201701,Environment and Place,Transport-Related Expenditure,
INSERTED DETAIL,06/04/2016,OI,3826426,744.29,HC110743,The Plynlimon Trust Community Car Scheme,201701,Environment and Place,Transport-Related Expenditure,
INSERTED DETAIL,13/04/2016,OI,3826427,"2,567.15",HC110743,The Plynlimon Trust Community Car Scheme,201701,Learning Disabilities,Transport-Related Expenditure,
INSERTED DETAIL,13/04/2016,OI,3826430,"1,512.00",HC101060,Blue Line Taxis,201701,Environment and Place,Transport-Related Expenditure,
INSERTED DETAIL,13/04/2016,OI,3826431,"2,180.00",HC101060,Blue Line Taxis,201701,Environment and Place,Transport-Related Expenditure,
INSERTED DETAIL,06/04/2016,OI,3826433,699.98,HC104015,High Town Radio Taxi Group,201701,Environment and Place,Transport-Related Expenditure,
INSERTED DETAIL,06/04/2016,OI,3826435,"1,620.03",HC101060,Blue Line Taxis,201701,Environment and Place,Transport-Related Expenditure,
INSERTED DETAIL,13/04/2016,OI,3826436,"1,635.00",HC101060,Blue Line Taxis,201701,Environment and Place,Transport-Related Expenditure,
INSERTED DETAIL,13/04/2016,OI,3826437,"1,716.00",HC103243,Frome Private Hire Cars,201701,Environment and Place,Transport-Related Expenditure,
INSERTED DETAIL,13/04/2016,OI,3826442,"1,176.00",HC101060,Blue Line Taxis,201701,Learning Disabilities,Transport-Related Expenditure,
INSERTED DETAIL,13/04/2016,OI,3826443,448,HC101060,Blue Line Taxis,201701,Learning Disabilities,Transport-Related Expenditure,
INSERTED DETAIL,13/04/2016,OI,3826446,"1,760.00",HC101060,Blue Line Taxis,201701,Environment and Place,Transport-Related Expenditure,
INSERTED DETAIL,13/04/2016,OI,3826447,"1,670.00",HC101060,Blue Line Taxis,201701,Environment and Place,Transport-Related Expenditure,
INSERTED DETAIL,13/04/2016,OI,3826449,"1,190.00",HC101060,Blue Line Taxis,201701,Environment and Place,Transport-Related Expenditure,
INSERTED DETAIL,13/04/2016,OI,3826450,"2,385.00",HC103621,H & H Motors,201701,Environment and Place,Transport-Related Expenditure,
INSERTED DETAIL,13/04/2016,OI,3826452,540,HC101060,Blue Line Taxis,201701,Environment and Place,Transport-Related Expenditure,
INSERTED DETAIL,06/04/2016,OI,3826453,420,HC101060,REDACTED,201701,Safeguarding and Family Support,Transport-Related Expenditure,
INSERTED DETAIL,06/04/2016,OI,3826454,"1,260.00",HC101060,REDACTED,201701,Safeguarding and Family Support,Transport-Related Expenditure,
INSERTED DETAIL,06/04/2016,OI,3826455,"2,175.00",HC101060,REDACTED,201701,Safeguarding and Family Support,Transport-Related Expenditure,
INSERTED DETAIL,13/04/2016,OI,3826456,720,HC101060,Blue Line Taxis,201701,Environment and Place,Transport-Related Expenditure,
INSERTED DETAIL,13/04/2016,OI,3826459,"1,440.00",HC101060,Blue Line Taxis,201701,Environment and Place,Transport-Related Expenditure,
INSERTED DETAIL,13/04/2016,OI,3826466,842.8,HC109553,The Dartington Hall Trust,201701,Adults Operations,Supplies & Services,
INSERTED DETAIL,13/04/2016,OI,3826471,600,HC111136,University Of Birmingham,201701,Safeguarding and Family Support,Supplies & Services,
INSERTED DETAIL,08/04/2016,OI,3826472,"1,100.00",HC101060,REDACTED,201701,Safeguarding and Family Support,Transport-Related Expenditure,
INSERTED DETAIL,13/04/2016,OI,3826473,"1,332.00",HC101060,Blue Line Taxis,201701,Environment and Place,Transport-Related Expenditure,
INSERTED DETAIL,13/04/2016,OI,3826474,"1,440.00",HC101060,Blue Line Taxis,201701,Environment and Place,Transport-Related Expenditure,
INSERTED DETAIL,13/04/2016,OI,3826475,"3,060.00",HC101060,Blue Line Taxis,201701,Environment and Place,Transport-Related Expenditure,
INSERTED DETAIL,13/04/2016,OI,3826476,"1,980.00",HC101060,Blue Line Taxis,201701,Environment and Place,Transport-Related Expenditure,
INSERTED DETAIL,13/04/2016,OI,3826477,"2,160.00",HC101060,Blue Line Taxis,201701,Environment and Place,Transport-Related Expenditure,
INSERTED DETAIL,13/04/2016,OI,3826478,840,HC101060,Blue Line Taxis,201701,Environment and Place,Transport-Related Expenditure,
INSERTED DETAIL,08/04/2016,OI,3826479,"19,066.15",HC100633,Arriva Trains Wales Ltd,201701,Environment and Place,Transport-Related Expenditure,
INSERTED DETAIL,08/04/2016,OI,3826480,"3,196.35",HC100633,Arriva Trains Wales Ltd,201701,Environment and Place,Transport-Related Expenditure,
INSERTED DETAIL,08/04/2016,OI,3826481,"6,855.90",HC100633,Arriva Trains Wales Ltd,201701,Environment and Place,Transport-Related Expenditure,
INSERTED DETAIL,08/04/2016,OI,3826482,"11,676.20",HC100633,Arriva Trains Wales Ltd,201701,Environment and Place,Transport-Related Expenditure,
INSERTED DETAIL,08/04/2016,OI,3826483,"26,903.00",HC100633,Arriva Trains Wales Ltd,201701,Environment and Place,Transport-Related Expenditure,
INSERTED DETAIL,08/04/2016,OI,3826484,"17,964.05",HC100633,Arriva Trains Wales Ltd,201701,Environment and Place,Transport-Related Expenditure,
INSERTED DETAIL,08/04/2016,OI,3826485,"9,308.30",HC100633,Arriva Trains Wales Ltd,201701,Environment and Place,Transport-Related Expenditure,
INSERTED DETAIL,08/04/2016,OI,3826486,"10,251.60",HC100633,Arriva Trains Wales Ltd,201701,Environment and Place,Transport-Related Expenditure,
INSERTED DETAIL,08/04/2016,OI,3826488,"6,367.65",HC100633,Arriva Trains Wales Ltd,201701,Environment and Place,Transport-Related Expenditure,
INSERTED DETAIL,08/04/2016,OI,3826489,574.75,HC100656,Allstar Business Solutions Ltd (Arval),201701,Environment and Place,Transport-Related Expenditure,
INSERTED DETAIL,08/04/2016,OI,3826491,988,HC109631,The Visual Works,201701,Environment and Place,Supplies & Services,
INSERTED DETAIL,08/04/2016,OI,3826492,"2,125.00",HC103888,Hereford Pedicabs Ltd,201701,Communities,Supplies & Services,
INSERTED DETAIL,08/04/2016,OI,3826493,"11,700.00",HC109826,Shropshire Council,201701,Public Health,Supplies & Services,
INSERTED DETAIL,08/04/2016,OI,3826494,"278,489.86",HC106064,Midland Heart,201701,Learning Disabilities,Third Party Payments,
INSERTED DETAIL,13/04/2016,OI,3826495,"7,354.20",HC114833,NEPRO Limited,201701,Growth,Employees,
INSERTED DETAIL,08/04/2016,OI,3826497,"1,875.00",HC117849,REDACTED,201701,Environment and Place,Supplies & Services,
INSERTED DETAIL,28/04/2016,OI,3826499,"2,540.00",HC120201,REDACTED,201701,Environment and Place,Supplies & Services,
INSERTED DETAIL,08/04/2016,OI,3826500,"7,220.00",HC111535,Grant Thornton,201701,Resources,Supplies & Services,
INSERTED DETAIL,08/04/2016,OI,3826503,"3,444.44",HC105863,The Cart Shed,201701,Education and Commissioning,Supplies & Services,
INSERTED DETAIL,13/04/2016,OI,3826509,"4,782.00",HC112628,Siemens Plc,201701,Environment and Place,Supplies & Services,
INSERTED DETAIL,08/04/2016,OI,3826511,"4,000.00",HC114874,HCT Construction Consultants Ltd,201701,Growth,Third Party Payments,
INSERTED DETAIL,13/04/2016,OI,3826512,600,HC103702,Bearwood Associates Ltd,201701,Growth,Supplies & Services,
INSERTED DETAIL,13/04/2016,OI,3826513,600,HC103702,Bearwood Associates Ltd,201701,Growth,Supplies & Services,
INSERTED DETAIL,13/04/2016,OI,3826515,"9,482.20",HC120088,Nystart Limited,201701,Resources,Suspense Accounts,
INSERTED DETAIL,13/04/2016,OI,3826516,"1,275.00",HC111431,West Midlands Employers,201701,Directors,Employees,
INSERTED DETAIL,13/04/2016,OI,3826521,750,HC101232,Speller Metcalfe Malvern Ltd,201701,Resources Capital,Capital Expenditure,
INSERTED DETAIL,15/04/2016,OI,3826522,"15,490.25",HC101232,Speller Metcalfe Malvern Ltd,201701,Resources Capital,Capital Expenditure,
INSERTED DETAIL,13/04/2016,OI,3826524,"9,325.20",HC101232,Speller Metcalfe Malvern Ltd,201701,Resources Capital,Capital Expenditure,
INSERTED DETAIL,13/04/2016,OI,3826526,825,HC106975,Hoople Ltd,201701,Environment and Place,Supplies & Services,
INSERTED DETAIL,20/04/2016,OI,3826528,"6,695.60",HC106975,Hoople Ltd,201701,Education and Commissioning,Supplies & Services,
INSERTED DETAIL,08/04/2016,OI,3826533,"1,680.00",HC102707,ECHO,201701,Education and Commissioning,Supplies & Services,
INSERTED DETAIL,13/04/2016,OI,3826537,"1,765.50",HC104592,JBA Consulting,201701,Growth Capital,Capital Expenditure,
INSERTED DETAIL,20/04/2016,OI,3826538,626,HC106975,Hoople Ltd,201701,Adults Operations,Supplies & Services,
INSERTED DETAIL,13/04/2016,OI,3826549,760,HC111070,Tunstall Healthcare (UK) Ltd,201701,Transformation and safeguarding,Supplies & Services,
INSERTED DETAIL,08/04/2016,OI,3826552,"1,255.00",HC116840,Ricardo-AEA Ltd,201701,Environment and Place,Employees,
INSERTED DETAIL,22/04/2016,OI,3826557,"27,789.66",HC117682,Portakabin Ltd,201701,Education and Commissioning,Premises-Related Expenditure,
INSERTED DETAIL,13/04/2016,OI,3826559,840,HC100035,Bromsgrove District Council,201701,Environment and Place,Supplies & Services,
INSERTED DETAIL,08/04/2016,OI,3826561,"9,043.16",HC119748,Evesham Mechanical Services Ltd,201701,Growth Capital,Capital Expenditure,
INSERTED DETAIL,08/04/2016,OI,3826562,514,HC116465,Dudley Group of Hospitals NHS Foundation Trust,201701,Public Health,Third Party Payments,
INSERTED DETAIL,13/04/2016,OI,3826564,"1,125.00",HC120925,REDACTED,201701,Communities,Supplies & Services,
INSERTED DETAIL,08/04/2016,OI,3826565,"1,307.00",HC120928,Shoosmiths LLP,201701,Communities,Supplies & Services,
INSERTED DETAIL,08/04/2016,OI,3826569,651,HC107466,Worcestershire Health & Care NHS Trust,201701,Public Health,Third Party Payments,
INSERTED DETAIL,08/04/2016,OI,3826577,"3,581.49",HC120844,BDM Technology,201701,Communities,Supplies & Services,
INSERTED DETAIL,08/04/2016,OI,3826578,"2,017.00",HC109826,REDACTED,201701,Safeguarding and Family Support,Supplies & Services,
INSERTED DETAIL,08/04/2016,OI,3826582,"4,255.65",HC101629,Cengage Learning (EMEA) Ltd,201701,Communities,Supplies & Services,
INSERTED DETAIL,08/04/2016,OI,3826584,856,HC101060,Blue Line Taxis,201701,Environment and Place,Transport-Related Expenditure,
INSERTED DETAIL,08/04/2016,OI,3826585,840,HC101060,Blue Line Taxis,201701,Environment and Place,Transport-Related Expenditure,
INSERTED DETAIL,08/04/2016,OI,3826586,660,HC101060,Blue Line Taxis,201701,Environment and Place,Transport-Related Expenditure,
INSERTED DETAIL,08/04/2016,OI,3826587,684,HC101060,Blue Line Taxis,201701,Environment and Place,Transport-Related Expenditure,
INSERTED DETAIL,13/04/2016,OI,3826588,"1,800.00",HC101060,Blue Line Taxis,201701,Environment and Place,Transport-Related Expenditure,
INSERTED DETAIL,13/04/2016,OI,3826590,"2,360.00",HC101060,Blue Line Taxis,201701,Environment and Place,Transport-Related Expenditure,
INSERTED DETAIL,13/04/2016,OI,3826591,"2,550.00",HC114874,HCT Construction Consultants Ltd,201701,Growth Capital,Capital Expenditure,
INSERTED DETAIL,08/04/2016,OI,3826592,"9,894.86",HC119827,Alpha Eyecare Ltd,201701,Growth Capital,Capital Expenditure,
INSERTED DETAIL,08/04/2016,OI,3826595,620,HC107466,Worcestershire Health & Care NHS Trust,201701,Public Health,Third Party Payments,
INSERTED DETAIL,13/04/2016,OI,3826598,504,HC101060,Blue Line Taxis,201701,Physical Disabilities,Transport-Related Expenditure,
INSERTED DETAIL,13/04/2016,OI,3826599,"1,870.00",HC101060,Blue Line Taxis,201701,Environment and Place,Transport-Related Expenditure,
INSERTED DETAIL,13/04/2016,OI,3826600,"2,880.00",HC101060,Blue Line Taxis,201701,Environment and Place,Transport-Related Expenditure,
INSERTED DETAIL,13/04/2016,OI,3826601,"2,340.00",HC101060,Blue Line Taxis,201701,Environment and Place,Transport-Related Expenditure,
INSERTED DETAIL,13/04/2016,OI,3826602,"1,980.00",HC101060,Blue Line Taxis,201701,Environment and Place,Transport-Related Expenditure,
INSERTED DETAIL,08/04/2016,OI,3826603,"1,440.00",HC101060,Blue Line Taxis,201701,Environment and Place,Transport-Related Expenditure,
INSERTED DETAIL,13/04/2016,OI,3826606,"2,025.00",HC104674,JMC Monmouth Ltd,201701,Learning Disabilities,Transport-Related Expenditure,
INSERTED DETAIL,08/04/2016,OI,3826609,"1,980.00",HC101060,Blue Line Taxis,201701,Environment and Place,Transport-Related Expenditure,
INSERTED DETAIL,08/04/2016,OI,3826610,"3,420.00",HC101060,Blue Line Taxis,201701,Environment and Place,Transport-Related Expenditure,
INSERTED DETAIL,13/04/2016,OI,3826612,840,HC106786,REDACTED,201701,Learning Disabilities,Transport-Related Expenditure,
INSERTED DETAIL,13/04/2016,OI,3826613,"1,800.00",HC101126,Bowyer's Coaches,201701,Environment and Place,Transport-Related Expenditure,
INSERTED DETAIL,08/04/2016,OI,3826615,540,HC101060,Blue Line Taxis,201701,Environment and Place,Transport-Related Expenditure,
INSERTED DETAIL,08/04/2016,OI,3826616,480,HC101060,Blue Line Taxis,201701,Environment and Place,Transport-Related Expenditure,
INSERTED DETAIL,08/04/2016,OI,3826617,"28,712.00",HC105563,Lugg Valley Primrose Travel Ltd,201701,Environment and Place,Third Party Payments,
INSERTED DETAIL,27/04/2016,OI,3826619,500,HC111124,Unit4 Business Software Limited,201701,Resources,Supplies & Services,
INSERTED DETAIL,08/04/2016,OI,3826620,"5,266.00",HC106941,Omnibus Solutions Ltd,201701,Environment and Place,Supplies & Services,
INSERTED DETAIL,15/04/2016,OI,3826622,"2,091.00",HC106941,Omnibus Solutions Ltd,201701,Environment and Place,Supplies & Services,
INSERTED DETAIL,15/04/2016,OI,3826623,"4,182.00",HC106941,Omnibus Solutions Ltd,201701,Environment and Place,Supplies & Services,
INSERTED DETAIL,13/04/2016,OI,3826624,432,HC101060,Blue Line Taxis,201701,Physical Disabilities,Transport-Related Expenditure,
INSERTED DETAIL,13/04/2016,OI,3826628,"80,000.00",HC111603,Worcestershire County Council,201701,Education and Commissioning,Third Party Payments,
INSERTED DETAIL,13/04/2016,OI,3826629,850,HC118879,Externniture Ltd,201701,Environment and Place,Supplies & Services,
INSERTED DETAIL,28/04/2016,OI,3826634,"6,355.00",HC120796,AlienVault Inc,201701,Resources,Supplies & Services,
INSERTED DETAIL,13/04/2016,OI,3826639,550,HC109826,Shropshire Council,201701,Adults Operations,Supplies & Services,
INSERTED DETAIL,13/04/2016,OI,3826646,"1,382.24",HC109484,S M Stanley Builders Ltd,201701,Schools,Premises-Related Expenditure,
INSERTED DETAIL,13/04/2016,OI,3826652,"12,400.00",HC119964,PJH Management Consulting Ltd,201701,Directors,Supplies & Services,
INSERTED DETAIL,13/04/2016,OI,3826653,466.67,HC102259,N C Pegler Ltd,201701,Environment and Place,Supplies & Services,
INSERTED DETAIL,13/04/2016,OI,3826654,"2,734.23",HC106310,Moorfield House Surgery,201701,Environment and Place,Supplies & Services,
INSERTED DETAIL,13/04/2016,OI,3826655,"2,043.05",HC102362,Dell Corporation Ltd,201701,Resources,Supplies & Services,
INSERTED DETAIL,15/04/2016,OI,3826657,512.54,HC106660,Madley Primary School,201701,Education and Commissioning,Support Services,
INSERTED DETAIL,15/04/2016,OI,3826659,900,HC110150,Weobley High School,201701,Education and Commissioning,Support Services,
INSERTED DETAIL,13/04/2016,OI,3826660,"2,605.00",HC111603,Worcestershire County Council,201701,Environment and Place,Supplies & Services,
INSERTED DETAIL,13/04/2016,OI,3826661,"6,029.69",HC109737,Severn Waste Services Ltd,201701,Environment and Place,Supplies & Services,
INSERTED DETAIL,15/04/2016,OI,3826662,"1,813.00",HC120751,Project Textiles,201701,Schools,Supplies & Services,
INSERTED DETAIL,13/04/2016,OI,3826665,"21,394.63",HC118892,Fronting The Challenge Projects Ltd,201701,Education and Commissioning,Supplies & Services,
INSERTED DETAIL,28/04/2016,OI,3826666,520.85,HC102910,Environmental Scientifics Group Ltd,201701,Environment and Place,Supplies & Services,
INSERTED DETAIL,13/04/2016,OI,3826667,"2,157.75",HC111603,Worcestershire County Council,201701,Environment and Place,Supplies & Services,
INSERTED DETAIL,13/04/2016,OI,3826669,"4,525.20",HC109832,Sico Europe Ltd,201701,Schools Devolved Capital,Capital Expenditure,
INSERTED DETAIL,13/04/2016,OI,3826671,"1,337.50",HC120885,Hunters,201701,Resources,Supplies & Services,
INSERTED DETAIL,13/04/2016,OI,3826672,"4,485.17",HC103027,Facultatieve Technologies Limited,201701,Resources,Premises-Related Expenditure,
INSERTED DETAIL,13/04/2016,OI,3826674,741.82,HC100617,REDACTED,201701,Safeguarding and Family Support,Supplies & Services,
INSERTED DETAIL,20/04/2016,OI,3826677,553.42,HC103526,REDACTED,201701,Environment and Place,Supplies & Services,
INSERTED DETAIL,13/04/2016,OI,3826680,499,HC101293,ADASS,201701,Commissioning Adults,Supplies & Services,
INSERTED DETAIL,13/04/2016,OI,3826681,"1,470.00",HC106362,Ant's Help Ltd,201701,Education and Commissioning,Supplies & Services,
INSERTED DETAIL,13/04/2016,OI,3826699,"1,700.00",HC108022,REDACTED,201701,Adults Operations,Supplies & Services,
INSERTED DETAIL,13/04/2016,OI,3826700,"2,004.00",HC104229,Impact Print And Design Ltd,201701,Communities,Supplies & Services,
INSERTED DETAIL,13/04/2016,OI,3826701,"8,125.62",HC110975,Tradebe  Gwent Ltd,201701,Environment and Place,Supplies & Services,
INSERTED DETAIL,15/04/2016,OI,3826703,750,HC120810,Celia Butler Education Management & Consultancy,201701,Education and Commissioning,Supplies & Services,
INSERTED DETAIL,15/04/2016,OI,3826704,"1,040.00",HC120416,REDACTED,201701,Education and Commissioning,Supplies & Services,
INSERTED DETAIL,13/04/2016,OI,3826706,"1,288.00",HC104736,BSI (British Standards Institution),201701,Environment and Place,Supplies & Services,
INSERTED DETAIL,13/04/2016,OI,3826708,"1,288.00",HC104736,BSI (British Standards Institution),201701,Environment and Place,Supplies & Services,
INSERTED DETAIL,20/04/2016,OI,3826709,895,HC106975,Hoople Ltd,201701,Adults Operations,Supplies & Services,
INSERTED DETAIL,15/04/2016,OI,3826713,"1,200.00",HC120692,JMW Systems Ltd,201701,Environment and Place,Supplies & Services,
INSERTED DETAIL,13/04/2016,OI,3826717,"3,343.98",HC120412,Salop Design & Engineering,201701,Growth Capital,Capital Expenditure,
INSERTED DETAIL,13/04/2016,OI,3826727,"1,974.20",HC109622,Sargeants Brothers Ltd,201701,Environment and Place,Third Party Payments,
INSERTED DETAIL,13/04/2016,OI,3826728,"16,558.46",HC120299,REDACTED,201701,Growth Capital,Capital Expenditure,
INSERTED DETAIL,13/04/2016,OI,3826729,770.4,HC109622,Sargeants Brothers Ltd,201701,Environment and Place,Third Party Payments,
INSERTED DETAIL,13/04/2016,OI,3826730,542.5,HC103735,Hays Specialist Recruitment Ltd,201701,Environment and Place,Employees,
INSERTED DETAIL,20/04/2016,OI,3826733,637.33,HC103526,REDACTED,201701,Environment and Place,Supplies & Services,
INSERTED DETAIL,20/04/2016,OI,3826734,441.55,HC103526,REDACTED,201701,Environment and Place,Supplies & Services,
INSERTED DETAIL,13/04/2016,OI,3826743,"1,816.96",HC103959,Herefordshire Housing Ltd,201701,Education and Commissioning,Supplies & Services,
INSERTED DETAIL,13/04/2016,OI,3826744,"7,641.26",HC109622,Sargeants Brothers Ltd,201701,Environment and Place,Third Party Payments,
INSERTED DETAIL,13/04/2016,OI,3826746,"1,019.58",HC102362,Dell Corporation Ltd,201701,Environment and Place,Supplies & Services,
INSERTED DETAIL,13/04/2016,OI,3826747,"4,170.00",HC100144,Star Technology Services Ltd,201701,Resources,Supplies & Services,
INSERTED DETAIL,20/04/2016,OI,3826756,487.39,HC111060,TTS Group Ltd,201701,Safeguarding and Family Support,Supplies & Services,
INSERTED DETAIL,13/04/2016,OI,3826758,590.7,HC102685,Early Years Resources,201701,Schools,Premises-Related Expenditure,
INSERTED DETAIL,13/04/2016,OI,3826767,"4,018.00",HC110431,Business Angel Ltd,201701,Education and Commissioning,Supplies & Services,
INSERTED DETAIL,13/04/2016,OI,3826768,924.38,HC110431,Business Angel Ltd,201701,Education and Commissioning,Supplies & Services,
INSERTED DETAIL,13/04/2016,OI,3826769,"5,755.00",HC118782,TGMS Ltd,201701,Commissioning Capital,Capital Expenditure,
INSERTED DETAIL,13/04/2016,OI,3826773,"7,375.00",HC117849,REDACTED,201701,Environment and Place,Supplies & Services,
INSERTED DETAIL,28/04/2016,OI,3826774,450,HC117849,REDACTED,201701,Environment and Place,Supplies & Services,
INSERTED DETAIL,13/04/2016,OI,3826776,"1,679.40",HC101969,CVA Ledbury & District,201701,Environment and Place,Transport-Related Expenditure,
INSERTED DETAIL,28/04/2016,OI,3826777,"1,529.64",HC101969,CVA Ledbury & District,201701,Environment and Place,Transport-Related Expenditure,
INSERTED DETAIL,28/04/2016,OI,3826778,855.36,HC101969,CVA Ledbury & District,201701,Environment and Place,Transport-Related Expenditure,
INSERTED DETAIL,13/04/2016,OI,3826785,550,HC118880,Independent Social Work Assessments (East Midlands),201701,Mental Health,Supplies & Services,
INSERTED DETAIL,13/04/2016,OI,3826786,550,HC118880,Independent Social Work Assessments (East Midlands),201701,Mental Health,Supplies & Services,
INSERTED DETAIL,13/04/2016,OI,3826788,550,HC103359,Teleshore UK Ltd,201701,Environment and Place,Supplies & Services,
INSERTED DETAIL,13/04/2016,OI,3826789,"25,269.60",HC117406,SSI Schaefer Ltd,201701,Environment and Place,Supplies & Services,
INSERTED DETAIL,13/04/2016,OI,3826790,"31,528.80",HC117406,SSI Schaefer Ltd,201701,Environment and Place,Supplies & Services,
INSERTED DETAIL,13/04/2016,OI,3826791,"13,029.60",HC117406,SSI Schaefer Ltd,201701,Environment and Place,Supplies & Services,
INSERTED DETAIL,13/04/2016,OI,3826792,"39,371.80",HC117406,SSI Schaefer Ltd,201701,Environment and Place,Supplies & Services,
INSERTED DETAIL,13/04/2016,OI,3826799,"5,579.59",HC109121,Red Spark Learning CIC,201701,Education and Commissioning,Supplies & Services,
INSERTED DETAIL,13/04/2016,OI,3826802,916.67,HC101472,Capita Business Services Ltd,201701,Communities,Supplies & Services,
INSERTED DETAIL,15/04/2016,OI,3826804,"8,010.00",HC102714,Modern Mindset Ltd,201701,Communities,Supplies & Services,
INSERTED DETAIL,13/04/2016,OI,3826806,875,HC108866,Education Property Partnership Ltd,201701,Schools,Supplies & Services,
INSERTED DETAIL,13/04/2016,OI,3826811,"6,000.00",HC102354,Ledbury Rugby Football Club Ltd,201701,Resources,Supplies & Services,
INSERTED DETAIL,13/04/2016,OI,3826823,"1,023.76",HC109103,CM International UK Ltd,201701,Growth,Third Party Payments,
INSERTED DETAIL,13/04/2016,OI,3826824,656.22,HC100728,Veolia Transport T/A Astons Coaches,201701,Environment and Place,Third Party Payments,
INSERTED DETAIL,13/04/2016,OI,3826826,"6,910.83",HC115532,Enigma CCTV Ltd,201701,Environment and Place,Third Party Payments,
INSERTED DETAIL,13/04/2016,OI,3826827,"5,407.00",HC104676,JMP Consultants Ltd,201701,Growth,Third Party Payments,
INSERTED DETAIL,13/04/2016,OI,3826830,800,HC110573,The Courtyard Trust,201701,Communities,Supplies & Services,
INSERTED DETAIL,13/04/2016,OI,3826831,714.35,HC100728,Veolia Transport T/A Astons Coaches,201701,Environment and Place,Third Party Payments,
INSERTED DETAIL,20/04/2016,OI,3826832,"8,830.75",HC100728,Veolia Transport T/A Astons Coaches,201701,Environment and Place,Third Party Payments,
INSERTED DETAIL,13/04/2016,OI,3826833,"12,621.67",HC105563,Lugg Valley Primrose Travel Ltd,201701,Environment and Place,Third Party Payments,
INSERTED DETAIL,13/04/2016,OI,3826834,"11,602.57",HC110117,Stagecoach Services Limited,201701,Environment and Place,Third Party Payments,
INSERTED DETAIL,13/04/2016,OI,3826837,"3,513.00",HC100054,Absence Protection Ltd,201701,Schools,Employees,
INSERTED DETAIL,13/04/2016,OI,3826843,"6,900.00",HC119092,Pathways2Prevention Ltd,201701,Public Health,Supplies & Services,
INSERTED DETAIL,13/04/2016,OI,3826845,624,HC102898,REDACTED,201701,Safeguarding and Family Support,Supplies & Services,
INSERTED DETAIL,13/04/2016,OI,3826846,"2,312.00",HC120878,Adventure Central,201701,Schools,Supplies & Services,
INSERTED DETAIL,13/04/2016,OI,3826847,875,HC108866,Education Property Partnership Ltd,201701,Schools,Supplies & Services,
INSERTED DETAIL,15/04/2016,OI,3826850,682.5,HC111805,REDACTED,201701,Safeguarding and Family Support,Supplies & Services,
INSERTED DETAIL,13/04/2016,OI,3826851,600,HC116192,REDACTED,201701,Safeguarding and Family Support,Supplies & Services,
INSERTED DETAIL,13/04/2016,OI,3826852,900,HC116192,REDACTED,201701,Safeguarding and Family Support,Supplies & Services,
INSERTED DETAIL,13/04/2016,OI,3826857,"1,758.73",HC116984,The Heritage Practice,201701,Environment and Place,Third Party Payments,
INSERTED DETAIL,13/04/2016,OI,3826858,"2,575.00",HC114802,Malvern Hills Outdoor Education Co Ltd,201701,Schools,Supplies & Services,
INSERTED DETAIL,13/04/2016,OI,3826863,652.82,HC119408,The Wharf 1771 Ltd,201701,Growth Capital,Capital Expenditure,
INSERTED DETAIL,13/04/2016,OI,3826864,"6,028.79",HC119408,The Wharf 1771 Ltd,201701,Growth Capital,Capital Expenditure,
INSERTED DETAIL,13/04/2016,OI,3826865,"1,235.00",HC108866,Education Property Partnership Ltd,201701,Schools,Supplies & Services,
INSERTED DETAIL,13/04/2016,OI,3826866,"2,200.00",HC114180,SLS School Improvement Ltd,201701,Schools,Supplies & Services,
INSERTED DETAIL,13/04/2016,OI,3826873,"1,025.10",HC112667,School Pupil Tracker Ltd,201701,Schools,Supplies & Services,
INSERTED DETAIL,15/04/2016,OI,3826877,"1,575.00",HC112891,Sports Plus Scheme Ltd,201701,Schools,Supplies & Services,
INSERTED DETAIL,13/04/2016,OI,3826881,"1,966.50",HC116124,Woods of Whitchurch,201701,Schools,Supplies & Services,
INSERTED DETAIL,13/04/2016,OI,3826883,"3,686.60",HC102749,Edutech Solutions Ltd,201701,Schools,Supplies & Services,
INSERTED DETAIL,15/04/2016,OI,3826884,450,HC106299,Monmouth School Enterprises Ltd,201701,Schools,Premises-Related Expenditure,
INSERTED DETAIL,13/04/2016,OI,3826885,520.68,HC111380,Welsh Water,201701,Schools,Premises-Related Expenditure,
INSERTED DETAIL,13/04/2016,OI,3826886,980,HC108866,Education Property Partnership Ltd,201701,Schools,Supplies & Services,
INSERTED DETAIL,13/04/2016,OI,3826887,796,HC101503,Care Quality Commission,201701,Adults Operations,Supplies & Services,
INSERTED DETAIL,15/04/2016,OI,3826893,697.14,HC101126,Bowyer's Coaches,201701,Environment and Place,Third Party Payments,
INSERTED DETAIL,13/04/2016,OI,3826894,"2,380.00",HC110996,Travel Class Limited T/A Jca,201701,Schools,Supplies & Services,
INSERTED DETAIL,15/04/2016,OI,3826895,"2,465.40",HC112921,Ancer Spa Ltd,201701,Growth,Third Party Payments,
INSERTED DETAIL,13/04/2016,OI,3826900,"12,331.00",HC101472,Capita Business Services Ltd,201701,Resources,Supplies & Services,
INSERTED DETAIL,13/04/2016,OI,3826901,"1,200.00",HC111602,Worcestershire County Council ,201701,Resources,Supplies & Services,
INSERTED DETAIL,15/04/2016,OI,3826903,"8,993.40",HC109775,Shaw Healthcare Ltd,201701,Physical Disabilities,Employees,
INSERTED DETAIL,13/04/2016,OI,3826904,"3,234.00",HC100054,Absence Protection Ltd,201701,Schools,Employees,
INSERTED DETAIL,15/04/2016,OI,3826907,"3,207.12",HC110117,Stagecoach Services Limited,201701,Environment and Place,Third Party Payments,
INSERTED DETAIL,15/04/2016,OI,3826908,"16,710.25",HC102595,DRM (Bromyard) Ltd,201701,Environment and Place,Third Party Payments,
INSERTED DETAIL,15/04/2016,OI,3826909,"4,314.98",HC104097,Hope For Children & Their Families Ltd,201701,Resources,Premises-Related Expenditure,
INSERTED DETAIL,15/04/2016,OI,3826910,"16,750.00",HC117699,Heineken UK Ltd (Scottish & Newcastle UK),201701,Resources,Premises-Related Expenditure,
INSERTED DETAIL,15/04/2016,OI,3826911,"50,639.72",HC101815,Civica UK Limited,201701,Resources,Supplies & Services,
INSERTED DETAIL,15/04/2016,OI,3826912,"11,154.18",HC109458,S C Joseph Ltd,201701,Commissioning Capital,Capital Expenditure,
INSERTED DETAIL,20/04/2016,OI,3826914,"4,104.00",HC102464,Enviroment Agency,201701,Resources,Premises-Related Expenditure,
INSERTED DETAIL,20/04/2016,OI,3826915,"5,393.50",HC120247,Ann Skipper Planning,201701,Growth,Third Party Payments,
INSERTED DETAIL,15/04/2016,OI,3826916,"2,500.00",HC100220,Activate Educational Ltd,201701,Schools,Support Services,
INSERTED DETAIL,15/04/2016,OI,3826920,531.87,HC105730,Malvern Theatres Trust Ltd,201701,Schools,Supplies & Services,
INSERTED DETAIL,15/04/2016,OI,3826921,550,HC119662,REDACTED,201701,Communities,Supplies & Services,
INSERTED DETAIL,15/04/2016,OI,3826925,439.85,HC105111,Knockhundred Translations Ltd,201701,Safeguarding and Family Support,Supplies & Services,
INSERTED DETAIL,15/04/2016,OI,3826934,"1,293.03",HC102661,MML Marketing Ltd (e-quip4education),201701,Schools,Premises-Related Expenditure,
INSERTED DETAIL,15/04/2016,OI,3826935,430.21,HC111380,Welsh Water,201701,Schools,Premises-Related Expenditure,
INSERTED DETAIL,15/04/2016,OI,3826937,"1,617.75",HC100385,Alliance In Partnership,201701,Schools,Supplies & Services,
INSERTED DETAIL,15/04/2016,OI,3826942,"1,422.94",HC111426,West Mercia Supplies (The Consortium),201701,Schools,Supplies & Services,
INSERTED DETAIL,15/04/2016,OI,3826944,571.76,HC111380,Welsh Water,201701,Schools,Premises-Related Expenditure,
INSERTED DETAIL,15/04/2016,OI,3826948,609.02,HC101178,Bridges Electrical (Hereford) Ltd,201701,Schools,Premises-Related Expenditure,
INSERTED DETAIL,15/04/2016,OI,3826953,"2,896.00",HC108861,PTFS Ltd,201701,Environment and Place,Premises-Related Expenditure,
INSERTED DETAIL,15/04/2016,OI,3826956,924,HC108861,PTFS Ltd,201701,Environment and Place,Supplies & Services,
INSERTED DETAIL,15/04/2016,OI,3826958,"1,670.36",HC118714,Restore plc,201701,Communities,Supplies & Services,
INSERTED DETAIL,15/04/2016,OI,3826959,460.98,HC111426,West Mercia Supplies (The Consortium),201701,Schools,Premises-Related Expenditure,
INSERTED DETAIL,20/04/2016,OI,3826964,875,HC108866,Education Property Partnership Ltd,201701,Schools,Supplies & Services,
INSERTED DETAIL,22/04/2016,OI,3826965,563.3,HC101861,Clearview Cleaning Services,201701,Schools,Premises-Related Expenditure,
INSERTED DETAIL,15/04/2016,OI,3826971,"10,258.80",HC114749,Dell Financial Services,201701,Schools,Supplies & Services,
INSERTED DETAIL,20/04/2016,OI,3826972,"5,631.73",HC102778,Zurich Municipal,201701,Schools,Supplies & Services,
INSERTED DETAIL,20/04/2016,OI,3826973,546.95,HC102156,D & D Network Services Ltd,201701,Schools,Supplies & Services,
INSERTED DETAIL,15/04/2016,OI,3826974,"3,137.46",HC107729,CCIA,201701,Schools,Supplies & Services,
INSERTED DETAIL,15/04/2016,OI,3826975,605,HC103585,Gresswell,201701,Communities,Supplies & Services,
INSERTED DETAIL,22/04/2016,OI,3826980,"13,000.00",HC106196,REDACTED,201701,Environment and Place,Supplies & Services,
INSERTED DETAIL,15/04/2016,OI,3826986,540,HC119552,REDACTED,201701,Adults Operations,Supplies & Services,
INSERTED DETAIL,15/04/2016,OI,3826987,"30,000.00",HC103660,Halo Leisure Services Ltd,201701,Communities,Third Party Payments,
INSERTED DETAIL,20/04/2016,OI,3826988,"4,271.40",HC119093,DJN Planning Limited,201701,Environment and Place,Third Party Payments,
INSERTED DETAIL,15/04/2016,OI,3826989,"2,580.00",HC111602,Worcestershire County Council,201701,Consolidated Revenue Account,Supplies & Services,
INSERTED DETAIL,15/04/2016,OI,3826990,"2,919.00",HC111985,North Kesteven District Council,201701,Resources,Supplies & Services,
INSERTED DETAIL,20/04/2016,OI,3826994,"1,207.65",HC108134,Northgate Information Solutions UK Ltd,201701,Communities,Supplies & Services,
INSERTED DETAIL,15/04/2016,OI,3826995,442.98,HC103871,Hereford Industrial Supply Co Ltd / Hereford Tool Hire,201701,Environment and Place,Supplies & Services,
INSERTED DETAIL,15/04/2016,OI,3827004,"1,500.00",HC100220,Activate Educational Ltd,201701,Schools,Employees,
INSERTED DETAIL,15/04/2016,OI,3827006,930,HC108866,Education Property Partnership Ltd,201701,Schools,Supplies & Services,
INSERTED DETAIL,15/04/2016,OI,3827007,"2,200.00",HC114180,SLS School Improvement Ltd,201701,Schools,Supplies & Services,
INSERTED DETAIL,20/04/2016,OI,3827011,471.04,HC111426,West Mercia Supplies (The Consortium),201701,Schools,Supplies & Services,
INSERTED DETAIL,20/04/2016,OI,3827012,567.86,HC111380,Welsh Water,201701,Schools,Premises-Related Expenditure,
INSERTED DETAIL,15/04/2016,OI,3827019,"1,142.58",HC116363,Grenke Leasing Ltd,201701,Schools,Supplies & Services,
INSERTED DETAIL,15/04/2016,OI,3827023,"1,745.00",HC102182,Telford & Wrekin Council,201701,Communities,Supplies & Services,
INSERTED DETAIL,15/04/2016,OI,3827024,"20,728.75",HC107758,Onside Independent Advocacy,201701,Commissioning Adults,Third Party Payments,
INSERTED DETAIL,15/04/2016,OI,3827025,"13,020.75",HC107758,Onside Independent Advocacy,201701,Commissioning Adults,Third Party Payments,
INSERTED DETAIL,20/04/2016,OI,3827026,"15,000.00",HC107758,Onside Independent Advocacy,201701,Commissioning Adults,Third Party Payments,
INSERTED DETAIL,15/04/2016,OI,3827027,"1,370.00",HC106816,REDACTED,201701,Adults Operations,Premises-Related Expenditure,
INSERTED DETAIL,15/04/2016,OI,3827032,500,HC103642,H Mason & Son Ltd,201701,Schools,Premises-Related Expenditure,
INSERTED DETAIL,15/04/2016,OI,3827047,680,HC110395,Tann Synchronome Limited,201701,Schools,Premises-Related Expenditure,
INSERTED DETAIL,15/04/2016,OI,3827049,425,HC119380,Pendragon Chambers,201701,Communities,Supplies & Services,
INSERTED DETAIL,15/04/2016,OI,3827050,484,HC109152,Relion Heating Services Ltd,201701,Schools,Premises-Related Expenditure,
INSERTED DETAIL,15/04/2016,OI,3827052,"1,531.00",HC101975,Complete Security & Fire Protection Ltd,201701,Schools,Supplies & Services,
INSERTED DETAIL,15/04/2016,OI,3827053,"1,764.00",HC101975,Complete Security & Fire Protection Ltd,201701,Schools,Supplies & Services,
INSERTED DETAIL,15/04/2016,OI,3827054,"43,000.00",HC105310,LARC Development Trust,201701,Growth,Supplies & Services,
INSERTED DETAIL,15/04/2016,OI,3827056,676.31,HC111204,Veolia ES Onyx Ltd,201701,Schools,Third Party Payments,
INSERTED DETAIL,20/04/2016,OI,3827060,431.83,HC110854,Alcontrol UK Ltd,201701,Environment and Place,Supplies & Services,
INSERTED DETAIL,22/04/2016,OI,3827061,675,HC107776,CIEH Cymru Wales,201701,Environment and Place,Employees,
INSERTED DETAIL,15/04/2016,OI,3827062,"30,956.67",HC111414,West Mercia  Womens Aid,201701,Commissioning Adults,Supplies & Services,
INSERTED DETAIL,15/04/2016,OI,3827063,"19,544.06",HC113922,Royal Mail (Direct Debit only),201701,Communities,Supplies & Services,
INSERTED DETAIL,20/04/2016,OI,3827064,917.8,HC101297,BT IT Services Ltd,201701,Communities,Supplies & Services,
INSERTED DETAIL,20/04/2016,OI,3827065,"1,583.08",HC101297,BT IT Services Ltd,201701,Communities,Supplies & Services,
INSERTED DETAIL,15/04/2016,OI,3827068,946,HC101123,Boss,201701,Schools,Supplies & Services,
INSERTED DETAIL,20/04/2016,OI,3827069,"1,488.12",HC118714,Restore plc,201701,Communities,Supplies & Services,
INSERTED DETAIL,20/04/2016,OI,3827071,550,HC119380,Pendragon Chambers,201701,Communities,Supplies & Services,
INSERTED DETAIL,20/04/2016,OI,3827074,"1,500.00",HC110273,Sunderlands & Thompsons LLP,201701,Growth,Supplies & Services,
INSERTED DETAIL,20/04/2016,OI,3827077,500,HC102550,REDACTED,201701,Schools,Supplies & Services,
INSERTED DETAIL,20/04/2016,OI,3827078,"42,780.00",HC103869,Wye Valley NHS Trust,201701,Public Health,Third Party Payments,
INSERTED DETAIL,20/04/2016,OI,3827079,500,HC119477,REDACTED,201701,Growth,Third Party Payments,
INSERTED DETAIL,20/04/2016,OI,3827080,800,HC100385,Alliance In Partnership,201701,Schools,Supplies & Services,
INSERTED DETAIL,20/04/2016,OI,3827083,731.97,HC111380,Welsh Water,201701,Schools,Premises-Related Expenditure,
INSERTED DETAIL,20/04/2016,OI,3827087,500,HC111505,Wiggly Wigglers Ltd,201701,Communities,Transfer Payments,
INSERTED DETAIL,20/04/2016,OI,3827090,798,HC116542,UPS Systems PLC,201701,Environment and Place,Supplies & Services,
INSERTED DETAIL,20/04/2016,OI,3827092,"340,174.87",HC103144,Fcc Environment Services (uk) Ltd,201701,Environment and Place,Third Party Payments,
INSERTED DETAIL,20/04/2016,OI,3827094,890,HC111572,Wolters Kluwer (Uk) Ltd,201701,Resources,Supplies & Services,
INSERTED DETAIL,20/04/2016,OI,3827095,"1,069.50",HC116124,Woods of Whitchurch,201701,Schools,Supplies & Services,
INSERTED DETAIL,20/04/2016,OI,3827103,"2,646.00",HC111685,Yeomans Travel Ltd,201701,Schools,Supplies & Services,
INSERTED DETAIL,20/04/2016,OI,3827113,556,HC119899,Team Bees Ltd,201701,Schools,Supplies & Services,
INSERTED DETAIL,20/04/2016,OI,3827116,"2,458.00",HC102749,Edutech Solutions Ltd,201701,Schools,Support Services,
INSERTED DETAIL,20/04/2016,OI,3827117,967.43,HC111380,Welsh Water,201701,Schools,Premises-Related Expenditure,
INSERTED DETAIL,20/04/2016,OI,3827118,"3,698.60",HC100385,Alliance In Partnership,201701,Schools,Supplies & Services,
INSERTED DETAIL,20/04/2016,OI,3827142,"2,280.00",HC100201,Acorn Adventure,201701,Schools,Supplies & Services,
INSERTED DETAIL,20/04/2016,OI,3827145,"2,297.54",HC119293,Age UK Hereford & Locatities,201701,Public Health,Transfer Payments,
INSERTED DETAIL,20/04/2016,OI,3827147,"1,310.00",HC118978,Taurus Healthcare,201701,Public Health,Supplies & Services,
INSERTED DETAIL,20/04/2016,OI,3827150,980,HC108866,Education Property Partnership Ltd,201701,Schools,Support Services,
INSERTED DETAIL,20/04/2016,OI,3827153,600,HC109121,Red Spark Learning CIC,201701,Communities,Supplies & Services,
INSERTED DETAIL,20/04/2016,OI,3827154,775,HC109121,Red Spark Learning CIC,201701,Communities,Supplies & Services,
INSERTED DETAIL,20/04/2016,OI,3827157,"1,115.00",HC120625,Edge Training and Consultancy Ltd,201701,Adults Operations,Supplies & Services,
INSERTED DETAIL,20/04/2016,OI,3827158,"1,030.00",HC108866,Education Property Partnership Ltd,201701,Schools,Supplies & Services,
INSERTED DETAIL,20/04/2016,OI,3827159,"1,230.01",HC104207,Ikea Limited,201701,Schools,Premises-Related Expenditure,
INSERTED DETAIL,20/04/2016,OI,3827171,"1,030.00",HC118306,REDACTED,201701,Schools,Premises-Related Expenditure,
INSERTED DETAIL,20/04/2016,OI,3827172,746.25,HC111313,Walford Timber Ltd,201701,Schools,Supplies & Services,
INSERTED DETAIL,20/04/2016,OI,3827175,556,HC110034,Superstars/Sports Stars Ltd,201701,Schools,Supplies & Services,
INSERTED DETAIL,20/04/2016,OI,3827176,760,HC118384,Greenfield Creations Ltd,201701,Environment and Place,Supplies & Services,
INSERTED DETAIL,20/04/2016,OI,3827181,445,HC100655,ICCM,201701,Environment and Place,Supplies & Services,
INSERTED DETAIL,20/04/2016,OI,3827184,"3,089.02",HC109671,Sciprint Limited,201701,Communities,Supplies & Services,
INSERTED DETAIL,20/04/2016,OI,3827189,730,HC120872,REDACTED,201701,Schools,Supplies & Services,
INSERTED DETAIL,20/04/2016,OI,3827190,"1,185.00",HC108866,Education Property Partnership Ltd,201701,Schools,Supplies & Services,
INSERTED DETAIL,22/04/2016,OI,3827192,"6,120.00",HC116338,Mark Bishop Fire & Security Ltd,201701,Schools,Premises-Related Expenditure,
INSERTED DETAIL,22/04/2016,OI,3827193,462,HC120690,Black Pepper (Ledbury) Ltd,201701,Schools,Supplies & Services,
INSERTED DETAIL,22/04/2016,OI,3827201,"1,064.00",HC108799,Primarily Science,201701,Schools,Supplies & Services,
INSERTED DETAIL,20/04/2016,OI,3827202,"1,038.25",HC109717,Sentinel Security Systems,201701,Schools,Premises-Related Expenditure,
INSERTED DETAIL,20/04/2016,OI,3827203,635.91,HC109835,Siemens Financial Services Ltd,201701,Schools,Supplies & Services,
INSERTED DETAIL,20/04/2016,OI,3827206,519,HC109484,S M Stanley Builders Ltd,201701,Schools,Premises-Related Expenditure,
INSERTED DETAIL,20/04/2016,OI,3827209,622.5,HC117119,Smart Payments Ltd,201701,Schools,Supplies & Services,
INSERTED DETAIL,20/04/2016,OI,3827213,528.64,HC118495,CK Office Services Ltd T/A UK Educational Furniture,201701,Schools,Premises-Related Expenditure,
INSERTED DETAIL,20/04/2016,OI,3827223,"2,000.00",HC110429,Encore Enterprises,201701,Communities,Third Party Payments,
INSERTED DETAIL,20/04/2016,OI,3827228,556,HC110034,Superstars/Sports Stars Ltd,201701,Schools,Supplies & Services,
INSERTED DETAIL,22/04/2016,OI,3827238,"8,582.52",HC114833,NEPRO Limited,201701,Environment and Place,Third Party Payments,
INSERTED DETAIL,22/04/2016,OI,3827244,"1,515.80",HC109826,Shropshire Council,201701,Schools,Supplies & Services,
INSERTED DETAIL,20/04/2016,OI,3827246,600,HC108361,P W Jones (Hereford) Ltd,201701,Schools,Transport-Related Expenditure,
INSERTED DETAIL,20/04/2016,OI,3827249,797.35,HC102941,Discovery Education Europe Ltd,201701,Schools,Supplies & Services,
INSERTED DETAIL,20/04/2016,OI,3827257,"2,500.00",HC100220,Activate Educational Ltd,201701,Schools,Supplies & Services,
INSERTED DETAIL,20/04/2016,OI,3827258,"3,735.00",HC116984,The Heritage Practice,201701,Environment and Place,Supplies & Services,
INSERTED DETAIL,20/04/2016,OI,3827259,"1,037.50",HC117739,REDACTED,201701,Schools,Supplies & Services,
INSERTED DETAIL,20/04/2016,OI,3827263,891,HC102156,D & D Network Services Ltd,201701,Schools,Supplies & Services,
INSERTED DETAIL,20/04/2016,OI,3827265,"218,741.40",HC111602,Worcestershire County Council,201701,Consolidated Revenue Account,Supplies & Services,
INSERTED DETAIL,20/04/2016,OI,3827277,420,HC120783,Hub 4 Leaders Ltd,201701,Schools,Supplies & Services,
INSERTED DETAIL,20/04/2016,OI,3827278,"17,347.89",HC120981,Luminescence Ltd,201701,Growth Capital,Capital Expenditure,
INSERTED DETAIL,20/04/2016,OI,3827279,"9,105.19",HC119740,Harrier Fluid Power Ltd T/A Flowfit,201701,Growth Capital,Capital Expenditure,
INSERTED DETAIL,22/04/2016,OI,3827280,"55,126.50",HC109769,Shaw Healthcare (Herefordshire) Ltd,201701,Physical Disabilities,Third Party Payments,
INSERTED DETAIL,20/04/2016,OI,3827281,"4,748.91",HC109769,Shaw Healthcare (Herefordshire) Ltd,201701,Physical Disabilities,Third Party Payments,
INSERTED DETAIL,20/04/2016,OI,3827283,"4,800.00",HC109769,Shaw Healthcare (Herefordshire) Ltd,201701,Physical Disabilities,Third Party Payments,
INSERTED DETAIL,20/04/2016,OI,3827284,"244,554.30",HC109769,Shaw Healthcare (Herefordshire) Ltd,201701,Physical Disabilities,Third Party Payments,
INSERTED DETAIL,04/05/2016,OI,3827285,"4,250.00",HC108194,Octaga Security Services Ltd,201701,Environment and Place,Supplies & Services,
INSERTED DETAIL,20/04/2016,OI,3827286,"3,032.34",HC116984,The Heritage Practice,201701,Environment and Place,Third Party Payments,
INSERTED DETAIL,20/04/2016,OI,3827288,"1,475.00",HC110767,REDACTED,201701,Adults Operations,Premises-Related Expenditure,
INSERTED DETAIL,20/04/2016,OI,3827290,"1,971.02",HC106975,Hoople Ltd,201701,Communities,Support Services,
INSERTED DETAIL,20/04/2016,OI,3827291,"2,620.00",HC112502,Alcium Software Ltd,201701,Growth,Supplies & Services,
INSERTED DETAIL,20/04/2016,OI,3827293,"9,419.60",HC100633,Arriva Trains Wales Ltd,201701,Environment and Place,Transport-Related Expenditure,
INSERTED DETAIL,20/04/2016,OI,3827294,"6,710.75",HC100633,Arriva Trains Wales Ltd,201701,Environment and Place,Transport-Related Expenditure,
INSERTED DETAIL,20/04/2016,OI,3827295,"13,511.70",HC100633,Arriva Trains Wales Ltd,201701,Environment and Place,Transport-Related Expenditure,
INSERTED DETAIL,22/04/2016,OI,3827296,613.81,HC120961,Unicard Ltd,201701,Environment and Place,Supplies & Services,
INSERTED DETAIL,20/04/2016,OI,3827297,"43,271.93",HC111685,Yeomans Travel Ltd,201701,Environment and Place,Third Party Payments,
INSERTED DETAIL,22/04/2016,OI,3827299,591.23,HC120961,Unicard Ltd,201701,Environment and Place,Supplies & Services,
INSERTED DETAIL,22/04/2016,OI,3827300,597.76,HC120961,Unicard Ltd,201701,Environment and Place,Supplies & Services,
INSERTED DETAIL,22/04/2016,OI,3827301,638.83,HC120961,Unicard Ltd,201701,Environment and Place,Supplies & Services,
INSERTED DETAIL,27/04/2016,OI,3827304,"1,000.00",HC112522,Derbyshire County Council,201701,Central Childrens Directorate Costs,Supplies & Services,
INSERTED DETAIL,20/04/2016,OI,3827311,"1,750.00",HC102749,Edutech Solutions Ltd,201701,Schools,Supplies & Services,
INSERTED DETAIL,20/04/2016,OI,3827318,"3,990.00",HC111603,Worcestershire County Council,201701,Environment and Place,Transport-Related Expenditure,
INSERTED DETAIL,20/04/2016,OI,3827319,"2,740.00",HC101727,Fieldwork Education,201701,Schools,Supplies & Services,
INSERTED DETAIL,20/04/2016,OI,3827323,700,HC110289,All Safety Matters Ltd,201701,Schools,Supplies & Services,
INSERTED DETAIL,20/04/2016,OI,3827327,"1,524.40",HC108646,PHS Group Plc,201701,Schools,Supplies & Services,
INSERTED DETAIL,20/04/2016,OI,3827328,"1,665.83",HC101878,Climb On Bikes,201701,Holding Codes,Holding Codes,
INSERTED DETAIL,20/04/2016,OI,3827329,"1,395.00",HC109649,WSP UK Limited (Parsons Brinckerhoff),201701,Growth Capital,Suspense Accounts,
INSERTED DETAIL,20/04/2016,OI,3827330,"2,673.15",HC109649,WSP UK Limited (Parsons Brinckerhoff),201701,Growth Capital,Suspense Accounts,
INSERTED DETAIL,22/04/2016,OI,3827331,"2,045.50",HC109649,WSP UK Limited (Parsons Brinckerhoff),201701,Growth Capital,Capital Expenditure,
INSERTED DETAIL,20/04/2016,OI,3827332,795,HC109649,WSP UK Limited (Parsons Brinckerhoff),201701,Growth Capital,Suspense Accounts,
INSERTED DETAIL,20/04/2016,OI,3827333,"2,195.00",HC109649,WSP UK Limited (Parsons Brinckerhoff),201701,Growth Capital,Suspense Accounts,
INSERTED DETAIL,20/04/2016,OI,3827341,"7,272.00",HC103954,Herefordshire Headway,201701,Commissioning Adults,Supplies & Services,
INSERTED DETAIL,20/04/2016,OI,3827342,564,HC108208,ESPO,201701,Schools,Premises-Related Expenditure,
INSERTED DETAIL,27/04/2016,OI,3827346,950,HC108866,Education Property Partnership Ltd,201701,Schools,Supplies & Services,
INSERTED DETAIL,20/04/2016,OI,3827350,711.85,HC108306,Owen Fuels,201701,Schools,Premises-Related Expenditure,
INSERTED DETAIL,20/04/2016,OI,3827354,"1,750.00",HC102749,Edutech Solutions Ltd,201701,Schools,Support Services,
INSERTED DETAIL,20/04/2016,OI,3827355,"1,285.00",HC102335,BPP Learning Media Ltd,201701,Communities,Supplies & Services,
INSERTED DETAIL,27/04/2016,OI,3827356,"1,838.53",HC117651,Michael Page International Recruitment Ltd,201701,Communities,Employees,
INSERTED DETAIL,22/04/2016,OI,3827357,"5,068.38",HC117651,Michael Page International Recruitment Ltd,201701,Communities,Employees,
INSERTED DETAIL,20/04/2016,OI,3827374,"16,187.00",HC120775,Avantis Systems Ltd,201701,Schools Devolved Capital,Capital Expenditure,
INSERTED DETAIL,27/04/2016,OI,3827375,"1,529.80",HC104284,Insight Direct (UK) Ltd,201701,Communities,Supplies & Services,
INSERTED DETAIL,27/04/2016,OI,3827378,546.34,HC112412,Forward Products,201701,Schools,Supplies & Services,
INSERTED DETAIL,20/04/2016,OI,3827379,"133,313.03",HC108307,Owen Pell Ltd,201701,Growth Capital,Capital Expenditure,
INSERTED DETAIL,20/04/2016,OI,3827384,"1,138.00",HC118978,Taurus Healthcare,201701,Public Health,Supplies & Services,
INSERTED DETAIL,27/04/2016,OI,3827385,759.23,HC114093,H G Clewer Ltd,201701,Public Health,Supplies & Services,
INSERTED DETAIL,27/04/2016,OI,3827386,605.58,HC114093,H G Clewer Ltd,201701,Public Health,Supplies & Services,
INSERTED DETAIL,27/04/2016,OI,3827387,862.98,HC114093,H G Clewer Ltd,201701,Public Health,Supplies & Services,
INSERTED DETAIL,20/04/2016,OI,3827393,484.22,HC110998,REDACTED,201701,Adults Operations,Supplies & Services,
INSERTED DETAIL,27/04/2016,OI,3827394,600,HC119987,DB Coaching & Consultancy Ltd,201701,Transformation and safeguarding,Supplies & Services,
INSERTED DETAIL,22/04/2016,OI,3827397,"1,190.00",HC120954,Robertsbridge Community College,201701,Education and Commissioning,Support Services,
INSERTED DETAIL,20/04/2016,OI,3827398,"3,000.00",HC117835,The Brookfield School (Academy),201701,Education and Commissioning,Support Services,
INSERTED DETAIL,20/04/2016,OI,3827399,535,HC118939,Riverside Primary School - HCC,201701,Education and Commissioning,Support Services,
INSERTED DETAIL,20/04/2016,OI,3827400,"46,424.67",HC108651,National Youth Advocacy Service (nyas),201701,Education and Commissioning,Third Party Payments,
INSERTED DETAIL,20/04/2016,OI,3827401,"43,352.00",HC100213,REDACTED,201701,Safeguarding and Family Support,Supplies & Services,
INSERTED DETAIL,20/04/2016,OI,3827411,988.74,HC100976,Bespoke Cleaning Services,201701,Schools,Premises-Related Expenditure,
INSERTED DETAIL,20/04/2016,OI,3827416,480,HC103950,Herefordshire Football Association,201701,Schools,Supplies & Services,
INSERTED DETAIL,22/04/2016,OI,3827430,"31,378.35",HC101301,BT PLC,201701,Environment and Place,Supplies & Services,
INSERTED DETAIL,22/04/2016,OI,3827438,"1,040.00",HC118835,UK Media Ltd,201701,Schools,Supplies & Services,
INSERTED DETAIL,22/04/2016,OI,3827452,611.4,HC120404,REDACTED,201701,Mental Health,Supplies & Services,
INSERTED DETAIL,27/04/2016,OI,3827459,795,HC105617,M & M Productions,201701,Schools,Supplies & Services,
INSERTED DETAIL,27/04/2016,OI,3827461,"1,050.00",HC117586,Vince Mantle Flooring Ltd,201701,Schools,Premises-Related Expenditure,
INSERTED DETAIL,22/04/2016,OI,3827466,"87,479.18",HC101472,Capita Business Services Ltd,201701,Resources,Supplies & Services,
INSERTED DETAIL,22/04/2016,OI,3827477,720,HC101647,Cf Asset Finance Ltd,201701,Schools,Supplies & Services,
INSERTED DETAIL,22/04/2016,OI,3827478,"5,215.00",HC108604,PGL Travel Ltd,201701,Schools,Supplies & Services,
INSERTED DETAIL,22/04/2016,OI,3827479,450,HC108548,123Comms Ltd,201701,Schools,Supplies & Services,
INSERTED DETAIL,22/04/2016,OI,3827486,554.2,HC101003,Bikold Ltd,201701,Schools,Supplies & Services,
INSERTED DETAIL,22/04/2016,OI,3827492,"1,166.10",HC111508,Wigmore High School (Academy),201701,Schools,Supplies & Services,
INSERTED DETAIL,22/04/2016,OI,3827494,451,HC102232,Dancefest,201701,Schools,Supplies & Services,
INSERTED DETAIL,22/04/2016,OI,3827501,636.52,HC111426,West Mercia Supplies (The Consortium),201701,Schools,Supplies & Services,
INSERTED DETAIL,22/04/2016,OI,3827511,"1,032.00",HC110034,Superstars/Sports Stars Ltd,201701,Schools,Supplies & Services,
INSERTED DETAIL,22/04/2016,OI,3827518,767.55,HC112008,CPL Petroleum,201701,Schools,Premises-Related Expenditure,
INSERTED DETAIL,27/04/2016,OI,3827529,"2,200.00",HC114180,SLS School Improvement Ltd,201701,Schools,Employees,
INSERTED DETAIL,27/04/2016,OI,3827530,600,HC115590,Phillips & Leslie Education Consultants,201701,Schools,Employees,
INSERTED DETAIL,22/04/2016,OI,3827531,530,HC110698,The Music Pool,201701,Schools,Supplies & Services,
INSERTED DETAIL,27/04/2016,OI,3827546,"2,574.00",HC100385,Alliance In Partnership,201701,Schools,Supplies & Services,
INSERTED DETAIL,22/04/2016,OI,3827547,"1,650.00",HC100254,REDACTED,201701,Schools,Supplies & Services,
INSERTED DETAIL,22/04/2016,OI,3827548,"2,999.92",HC104022,Highwell House,201701,Physical Disabilities,Third Party Payments,
INSERTED DETAIL,22/04/2016,OI,3827552,"1,800.00",HC111604,Edge Hill University,201701,Schools,Employees,
INSERTED DETAIL,22/04/2016,OI,3827559,658.57,HC104018,Highground Maintenance Limited,201701,Schools,Premises-Related Expenditure,
INSERTED DETAIL,22/04/2016,OI,3827562,620,HC110406,Tasc Software Solutions Ltd,201701,Schools,Supplies & Services,
INSERTED DETAIL,27/04/2016,OI,3827565,916.6,HC102702,Ebuyer (Uk) Ltd,201701,Schools,Supplies & Services,
INSERTED DETAIL,22/04/2016,OI,3827566,"3,442.50",HC109197,Impero Solutions Ltd,201701,Schools,Supplies & Services,
INSERTED DETAIL,22/04/2016,OI,3827569,733.28,HC102702,Ebuyer (Uk) Ltd,201701,Schools,Supplies & Services,
INSERTED DETAIL,27/04/2016,OI,3827570,785,HC104194,IDN Supplies Ltd,201701,Schools,Supplies & Services,
INSERTED DETAIL,22/04/2016,OI,3827572,596.99,HC100760,AV Parts Master Ltd,201701,Schools,Supplies & Services,
INSERTED DETAIL,22/04/2016,OI,3827577,"4,500.00",HC110452,Telephone Europe Ltd,201701,Schools Devolved Capital,Capital Expenditure,
INSERTED DETAIL,22/04/2016,OI,3827578,"1,547.00",HC108209,REDACTED,201701,Safeguarding and Family Support,Supplies & Services,
INSERTED DETAIL,22/04/2016,OI,3827580,437.6,HC104882,REDACTED,201701,Schools,Supplies & Services,
INSERTED DETAIL,28/04/2016,OI,3827582,900,HC117411,REDACTED,201701,Safeguarding and Family Support,Supplies & Services,
INSERTED DETAIL,22/04/2016,OI,3827583,"11,801.00",HC105863,The Cart Shed,201701,Public Health,Transfer Payments,
INSERTED DETAIL,22/04/2016,OI,3827584,640,HC119662,REDACTED,201701,Communities,Supplies & Services,
INSERTED DETAIL,22/04/2016,OI,3827585,550,HC119662,REDACTED,201701,Communities,Supplies & Services,
INSERTED DETAIL,22/04/2016,OI,3827588,"1,500.00",HC100220,Activate Educational Ltd,201701,Schools,Supplies & Services,
INSERTED DETAIL,22/04/2016,OI,3827589,875,HC108866,Education Property Partnership Ltd,201701,Schools,Supplies & Services,
INSERTED DETAIL,22/04/2016,OI,3827590,"3,075.00",HC119662,REDACTED,201701,Communities,Supplies & Services,
INSERTED DETAIL,22/04/2016,OI,3827591,750,HC119662,REDACTED,201701,Communities,Supplies & Services,
INSERTED DETAIL,22/04/2016,OI,3827592,"2,417.00",HC108209,REDACTED,201701,Safeguarding and Family Support,Supplies & Services,
INSERTED DETAIL,22/04/2016,OI,3827593,875,HC119662,REDACTED,201701,Communities,Supplies & Services,
INSERTED DETAIL,27/04/2016,OI,3827596,747.5,HC118077,REDACTED,201701,Safeguarding and Family Support,Supplies & Services,
INSERTED DETAIL,22/04/2016,OI,3827597,668.5,HC114841,REDACTED,201701,Safeguarding and Family Support,Supplies & Services,
INSERTED DETAIL,22/04/2016,OI,3827598,687.37,HC103981,Herefordshire Vision Links,201701,Commissioning Adults,Supplies & Services,
INSERTED DETAIL,22/04/2016,OI,3827601,"1,753.30",HC103869,Wye Valley NHS Trust,201701,Schools,Supplies & Services,
INSERTED DETAIL,22/04/2016,OI,3827602,"1,098.30",HC109769,Shaw Healthcare (Herefordshire) Ltd,201701,Physical Disabilities,Employees,
INSERTED DETAIL,22/04/2016,OI,3827604,"3,714.07",HC111508,Wigmore High School (Academy),201701,Communities,Supplies & Services,
INSERTED DETAIL,22/04/2016,OI,3827610,"1,285.00",HC102335,BPP Learning Media Ltd,201701,Communities,Supplies & Services,
INSERTED DETAIL,27/04/2016,OI,3827616,498,HC112495,Phil Cutter Electrical Services,201701,Schools,Premises-Related Expenditure,
INSERTED DETAIL,22/04/2016,OI,3827624,875,HC119662,REDACTED,201701,Communities,Supplies & Services,
INSERTED DETAIL,22/04/2016,OI,3827626,"1,875.00",HC121000,REDACTED,201701,Communities,Supplies & Services,
INSERTED DETAIL,22/04/2016,OI,3827627,800,HC121000,REDACTED,201701,Communities,Supplies & Services,
INSERTED DETAIL,22/04/2016,OI,3827628,"11,194.00",HC110717,The NST Travel Group Plc,201701,Schools,Supplies & Services,
INSERTED DETAIL,04/05/2016,OI,3827633,"5,482.55",HC111685,Yeomans Travel Ltd,201701,Environment and Place,Third Party Payments,
INSERTED DETAIL,27/04/2016,OI,3827634,744.7,HC111685,Yeomans Travel Ltd,201701,Environment and Place,Third Party Payments,
INSERTED DETAIL,22/04/2016,OI,3827635,"6,409.50",HC111685,Yeomans Travel Ltd,201701,Environment and Place,Third Party Payments,
INSERTED DETAIL,22/04/2016,OI,3827636,861.15,HC105563,Lugg Valley Primrose Travel Ltd,201701,Environment and Place,Third Party Payments,
INSERTED DETAIL,22/04/2016,OI,3827637,"5,960.00",HC109988,South Wye Community Association,201701,Resources,Premises-Related Expenditure,
INSERTED DETAIL,22/04/2016,OI,3827641,"2,187.00",HC102749,Edutech Solutions Ltd,201701,Schools,Supplies & Services,
INSERTED DETAIL,22/04/2016,OI,3827642,477.31,HC111426,West Mercia Supplies (The Consortium),201701,Schools,Supplies & Services,
INSERTED DETAIL,22/04/2016,OI,3827644,550,HC120902,REDACTED,201701,Communities,Supplies & Services,
INSERTED DETAIL,22/04/2016,OI,3827645,"96,191.37",HC108143,Nottingham Rehab Ltd,201701,Commissioning Adults,Supplies & Services,
INSERTED DETAIL,22/04/2016,OI,3827645,"15,802.17",HC108143,Nottingham Rehab Ltd,201701,Commissioning Adults,Transport-Related Expenditure,
INSERTED DETAIL,22/04/2016,OI,3827647,425,HC119662,REDACTED,201701,Safeguarding and Family Support,Supplies & Services,
INSERTED DETAIL,27/04/2016,OI,3827648,"1,958.65",HC116901,REDACTED,201701,Safeguarding and Family Support,Supplies & Services,
INSERTED DETAIL,22/04/2016,OI,3827651,"8,500.00",HC104591,Robert West Consulting Ltd,201701,Growth,Supplies & Services,
INSERTED DETAIL,22/04/2016,OI,3827652,999.99,HC118106,Ecoteric Ltd,201701,Growth,Supplies & Services,
INSERTED DETAIL,22/04/2016,OI,3827654,447.5,HC119662,REDACTED,201701,Communities,Supplies & Services,
INSERTED DETAIL,22/04/2016,OI,3827655,425,HC119663,REDACTED,201701,Communities,Supplies & Services,
INSERTED DETAIL,22/04/2016,OI,3827673,495.86,HC111426,West Mercia Supplies (The Consortium),201701,Schools,Supplies & Services,
INSERTED DETAIL,28/04/2016,OI,3827680,849.76,HC120865,REDACTED,201701,Schools,Supplies & Services,
INSERTED DETAIL,27/04/2016,OI,3827684,700,HC120966,Business Checkmate Ltd,201701,Communities,Supplies & Services,
INSERTED DETAIL,27/04/2016,OI,3827688,500,HC109660,Nicholas O'Sullivan T/A Fire and Risk Management Services,201701,Schools,Supplies & Services,
INSERTED DETAIL,28/04/2016,OI,3827690,"1,040.00",HC105676,M&S Coaches Of Hereford Limited,201701,Schools,Supplies & Services,
INSERTED DETAIL,27/04/2016,OI,3827693,834.92,HC106071,Midshire Business Systems Ltd,201701,Schools,Supplies & Services,
INSERTED DETAIL,27/04/2016,OI,3827696,600,HC105985,Mercia Radiotelephones Ltd,201701,Communities,Supplies & Services,
INSERTED DETAIL,27/04/2016,OI,3827699,"3,549.94",HC104879,K S Harris Transport,201701,Environment and Place,Transport-Related Expenditure,
INSERTED DETAIL,27/04/2016,OI,3827701,"1,485.00",HC100495,REDACTED,201701,Environment and Place,Transport-Related Expenditure,
INSERTED DETAIL,27/04/2016,OI,3827705,562,HC113877,Albion Computers PLC,201701,Education and Commissioning,Supplies & Services,
INSERTED DETAIL,27/04/2016,OI,3827706,636.76,HC117432,University Hospitals Bristol NHS Foundation Trust,201701,Public Health,Third Party Payments,
INSERTED DETAIL,27/04/2016,OI,3827708,650,HC116200,Kids Football Fun & Fitness Ltd (Footie Bugs),201701,Schools,Supplies & Services,
INSERTED DETAIL,27/04/2016,OI,3827712,"2,200.00",HC114180,SLS School Improvement Ltd,201701,Schools,Support Services,
INSERTED DETAIL,27/04/2016,OI,3827713,825.44,HC115887,Serve (DHET) LtD,201701,Schools,Support Services,
INSERTED DETAIL,27/04/2016,OI,3827717,"26,598.00",HC117279,Quattro Design Architects Ltd,201701,Growth Capital,Capital Expenditure,
INSERTED DETAIL,27/04/2016,OI,3827718,"11,700.00",HC114133,One Creative Environments Ltd,201701,Growth Capital,Capital Expenditure,
INSERTED DETAIL,27/04/2016,OI,3827720,"18,720.00",HC114133,One Creative Environments Ltd,201701,Growth Capital,Capital Expenditure,
INSERTED DETAIL,27/04/2016,OI,3827721,656.9,HC109767,Shaw & Sons Ltd,201701,Communities,Supplies & Services,
INSERTED DETAIL,27/04/2016,OI,3827722,877.65,HC109767,Shaw & Sons Ltd,201701,Communities,Supplies & Services,
INSERTED DETAIL,27/04/2016,OI,3827723,820.37,HC109767,Shaw & Sons Ltd,201701,Communities,Supplies & Services,
INSERTED DETAIL,27/04/2016,OI,3827724,"5,142.67",HC109767,Shaw & Sons Ltd,201701,Communities,Supplies & Services,
INSERTED DETAIL,27/04/2016,OI,3827733,900,HC111603,Worcestershire County Council,201701,Communities,Supplies & Services,
INSERTED DETAIL,27/04/2016,OI,3827734,527,HC110698,The Music Pool,201701,Communities,Supplies & Services,
INSERTED DETAIL,27/04/2016,OI,3827739,425,HC112700,Jigsaw Consultancy,201701,Communities,Supplies & Services,
INSERTED DETAIL,27/04/2016,OI,3827742,"1,290.00",HC108866,Education Property Partnership Ltd,201701,Schools,Supplies & Services,
INSERTED DETAIL,27/04/2016,OI,3827744,"4,000.00",HC100220,Activate Educational Ltd,201701,Schools,Supplies & Services,
INSERTED DETAIL,27/04/2016,OI,3827752,"2,440.74",HC103869,Wye Valley NHS Trust,201701,Schools,Supplies & Services,
INSERTED DETAIL,28/04/2016,OI,3827754,822.87,HC109152,Relion Heating Services Ltd,201701,Schools,Premises-Related Expenditure,
INSERTED DETAIL,27/04/2016,OI,3827755,650,HC109660,Nicholas O'Sullivan T/A Fire and Risk Management Services,201701,Schools,Supplies & Services,
INSERTED DETAIL,27/04/2016,OI,3827756,"1,391.00",HC103660,Halo Leisure Services Ltd,201701,Schools,Premises-Related Expenditure,
INSERTED DETAIL,27/04/2016,OI,3827758,600,HC109425,Ruth Miskin Literacy Ltd,201701,Schools,Employees,
INSERTED DETAIL,27/04/2016,OI,3827761,"3,097.40",HC109826,Shropshire Council,201701,Schools,Supplies & Services,
INSERTED DETAIL,27/04/2016,OI,3827770,"2,367.75",HC111941,Yorkshire Purchasing,201701,Schools,Premises-Related Expenditure,
INSERTED DETAIL,27/04/2016,OI,3827771,"5,195.00",HC105192,Ashfords LLP,201701,Communities,Supplies & Services,
INSERTED DETAIL,27/04/2016,OI,3827776,472.15,HC101291,Education Umbrella Ltd,201701,Schools,Supplies & Services,
INSERTED DETAIL,27/04/2016,OI,3827784,707.5,HC106975,Hoople Ltd,201701,Schools,Supplies & Services,
INSERTED DETAIL,27/04/2016,OI,3827785,"1,431.00",HC117855,Superstars Intervention Ltd,201701,Schools,Supplies & Services,
INSERTED DETAIL,27/04/2016,OI,3827792,"1,200.00",HC116359,Chess in Schools and Communities,201701,Schools,Supplies & Services,
INSERTED DETAIL,27/04/2016,OI,3827793,"1,262.45",HC102728,Education City Ltd,201701,Schools,Supplies & Services,
INSERTED DETAIL,27/04/2016,OI,3827795,897,HC116363,Grenke Leasing Ltd,201701,Schools,Supplies & Services,
INSERTED DETAIL,27/04/2016,OI,3827799,507,HC101051,Madley Parish Hall,201701,Schools,Supplies & Services,
INSERTED DETAIL,27/04/2016,OI,3827801,"1,055.00",HC110424,Teachers2parents Ltd,201701,Schools,Supplies & Services,
INSERTED DETAIL,27/04/2016,OI,3827803,824,HC110034,Superstars/Sports Stars Ltd,201701,Schools,Supplies & Services,
INSERTED DETAIL,27/04/2016,OI,3827804,824,HC110034,Superstars/Sports Stars Ltd,201701,Schools,Supplies & Services,
INSERTED DETAIL,28/04/2016,OI,3827805,519.34,HC109997,Spa Gas Ltd,201701,Schools,Premises-Related Expenditure,
INSERTED DETAIL,27/04/2016,OI,3827806,"3,600.00",HC109818,Realising Learning Ltd,201701,Schools,Employees,
INSERTED DETAIL,27/04/2016,OI,3827807,533,HC108761,REDACTED,201701,Safeguarding and Family Support,Supplies & Services,
INSERTED DETAIL,27/04/2016,OI,3827808,"3,600.00",HC109818,Realising Learning Ltd,201701,Schools,Employees,
INSERTED DETAIL,27/04/2016,OI,3827810,"2,242.00",HC115217,NHS Herefordshire CCG,201701,Public Health,Supplies & Services,
INSERTED DETAIL,28/04/2016,OI,3827823,807.56,HC109484,S M Stanley Builders Ltd,201701,Schools,Premises-Related Expenditure,
INSERTED DETAIL,27/04/2016,OI,3827828,"1,602.70",HC115657,Powys County Council,201701,Schools,Supplies & Services,
INSERTED DETAIL,27/04/2016,OI,3827835,"3,600.00",HC109818,Realising Learning Ltd,201701,Schools,Employees,
INSERTED DETAIL,27/04/2016,OI,3827836,"3,000.00",HC100867,Ciber UK Ltd,201701,Resources,Supplies & Services,
INSERTED DETAIL,27/04/2016,OI,3827843,"1,457.70",HC111380,Welsh Water,201701,Schools,Premises-Related Expenditure,
INSERTED DETAIL,28/04/2016,OI,3827846,800,HC112326,Lyndon Scaffolding Plc,201701,Environment and Place,Premises-Related Expenditure,
INSERTED DETAIL,27/04/2016,OI,3827849,760,HC101798,CIPFA,201701,Resources,Supplies & Services,
INSERTED DETAIL,27/04/2016,OI,3827850,"1,500.00",HC100761,Central Consultancy & Training,201701,Adults Operations,Supplies & Services,
INSERTED DETAIL,27/04/2016,OI,3827851,"1,626.00",HC100761,Central Consultancy & Training,201701,Adults Operations,Supplies & Services,
INSERTED DETAIL,27/04/2016,OI,3827857,525,HC109660,Nicholas O'Sullivan T/A Fire and Risk Management Services,201701,Schools,Supplies & Services,
INSERTED DETAIL,27/04/2016,OI,3827859,"1,406.25",HC100385,Alliance In Partnership,201701,Schools,Supplies & Services,
INSERTED DETAIL,27/04/2016,OI,3827862,"1,538.00",HC108803,Primary Site Ltd,201701,Schools,Supplies & Services,
INSERTED DETAIL,27/04/2016,OI,3827863,748.98,HC116363,Grenke Leasing Ltd,201701,Schools,Supplies & Services,
INSERTED DETAIL,27/04/2016,OI,3827869,903.07,HC103660,Halo Leisure Services Ltd,201701,Public Health,Supplies & Services,
INSERTED DETAIL,28/04/2016,OI,3827878,"3,989.25",HC100385,Alliance In Partnership,201701,Schools,Supplies & Services,
INSERTED DETAIL,28/04/2016,OI,3827879,"3,250.00",HC114822,REDACTED,201701,Schools,Premises-Related Expenditure,
INSERTED DETAIL,04/05/2016,OI,3827894,"1,333.33",HC110572,The Courtyard Trading Company Ltd,201701,Environment and Place,Supplies & Services,
INSERTED DETAIL,28/04/2016,OI,3827898,543.48,HC111426,West Mercia Supplies (The Consortium),201701,Schools,Supplies & Services,
INSERTED DETAIL,27/04/2016,OI,3827901,"16,334.00",HC111603,Worcestershire County Council,201701,Environment and Place,Supplies & Services,
INSERTED DETAIL,27/04/2016,OI,3827913,850,HC120848,Babcock training Limited (Education Services),201701,Schools,Supplies & Services,
INSERTED DETAIL,04/05/2016,OI,3827916,"2,490.81",HC108188,OCLC (Uk) Limited,201701,Communities,Supplies & Services,
INSERTED DETAIL,27/04/2016,OI,3827920,"4,357.50",HC102707,ECHO,201701,Education and Commissioning,Supplies & Services,
INSERTED DETAIL,27/04/2016,OI,3827926,"1,176.00",HC105863,The Cart Shed,201701,Education and Commissioning,Supplies & Services,
INSERTED DETAIL,27/04/2016,OI,3827933,685,HC118897,TLS Uk Ltd,201701,Growth,Supplies & Services,
INSERTED DETAIL,27/04/2016,OI,3827939,585,HC103578,Greenfields Garden Services Ltd,201701,Schools,Supplies & Services,
INSERTED DETAIL,28/04/2016,OI,3827944,467.32,HC115887,Serve (DHET) LtD,201701,Schools,Supplies & Services,
INSERTED DETAIL,28/04/2016,OI,3827945,"1,000.00",HC110760,The Red Ridge Centre,201701,Schools,Supplies & Services,
INSERTED DETAIL,27/04/2016,OI,3827950,"2,062.00",HC102941,Discovery Education Europe Ltd,201701,Schools,Supplies & Services,
INSERTED DETAIL,27/04/2016,OI,3827963,875,HC108866,Education Property Partnership Ltd,201701,Schools,Supplies & Services,
INSERTED DETAIL,28/04/2016,OI,3827967,"2,383.20",HC108444,Patrol,201701,Environment and Place,Supplies & Services,
INSERTED DETAIL,28/04/2016,OI,3827978,"1,204.00",HC108132,Northern Link Traffic Data Consultancy Ltd,201701,Commissioning Capital,Capital Expenditure,
INSERTED DETAIL,27/04/2016,OI,3827988,"3,525.00",HC100608,Lorensbergs Ltd,201701,Communities,Support Services,
INSERTED DETAIL,27/04/2016,OI,3828004,"2,182.25",HC108283,Orleton School Meals,201701,Schools,Supplies & Services,
INSERTED DETAIL,04/05/2016,OI,3828007,459,HC103660,Halo Leisure Services Ltd,201701,Schools,Premises-Related Expenditure,
INSERTED DETAIL,27/04/2016,OI,3828012,"1,560.00",HC108045,OP Software Ltd,201701,Schools,Supplies & Services,
INSERTED DETAIL,28/04/2016,OI,3828022,773.92,HC105512,Lord Combustion Services Ltd,201701,Schools,Premises-Related Expenditure,
INSERTED DETAIL,27/04/2016,OI,3828029,418.12,HC114281,H Carson Ltd  (DAY211),201701,Public Health,Supplies & Services,
INSERTED DETAIL,27/04/2016,OI,3828036,"6,280.00",HC105282,Herecad Enterprises Ltd,201701,Schools,Supplies & Services,
INSERTED DETAIL,27/04/2016,OI,3828037,425,HC109660,Nicholas O'Sullivan T/A Fire and Risk Management Services,201701,Schools,Supplies & Services,
INSERTED DETAIL,27/04/2016,OI,3828040,425,HC103660,Halo Leisure Services Ltd,201701,Schools,Premises-Related Expenditure,
INSERTED DETAIL,27/04/2016,OI,3828042,"3,260.00",HC102156,D & D Network Services Ltd,201701,Schools,Support Services,
INSERTED DETAIL,28/04/2016,OI,3828052,"5,132.00",HC121013,Teacher Absence Limited,201701,Schools,Employees,
INSERTED DETAIL,04/05/2016,OI,3828061,"1,611.00",HC111924,Bromyard Community Transport Ltd,201701,Environment and Place,Transport-Related Expenditure,
INSERTED DETAIL,04/05/2016,OI,3828063,"1,700.50",HC111924,Bromyard Community Transport Ltd,201701,Environment and Place,Transport-Related Expenditure,
INSERTED DETAIL,28/04/2016,OI,3828064,765,HC102595,DRM (Bromyard) Ltd,201701,Environment and Place,Transport-Related Expenditure,
INSERTED DETAIL,04/05/2016,OI,3828067,"30,306.96",HC105563,Lugg Valley Primrose Travel Ltd,201701,Environment and Place,Transport-Related Expenditure,
INSERTED DETAIL,28/04/2016,OI,3828069,560,HC109908,Smiths Motors Ledbury Ltd,201701,Schools,Transport-Related Expenditure,
INSERTED DETAIL,28/04/2016,OI,3828073,"1,330.00",HC101060,Blue Line Taxis,201701,Safeguarding and Family Support,Transport-Related Expenditure,
INSERTED DETAIL,28/04/2016,OI,3828074,"1,155.00",HC101060,Blue Line Taxis,201701,Safeguarding and Family Support,Transport-Related Expenditure,
INSERTED DETAIL,28/04/2016,OI,3828075,900,HC101060,Blue Line Taxis,201701,Environment and Place,Transport-Related Expenditure,
INSERTED DETAIL,28/04/2016,OI,3828075,900,HC101060,Blue Line Taxis,201701,Safeguarding and Family Support,Transport-Related Expenditure,
INSERTED DETAIL,28/04/2016,OI,3828076,800,HC101060,Blue Line Taxis,201701,Environment and Place,Transport-Related Expenditure,
INSERTED DETAIL,28/04/2016,OI,3828076,800,HC101060,Blue Line Taxis,201701,Safeguarding and Family Support,Transport-Related Expenditure,
INSERTED DETAIL,28/04/2016,OI,3828077,"5,960.00",HC121032,Mace Cost Consultancy Ltd,201701,Growth Capital,Capital Expenditure,
INSERTED DETAIL,28/04/2016,OI,3828078,"2,500.00",HC121034,Robinson Low Francis LLP,201701,Growth Capital,Capital Expenditure,
INSERTED DETAIL,28/04/2016,OI,3828081,550,HC110310,Puwertec,201701,Environment and Place,Supplies & Services,
INSERTED DETAIL,28/04/2016,OI,3828086,"2,175.00",HC100054,Absence Protection Ltd,201701,Schools,Employees,
INSERTED DETAIL,04/05/2016,OI,3828089,"2,970.00",HC116149,M & J Travel,201701,Environment and Place,Transport-Related Expenditure,
INSERTED DETAIL,04/05/2016,OI,3828090,"2,574.00",HC116149,M & J Travel,201701,Environment and Place,Transport-Related Expenditure,
INSERTED DETAIL,28/04/2016,OI,3828092,"2,100.00",HC120907,Absolute Museum & Gallery Products Ltd,201701,Growth,Supplies & Services,
INSERTED DETAIL,28/04/2016,OI,3828094,"9,833.00",HC106098,Millhouse Residential Care Home,201701,Learning Disabilities,Third Party Payments,
INSERTED DETAIL,28/04/2016,OI,3828105,"1,158.72",HC109484,S M Stanley Builders Ltd,201701,Schools,Premises-Related Expenditure,
INSERTED DETAIL,28/04/2016,OI,3828115,560,HC120683,Ser-Tec System Ltd,201701,Schools,Premises-Related Expenditure,
INSERTED DETAIL,28/04/2016,OI,3828117,"1,219.00",HC102028,Cotswold Business Supplies,201701,Schools,Premises-Related Expenditure,
INSERTED DETAIL,28/04/2016,OI,3828118,419,HC116575,Room Booking System Ltd T/A School Cloud Systems,201701,Schools,Supplies & Services,
INSERTED DETAIL,28/04/2016,OI,3828122,467.5,HC103660,Halo Leisure Services Ltd,201701,Schools,Premises-Related Expenditure,
INSERTED DETAIL,28/04/2016,OI,3828132,"2,538.88",HC102749,Edutech Solutions Ltd,201701,Schools,Supplies & Services,
INSERTED DETAIL,28/04/2016,OI,3828143,980,HC108866,Education Property Partnership Ltd,201701,Schools,Supplies & Services,
INSERTED DETAIL,28/04/2016,OI,3828144,"4,419.86",HC112548,London Explorers Ltd,201701,Schools,Supplies & Services,
INSERTED DETAIL,28/04/2016,OI,3828146,"3,284.40",HC103959,Herefordshire Housing Ltd,201701,Transformation and safeguarding,Supplies & Services,
INSERTED DETAIL,04/05/2016,OI,3828147,"3,996.00",HC109134,Reed Business Information,201701,Central Childrens Directorate Costs,Employees,
INSERTED DETAIL,28/04/2016,OI,3828149,"1,575.00",HC111603,Worcestershire County Council,201701,Environment and Place,Transport-Related Expenditure,
INSERTED DETAIL,28/04/2016,OI,3828159,"1,898.00",HC108803,Primary Site Ltd,201701,Schools,Supplies & Services,
INSERTED DETAIL,28/04/2016,OI,3828173,720,HC120542,ALK Social Work Ltd,201701,Mental Health,Supplies & Services,
INSERTED DETAIL,28/04/2016,OI,3828175,550.5,HC120404,REDACTED,201701,Mental Health,Supplies & Services,
INSERTED DETAIL,28/04/2016,OI,3828181,"1,600.00",HC120860,A D Horner Limited,201701,Children & Young People Capital,Capital Expenditure,
INSERTED DETAIL,28/04/2016,OI,3828182,"1,471.80",HC104352,J P Catering,201701,Schools,Supplies & Services,
INSERTED DETAIL,28/04/2016,OI,3828188,"7,159.00",HC111414,West Mercia  Womens Aid,201701,Education and Commissioning,Third Party Payments,
INSERTED DETAIL,28/04/2016,OI,3828189,"16,322.66",HC108651,National Youth Advocacy Service (nyas),201701,Education and Commissioning,Third Party Payments,
INSERTED DETAIL,28/04/2016,OI,3828190,"11,180.59",HC102113,Crossroads Care-Forest Of Dean & Hfds,201701,Education and Commissioning,Third Party Payments,
INSERTED DETAIL,28/04/2016,OI,3828194,875,HC104761,Herefordshire Marches Federation-Lord Scudamore,201701,Education and Commissioning,Employees,
INSERTED DETAIL,28/04/2016,OI,3828196,"4,000.00",HC109094,RE Today,201701,Education and Commissioning,Supplies & Services,
INSERTED DETAIL,28/04/2016,OI,3828199,634.48,HC104284,Insight Direct (UK) Ltd,201701,Environment and Place,Supplies & Services,
INSERTED DETAIL,28/04/2016,OI,3828206,"1,909.60",HC109826,Shropshire Council,201701,Schools,Supplies & Services,
INSERTED DETAIL,04/05/2016,OI,3828216,695.76,HC108646,PHS Group Plc,201701,Schools,Supplies & Services,
INSERTED DETAIL,04/05/2016,OI,3828217,875,HC108866,Education Property Partnership Ltd,201701,Schools,Supplies & Services,
INSERTED DETAIL,06/05/2016,OI,3828218,"6,532.00",HC104735,Isle of Wight Experience,201701,Schools,Supplies & Services,
INSERTED DETAIL,06/05/2016,OI,3828227,"5,962.00",HC104735,Isle of Wight Experience,201701,Schools,Supplies & Services,
INSERTED DETAIL,04/05/2016,OI,3828230,"3,000.00",HC100220,Activate Educational Ltd,201701,Schools,Employees,
INSERTED DETAIL,04/05/2016,OI,3828231,"10,722.00",HC121030,Caulmert Ltd,201701,Growth Capital,Capital Expenditure,
INSERTED DETAIL,04/05/2016,OI,3828233,"11,838.00",HC121030,Caulmert Ltd,201701,Growth Capital,Capital Expenditure,
INSERTED DETAIL,04/05/2016,OI,3828240,642,HC103660,Halo Leisure Services Ltd,201701,Schools,Premises-Related Expenditure,
INSERTED DETAIL,04/05/2016,OI,3828250,"112,906.00",HC102019,Corelogic Ltd,201701,Resources,Supplies & Services,
INSERTED DETAIL,04/05/2016,OI,3828251,"13,900.00",HC102019,Corelogic Ltd,201701,Adults Operations,Supplies & Services,
INSERTED DETAIL,04/05/2016,OI,3828252,"121,000.00",HC102019,Corelogic Ltd,201701,Integrated Commissioning,Capital Expenditure,
INSERTED DETAIL,04/05/2016,OI,3828257,"1,123.00",HC121050,Morris Thornton Electrical Ltd,201701,Schools,Premises-Related Expenditure,
INSERTED DETAIL,04/05/2016,OI,3828260,560.3,HC105563,Lugg Valley Primrose Travel Ltd,201701,Environment and Place,Third Party Payments,
INSERTED DETAIL,04/05/2016,OI,3828261,"2,633.13",HC100493,George Youngs Coaches Ltd,201701,Environment and Place,Third Party Payments,
INSERTED DETAIL,04/05/2016,OI,3828262,"2,230.00",HC106680,ITSO Ltd,201701,Environment and Place,Third Party Payments,
INSERTED DETAIL,06/05/2016,OI,3828263,642.78,HC120961,Unicard Ltd,201701,Environment and Place,Supplies & Services,
INSERTED DETAIL,04/05/2016,OI,3828265,"1,000.00",HC100528,B & H Cars,201701,Learning Disabilities,Transport-Related Expenditure,
INSERTED DETAIL,04/05/2016,OI,3828270,"9,534.87",HC111775,Compass Minerals UK Limited,201701,Environment and Place,Supplies & Services,
INSERTED DETAIL,04/05/2016,OI,3828271,"9,575.00",HC111775,Compass Minerals UK Limited,201701,Environment and Place,Supplies & Services,
INSERTED DETAIL,04/05/2016,OI,3828272,"8,688.71",HC111775,Compass Minerals UK Limited,201701,Environment and Place,Supplies & Services,
INSERTED DETAIL,04/05/2016,OI,3828275,"5,368.32",HC111775,Compass Minerals UK Limited,201701,Environment and Place,Supplies & Services,
INSERTED DETAIL,04/05/2016,OI,3828277,"4,258.05",HC111775,Compass Minerals UK Limited,201701,Environment and Place,Supplies & Services,
INSERTED DETAIL,04/05/2016,OI,3828279,"22,567.53",HC111775,Compass Minerals UK Limited,201701,Environment and Place,Supplies & Services,
INSERTED DETAIL,04/05/2016,OI,3828280,"4,254.84",HC111775,Compass Minerals UK Limited,201701,Environment and Place,Supplies & Services,
INSERTED DETAIL,04/05/2016,OI,3828282,"4,315.85",HC111775,Compass Minerals UK Limited,201701,Environment and Place,Supplies & Services,
INSERTED DETAIL,04/05/2016,OI,3828285,774.61,HC111426,West Mercia Supplies (The Consortium),201701,Schools,Supplies & Services,
INSERTED DETAIL,04/05/2016,OI,3828286,"1,196.00",HC104015,High Town Radio Taxi Group,201701,Learning Disabilities,Transport-Related Expenditure,
INSERTED DETAIL,04/05/2016,OI,3828287,"20,189.90",HC120019,REDACTED,201701,Growth Capital,Capital Expenditure,
INSERTED DETAIL,04/05/2016,OI,3828288,547.29,HC101003,Bikold Ltd,201701,Schools,Supplies & Services,
INSERTED DETAIL,04/05/2016,OI,3828290,"2,186.20",HC118904,REDACTED,201701,Safeguarding and Family Support,Supplies & Services,
INSERTED DETAIL,04/05/2016,OI,3828292,"1,207.07",HC100385,Alliance In Partnership,201701,Schools,Supplies & Services,
INSERTED DETAIL,04/05/2016,OI,3828297,"21,962.91",HC105016,IHS Global Ltd,201701,Resources,Supplies & Services,
INSERTED DETAIL,04/05/2016,OI,3828302,"4,917.17",HC108143,Nottingham Rehab Ltd,201701,Transformation and safeguarding,Supplies & Services,
INSERTED DETAIL,04/05/2016,OI,3828306,592.5,HC103660,Halo Leisure Services Ltd,201701,Schools,Premises-Related Expenditure,
INSERTED DETAIL,04/05/2016,OI,3828315,432,HC115887,Serve (DHET) LtD,201701,Schools,Supplies & Services,
INSERTED DETAIL,04/05/2016,OI,3828319,"2,904.00",HC111157,Updata Infrastructure UK Ltd,201701,Resources,Supplies & Services,
INSERTED DETAIL,04/05/2016,OI,3828320,"1,298.00",HC111157,Updata Infrastructure UK Ltd,201701,Resources,Supplies & Services,
INSERTED DETAIL,04/05/2016,OI,3828321,"1,958.00",HC111157,Updata Infrastructure UK Ltd,201701,Resources,Supplies & Services,
INSERTED DETAIL,04/05/2016,OI,3828322,900,HC119552,REDACTED,201701,Adults Operations,Supplies & Services,
INSERTED DETAIL,04/05/2016,OI,3828324,496.42,HC100411,Altodigital Networks  Ltd,201701,Schools,Supplies & Services,
INSERTED DETAIL,04/05/2016,OI,3828330,"7,619.46",HC106975,Hoople Ltd,201701,Schools,Support Services,
INSERTED DETAIL,04/05/2016,OI,3828333,450,HC109765,REDACTED,201701,Schools,Supplies & Services,
INSERTED DETAIL,04/05/2016,OI,3828348,"56,250.00",HC116966,South West Audit Partnership Ltd - SWAP,201701,Resources,Supplies & Services,
INSERTED DETAIL,04/05/2016,OI,3828354,"18,335.00",HC117835,The Brookfield School (Academy),201701,Environment and Place,Transport-Related Expenditure,
INSERTED DETAIL,13/04/2016,SI,4685208,600,HC120107,Hereford Integrated Behaviour Outreach Service,201701,Schools,Supplies & Services,
INSERTED DETAIL,13/04/2016,SI,4685389,"2,655.40",HC107522,Mrs M J Thomson (The Iron Rice Bowl),201701,Schools,Supplies & Services,
INSERTED DETAIL,01/04/2016,SI,4685891,"1,000.00",HC107980,Neopost Limited,201701,Resources,Supplies & Services,
INSERTED DETAIL,06/04/2016,SI,4685892,"1,000.00",HC107980,Neopost Limited,201701,Resources,Supplies & Services,
INSERTED DETAIL,01/04/2016,SI,4685895,"1,464.00",HC101159,Breinton Parish Council,201701,Environment and Place,Third Party Payments,
INSERTED DETAIL,01/04/2016,SI,4685896,"1,854.00",HC101111,Border Group Parish Council,201701,Environment and Place,Third Party Payments,
INSERTED DETAIL,01/04/2016,SI,4685897,595,HC105071,Kingstone & Thruxton G.P.C.,201701,Environment and Place,Third Party Payments,
INSERTED DETAIL,01/04/2016,SI,4685898,"1,505.50",HC111372,Wellington Heath Parish Council,201701,Environment and Place,Third Party Payments,
INSERTED DETAIL,05/04/2016,SI,4685900,"3,812.04",HC101473,Capita Business Services Ltd (Direct Debit),201701,Resources,Supplies & Services,
INSERTED DETAIL,13/04/2016,SI,4685901,"9,518.01",HC102366,BT Onebill,201701,Resources,Supplies & Services,
INSERTED DETAIL,31/03/2016,SI,4685902,"36,894.46",HC103831,Hereford & Worc Fire & Rescue Service,201701,Consolidated Revenue Account,Supplies & Services,
INSERTED DETAIL,06/04/2016,SI,4685907,"1,106.37",HC111373,Wellington Parish Council,201701,Environment and Place,Third Party Payments,
INSERTED DETAIL,08/04/2016,SI,4685908,"1,525.24",HC119812,REDACTED,201701,Safeguarding and Family Support,Employees,
INSERTED DETAIL,06/04/2016,SI,4685914,625.5,HC111372,Wellington Heath Parish Council,201701,Environment and Place,Third Party Payments,
INSERTED DETAIL,08/04/2016,SI,4685924,468,HC120377,REDACTED,201701,Schools,Supplies & Services,
INSERTED DETAIL,07/04/2016,SI,4685933,771,HC105182,Land Registry ## Direct Debit Account ##,201701,Communities,Supplies & Services,
INSERTED DETAIL,07/04/2016,SI,4685935,561,HC105182,Land Registry ## Direct Debit Account ##,201701,Resources,Supplies & Services,
INSERTED DETAIL,08/04/2016,SI,4685944,806.58,HC107216,REDACTED,201701,Schools,Supplies & Services,
INSERTED DETAIL,06/04/2016,SI,4685948,"2,971.92",HC103613,Gwent Wildlife Trust,201701,Environment and Place,Transfer Payments,
INSERTED DETAIL,06/04/2016,SI,4685951,"4,598.19",HC105571,Wigmore Primary School (Academy),201701,Children & Young People Capital,Capital Expenditure,
INSERTED DETAIL,06/04/2016,SI,4685953,566.1,HC101552,Cartref Publishing Ltd,201701,Schools,Employees,
INSERTED DETAIL,06/04/2016,SI,4685956,444.19,HC104708,John Attwooll & Co (Tents) Ltd,201701,Environment and Place,Supplies & Services,
INSERTED DETAIL,06/04/2016,SI,4685957,"1,500.00",HC116336,Core Concepts,201701,Environment and Place,Supplies & Services,
INSERTED DETAIL,06/04/2016,SI,4685958,504,HC103446,Glide Media Marketing,201701,Environment and Place,Supplies & Services,
INSERTED DETAIL,06/04/2016,SI,4685959,"3,000.00",HC112120,Desperate Men Ltd,201701,Environment and Place,Supplies & Services,
INSERTED DETAIL,06/04/2016,SI,4685960,"3,000.00",HC112120,Desperate Men Ltd,201701,Environment and Place,Supplies & Services,
INSERTED DETAIL,06/04/2016,SI,4685967,850,HC110155,Lego Company Ltd,201701,Schools,Supplies & Services,
INSERTED DETAIL,06/04/2016,SI,4685968,653.52,HC106875,Cosy,201701,Schools,Supplies & Services,
INSERTED DETAIL,06/04/2016,SI,4685971,"2,268.00",HC111056,TES Global Limited,201701,Schools,Employees,
INSERTED DETAIL,06/04/2016,SI,4685972,"2,500.00",HC100220,Activate Educational Ltd,201701,Schools,Employees,
INSERTED DETAIL,06/04/2016,SI,4685976,600,HC110034,Superstars/Sports Stars Ltd,201701,Schools,Supplies & Services,
INSERTED DETAIL,28/03/2016,SI,4685992,"1,000.00",HC102416,Neopost Ltd,201701,Resources,Supplies & Services,
INSERTED DETAIL,06/04/2016,SI,4685993,"1,000.00",HC102416,Neopost Ltd,201701,Resources,Supplies & Services,
INSERTED DETAIL,06/04/2016,SI,4686007,750,HC114712,Cinderford Artspace Ltd,201701,Environment and Place,Supplies & Services,
INSERTED DETAIL,06/04/2016,SI,4686008,"7,389.40",HC114712,Cinderford Artspace Ltd,201701,Environment and Place,Supplies & Services,
INSERTED DETAIL,06/04/2016,SI,4686009,"8,731.29",HC103170,Forest Of Dean District Council,201701,Environment and Place,Support Services,
INSERTED DETAIL,06/04/2016,SI,4686026,"15,246.47",HC108793,REDACTED,201701,Adults Operations,Supplies & Services,
INSERTED DETAIL,06/04/2016,SI,4686029,"10,239.06",HC106302,Monmouthshire County Council,201701,Environment and Place,Support Services,
INSERTED DETAIL,06/04/2016,SI,4686029,868.64,HC106302,Monmouthshire County Council,201701,Environment and Place,Transport-Related Expenditure,
INSERTED DETAIL,06/04/2016,SI,4686036,420,HC119223,Wealden Leisure Ltd T/A Freedom Leisure,201701,Schools,Premises-Related Expenditure,
INSERTED DETAIL,06/04/2016,SI,4686049,"1,491.00",HC111870,REDACTED,201701,Safeguarding and Family Support,Third Party Payments,
INSERTED DETAIL,06/04/2016,SI,4686050,"15,407.00",HC111870,REDACTED,201701,Safeguarding and Family Support,Third Party Payments,
INSERTED DETAIL,06/04/2016,SI,4686051,"15,407.00",HC111870,REDACTED,201701,Safeguarding and Family Support,Third Party Payments,
INSERTED DETAIL,06/04/2016,SI,4686052,"3,875.00",HC119470,REDACTED,201701,Safeguarding and Family Support,Third Party Payments,
INSERTED DETAIL,06/04/2016,SI,4686053,"3,875.01",HC119470,REDACTED,201701,Safeguarding and Family Support,Third Party Payments,
INSERTED DETAIL,06/04/2016,SI,4686061,"3,051.28",HC119470,REDACTED,201701,Safeguarding and Family Support,Third Party Payments,
INSERTED DETAIL,08/04/2016,SI,4686065,"3,262.57",HC102543,REDACTED,201701,Communities,Supplies & Services,
INSERTED DETAIL,13/04/2016,SI,4686066,"3,593.80",HC111380,Welsh Water,201701,Environment and Place,Premises-Related Expenditure,
INSERTED DETAIL,08/04/2016,SI,4686070,"14,910.00",HC111870,REDACTED,201701,Safeguarding and Family Support,Third Party Payments,
INSERTED DETAIL,13/04/2016,SI,4686072,"1,015.00",HC102416,Neopost Ltd,201701,Resources,Supplies & Services,
INSERTED DETAIL,13/04/2016,SI,4686074,"1,360.15",HC105702,Magna Large Print Books,201701,Communities,Supplies & Services,
INSERTED DETAIL,13/04/2016,SI,4686075,"4,281.14",HC105702,Magna Large Print Books,201701,Communities,Supplies & Services,
INSERTED DETAIL,13/04/2016,SI,4686076,"773,026.20",HC104323,Integral UK Ltd,201701,Holding Codes,Holding Codes,
INSERTED DETAIL,13/04/2016,SI,4686079,"1,425.00",HC111420,REDACTED,201701,Safeguarding and Family Support,Third Party Payments,
INSERTED DETAIL,13/04/2016,SI,4686080,"55,376.16",HC117423,Interserve FS (UK) Ltd,201701,Holding Codes,Holding Codes,
INSERTED DETAIL,08/04/2016,SI,4686089,"1,166.67",HC110794,The Steiner Academy Hereford,201701,Central Childrens Directorate Costs,Support Services,
INSERTED DETAIL,13/04/2016,SI,4686093,"2,028.60",HC118604,Cobalt Telephone Technologies Ltd,201701,Environment and Place,Premises-Related Expenditure,
INSERTED DETAIL,08/04/2016,SI,4686094,600,HC120932,Quest for Learning,201701,Schools,Employees,
INSERTED DETAIL,08/04/2016,SI,4686096,"1,000.00",HC106098,Millhouse Residential Care Home,201701,Learning Disabilities,Third Party Payments,
INSERTED DETAIL,08/04/2016,SI,4686108,"2,737.00",HC114361,Dolphin Lifts Midlands Ltd,201701,Housing & Independent Living Capital,Capital Expenditure,
INSERTED DETAIL,08/04/2016,SI,4686109,"3,950.00",HC114361,Dolphin Lifts Midlands Ltd,201701,Housing & Independent Living Capital,Capital Expenditure,
INSERTED DETAIL,13/04/2016,SI,4686110,509.2,HC101013,Birley With Upper Hill Parish Council,201701,Environment and Place,Third Party Payments,
INSERTED DETAIL,13/04/2016,SI,4686111,553.5,HC104118,How Caple Sollershope & Yatton Gpc,201701,Environment and Place,Third Party Payments,
INSERTED DETAIL,13/04/2016,SI,4686112,"1,060.00",HC108114,North Bromyard Gpc,201701,Environment and Place,Third Party Payments,
INSERTED DETAIL,13/04/2016,SI,4686114,"1,329.43",HC102067,Cradley Parish Council,201701,Environment and Place,Third Party Payments,
INSERTED DETAIL,13/04/2016,SI,4686115,"2,880.00",HC103332,Garway Parish Council,201701,Environment and Place,Third Party Payments,
INSERTED DETAIL,13/04/2016,SI,4686116,"1,343.40",HC104994,Kentchurch Parish Council,201701,Environment and Place,Third Party Payments,
INSERTED DETAIL,13/04/2016,SI,4686118,"1,586.00",HC108588,Peterchurch Parish Council,201701,Environment and Place,Third Party Payments,
INSERTED DETAIL,13/04/2016,SI,4686119,"1,150.00",HC109813,Shobdon Parish Council,201701,Environment and Place,Third Party Payments,
INSERTED DETAIL,13/04/2016,SI,4686120,447,HC110320,Sutton Parish Council,201701,Environment and Place,Third Party Payments,
INSERTED DETAIL,13/04/2016,SI,4686121,"1,096.00",HC110898,Titley And District G P C,201701,Environment and Place,Third Party Payments,
INSERTED DETAIL,13/04/2016,SI,4686122,"1,384.00",HC104140,"Humber, Ford & Stoke Prior G.P.C.",201701,Environment and Place,Third Party Payments,
INSERTED DETAIL,13/04/2016,SI,4686123,461.5,HC106296,Monkland And Stretford Parish Council,201701,Environment and Place,Third Party Payments,
INSERTED DETAIL,15/04/2016,SI,4686124,636.5,HC120945,Richard Mills Farm Services,201701,Environment and Place,Third Party Payments,
INSERTED DETAIL,08/04/2016,SI,4686127,"89,325.00",HC120937,Cambian Healthcare Limited,201701,Mental Health,Third Party Payments,
INSERTED DETAIL,27/04/2016,SI,4686130,"1,071.43",HC119133,REDACTED,201701,Safeguarding and Family Support,Third Party Payments,
INSERTED DETAIL,15/04/2016,SI,4686131,"2,500.00",HC112522,Derbyshire County Council,201701,Environment and Place,Supplies & Services,
INSERTED DETAIL,13/04/2016,SI,4686140,"2,109.40",HC111506,Wigmore Group Parish Council,201701,Environment and Place,Third Party Payments,
INSERTED DETAIL,13/04/2016,SI,4686141,813.58,HC111506,Wigmore Group Parish Council,201701,Environment and Place,Third Party Payments,
INSERTED DETAIL,13/04/2016,SI,4686142,800,HC105071,Kingstone & Thruxton G.P.C.,201701,Environment and Place,Third Party Payments,
INSERTED DETAIL,13/04/2016,SI,4686143,"1,044.20",HC107830,Much Dewchurch Parish Council,201701,Environment and Place,Third Party Payments,
INSERTED DETAIL,15/04/2016,SI,4686145,"1,000.00",HC113673,Callcredit,201701,Resources,Supplies & Services,
INSERTED DETAIL,13/04/2016,SI,4686149,"2,664,809.74",HC114724,Balfour Beatty Living Places Ltd,201701,Holding Codes,Holding Codes,
INSERTED DETAIL,12/04/2016,SI,4686150,"1,284,956.66",HC111421,West Mercia Police & Crime Commissioner,201701,Collection Fund,Collection Fund Accounts,
INSERTED DETAIL,13/04/2016,SI,4686152,800,HC101369,REDACTED,201701,Education and Commissioning,Supplies & Services,
INSERTED DETAIL,13/04/2016,SI,4686153,800,HC101369,REDACTED,201701,Education and Commissioning,Supplies & Services,
INSERTED DETAIL,13/04/2016,SI,4686157,500,HC109360, Ross-On-Wye Town Council,201701,Environment and Place,Supplies & Services,
INSERTED DETAIL,20/04/2016,SI,4686162,"9,582.00",HC108191,OCR,201701,Schools,Supplies & Services,
INSERTED DETAIL,13/04/2016,SI,4686166,"4,042.00",HC117310,Level Access Bathrooms,201701,Housing & Independent Living Capital,Capital Expenditure,
INSERTED DETAIL,13/04/2016,SI,4686167,"2,984.00",HC100792,B & B Services Ltd,201701,Housing & Independent Living Capital,Capital Expenditure,
INSERTED DETAIL,13/04/2016,SI,4686170,"1,500.00",HC116760,REDACTED,201701,Environment and Place,Supplies & Services,
INSERTED DETAIL,13/04/2016,SI,4686171,"2,250.00",HC118914,Sound Intervention Ltd,201701,Environment and Place,Supplies & Services,
INSERTED DETAIL,13/04/2016,SI,4686172,"3,450.00",HC116335,REDACTED,201701,Environment and Place,Supplies & Services,
INSERTED DETAIL,12/04/2016,SI,4686174,"1,284,957.66",HC111421,West Mercia Police & Crime Commissioner,201701,Collection Fund,Collection Fund Accounts,
INSERTED DETAIL,15/04/2016,SI,4686181,"1,081.48",HC111380,Welsh Water,201701,Schools,Premises-Related Expenditure,
INSERTED DETAIL,15/04/2016,SI,4686187,626.65,HC111373,Wellington Parish Council,201701,Environment and Place,Third Party Payments,
INSERTED DETAIL,13/04/2016,SI,4686199,"2,200.00",HC116548,REDACTED,201701,Environment and Place,Supplies & Services,
INSERTED DETAIL,13/04/2016,SI,4686201,"1,486.63",HC112120,Desperate Men Ltd,201701,Environment and Place,Supplies & Services,
INSERTED DETAIL,13/04/2016,SI,4686203,"1,375.00",HC116336,Core Concepts,201701,Environment and Place,Supplies & Services,
INSERTED DETAIL,13/04/2016,SI,4686204,"2,328.30",HC114712,Cinderford Artspace Ltd,201701,Environment and Place,Supplies & Services,
INSERTED DETAIL,13/04/2016,SI,4686205,600,HC100699,Imaginet Ltd,201701,Environment and Place,Supplies & Services,
INSERTED DETAIL,15/04/2016,SI,4686211,675,HC116511,Inform CPI Ltd,201701,Resources,Supplies & Services,
INSERTED DETAIL,13/04/2016,SI,4686217,902.5,HC114625,REDACTED,201701,Environment and Place,Supplies & Services,
INSERTED DETAIL,15/04/2016,SI,4686238,"1,475.56",HC104568,NPOWER,201701,Environment and Place,Premises-Related Expenditure,
INSERTED DETAIL,20/04/2016,SI,4686239,528.48,HC109320,Peterchurch Parochial Church Council,201701,Environment and Place,Premises-Related Expenditure,
INSERTED DETAIL,15/04/2016,SI,4686245,543.5,HC105506,Longtown Group Parish Council,201701,Environment and Place,Third Party Payments,
INSERTED DETAIL,15/04/2016,SI,4686246,770,HC110205,Stoke Lacy Parish Council,201701,Environment and Place,Third Party Payments,
INSERTED DETAIL,15/04/2016,SI,4686250,"1,350.00",HC120964,REDACTED,201701,Environment and Place,Supplies & Services,
INSERTED DETAIL,20/04/2016,SI,4686253,"8,124.59",HC108260,Orange plc (Airtime),201701,Resources,Supplies & Services,
INSERTED DETAIL,20/04/2016,SI,4686254,"1,669.84",HC108260,Orange plc (Airtime),201701,Resources,Supplies & Services,
INSERTED DETAIL,15/04/2016,SI,4686256,699.58,HC107865,The Contact People,201701,Resources,Supplies & Services,
INSERTED DETAIL,15/04/2016,SI,4686262,"1,170.00",HC101203,Brimfield & Little Hereford G P C,201701,Environment and Place,Third Party Payments,
INSERTED DETAIL,15/04/2016,SI,4686272,"1,240.00",HC120973,REDACTED,201701,Resources,Supplies & Services,
INSERTED DETAIL,15/04/2016,SI,4686273,748.54,HC112681,REDACTED,201701,Growth,Supplies & Services,
INSERTED DETAIL,15/04/2016,SI,4686275,432.67,HC112681,REDACTED,201701,Growth,Supplies & Services,
INSERTED DETAIL,15/04/2016,SI,4686287,"1,536.00",HC108283,Orleton School Meals,201701,Schools,Supplies & Services,
INSERTED DETAIL,15/04/2016,SI,4686303,"2,250.00",HC119958,Rich Analysts Ltd,201701,Schools,Supplies & Services,
INSERTED DETAIL,01/04/2016,SI,4686305,"3,752.00",HC109660,Nicholas O'Sullivan T/A Fire and Risk Management Services,201701,Schools,Support Services,
INSERTED DETAIL,15/04/2016,SI,4686308,577.28,HC115182,Warner Bros Studios Leavesden Ltd,201701,Schools,Supplies & Services,
INSERTED DETAIL,15/04/2016,SI,4686309,"41,700.00",HC111602,Worcestershire County Council,201701,Consolidated Revenue Account,Employees,
INSERTED DETAIL,15/04/2016,SI,4686310,"7,389,525.00",HC111602,Worcestershire County Council ,201701,Holding Codes,Holding Codes,
INSERTED DETAIL,15/04/2016,SI,4686316,933.75,HC101382,G4S Cash Service (Direct Debit),201701,Resources,Third Party Payments,
INSERTED DETAIL,04/05/2016,SI,4686317,"6,479.01",HC101473,Capita Business Services Ltd (Direct Debit),201701,Resources,Supplies & Services,
INSERTED DETAIL,20/04/2016,SI,4686324,948,HC101078,Bodenham Parish Council,201701,Environment and Place,Third Party Payments,
INSERTED DETAIL,20/04/2016,SI,4686325,948,HC101078,Bodenham Parish Council,201701,Environment and Place,Third Party Payments,
INSERTED DETAIL,20/04/2016,SI,4686327,"1,280.13",HC101875,Clifford Parish Council,201701,Environment and Place,Third Party Payments,
INSERTED DETAIL,15/04/2016,SI,4686329,"1,095.00",HC116472,Wye Valley River Festival Committee,201701,Environment and Place,Supplies & Services,
INSERTED DETAIL,20/04/2016,SI,4686330,"15,582.00",HC104284,Insight Direct (UK) Ltd,201701,Education and Commissioning,Supplies & Services,
INSERTED DETAIL,22/04/2016,SI,4686356,675,HC120986,REDACTED,201701,Environment and Place,Transport-Related Expenditure,
INSERTED DETAIL,20/04/2016,SI,4686368,630,HC108094,Noahs Ark Pre-School,201701,Education and Commissioning,Transfer Payments,
INSERTED DETAIL,20/04/2016,SI,4686369,"6,000.00",HC105850,Marsh Ltd,201701,Resources,Supplies & Services,
INSERTED DETAIL,20/04/2016,SI,4686370,"155,250.84",HC111602,Worcestershire County Council,201701,Consolidated Revenue Account,Employees,
INSERTED DETAIL,20/04/2016,SI,4686371,"2,462.51",HC111603,Worcestershire County Council,201701,Consolidated Revenue Account,Employees,
INSERTED DETAIL,22/04/2016,SI,4686373,"1,350.00",HC120997,REDACTED,201701,Environment and Place,Supplies & Services,
INSERTED DETAIL,04/05/2016,SI,4686374,808.18,HC111380,Welsh Water,201701,Environment and Place,Premises-Related Expenditure,
INSERTED DETAIL,20/04/2016,SI,4686387,"4,074.50",HC117310,Level Access Bathrooms,201701,Housing & Independent Living Capital,Capital Expenditure,
INSERTED DETAIL,22/04/2016,SI,4686388,"3,695.00",HC114362,Anglia Stairlifts Ltd,201701,Housing & Independent Living Capital,Capital Expenditure,
INSERTED DETAIL,20/04/2016,SI,4686393,"2,103.20",HC107522,Mrs M J Thomson (The Iron Rice Bowl),201701,Schools,Supplies & Services,
INSERTED DETAIL,22/04/2016,SI,4686396,"1,350.00",HC120996,REDACTED,201701,Environment and Place,Supplies & Services,
INSERTED DETAIL,22/04/2016,SI,4686397,"1,350.00",HC120995,REDACTED,201701,Environment and Place,Supplies & Services,
INSERTED DETAIL,20/04/2016,SI,4686403,"28,547.00",HC115939,Municipal Mutual Insurance Ltd,201701,Resources,Supplies & Services,
INSERTED DETAIL,20/04/2016,SI,4686405,513.82,HC109997,Spa Gas Ltd,201701,Schools,Premises-Related Expenditure,
INSERTED DETAIL,20/04/2016,SI,4686409,"2,200.00",HC114180,SLS School Improvement Ltd,201701,Schools,Supplies & Services,
INSERTED DETAIL,20/04/2016,SI,4686420,600,HC109660,Nicholas O'Sullivan T/A Fire and Risk Management Services,201701,Schools,Support Services,
INSERTED DETAIL,20/04/2016,SI,4686422,"2,558.00",HC102749,Edutech Solutions Ltd,201701,Schools,Supplies & Services,
INSERTED DETAIL,20/04/2016,SI,4686423,"2,040.50",HC102749,Edutech Solutions Ltd,201701,Schools,Supplies & Services,
INSERTED DETAIL,20/04/2016,SI,4686424,"2,605.93",HC102749,Edutech Solutions Ltd,201701,Schools,Supplies & Services,
INSERTED DETAIL,20/04/2016,SI,4686426,820.56,HC101584,Cathedral Leasing Ltd,201701,Schools,Premises-Related Expenditure,
INSERTED DETAIL,20/04/2016,SI,4686434,"2,305.00",HC102749,Edutech Solutions Ltd,201701,Schools,Supplies & Services,
INSERTED DETAIL,22/04/2016,SI,4686440,460,HC110658,The Houghton Project,201701,Education and Commissioning,Third Party Payments,
INSERTED DETAIL,22/04/2016,SI,4686441,460,HC110658,The Houghton Project,201701,Education and Commissioning,Third Party Payments,
